Workbook

Sheet TB Hourly load shapes by class
A1: ALL UNITS IN GWh | U1: No longer used (combined with >1MW)
A2: Year | B2: Month | C2: Day | D2: Hour (EST) | E2: Residential | F2: GS>50 to 999 kW | G2: Street Lighting | H2: GS<50 kW | I2: USL | J2: GS 1000 to 4999 kW | K2: Sentinel Lighting | L2: Large User | M2: TOTAL LDC Sales | N2: =E2 -> Residential | O2: =F2 -> GS>50 to 999 kW | P2: Street Lighting | Q2: GS<50 kW | R2: USL | S2: GS 1000 to 4999 kW | T2: Sentinel Lighting | U2: Large User | V2: TOTAL LDC Sales
A3: 2004 | B3: 1 | C3: 1 | D3: 1 | E3: 0.04291423052 | F3: 0.04823251889 | G3: 0.002776885088 | H3: 0.014096258 | I3: 0.0003897384548 | J3: 0.01666872092 | K3: 3.461477364e-05 | L3: 0.001284826424 | M3: 0.1263977931 | N3: =E3*1000000*$N$8826 -> 39313.05499 | O3: =F3*1000000*$O$8826 -> 37526.34246 | P3: =G3*1000000*$P$8826 -> 1289.41628 | Q3: =H3*1000000*$Q$8826 -> 13210.15814 | R3: =I3*1000000*$R$8826 -> 239.6644179 | S3: =(J3+L3)*1000000*$S$8826 -> 11671.98237 | T3: =K3*1000000*$T$8826 -> 23.75188942 | U3: =L3*1000000*$U$8826 -> 0 | V3: =SUM(N3:U3) -> 103274.3705
A4: 2004 | B4: 1 | C4: 1 | D4: 2 | E4: 0.03954743832 | F4: 0.04696251877 | G4: 0.002776885088 | H4: 0.01251062521 | I4: 0.0003897384548 | J4: 0.01662942788 | K4: 3.461477364e-05 | L4: 0.00128917808 | M4: 0.1201404266 | N4: =E4*1000000*$N$8826 -> 36228.78934 | O4: =F4*1000000*$O$8826 -> 36538.24438 | P4: =G4*1000000*$P$8826 -> 1289.41628 | Q4: =H4*1000000*$Q$8826 -> 11724.19925 | R4: =I4*1000000*$R$8826 -> 239.6644179 | S4: =(J4+L4)*1000000*$S$8826 -> 11649.26624 | T4: =K4*1000000*$T$8826 -> 23.75188942 | U4: =L4*1000000*$U$8826 -> 0 | V4: =SUM(N4:U4) -> 97693.3318
A5: 2004 | B5: 1 | C5: 1 | D5: 3 | E5: 0.03411614036 | F5: 0.05036306626 | G5: 0.002776885088 | H5: 0.01198748237 | I5: 0.0003897384548 | J5: 0.01641272755 | K5: 3.461477364e-05 | L5: 0.001286567087 | M5: 0.1173672219 | N5: 31253.26228 | O5: 39183.97205 | P5: 1289.41628 | Q5: 11233.9415 | R5: 239.6644179 | S5: 11506.68729 | T5: 23.75188942 | U5: 0 | V5: 94730.69571
A6: 2004 | B6: 1 | C6: 1 | D6: 4 | E6: 0.03325915768 | F6: 0.04933475903 | G6: 0.002776885088 | H6: 0.01137245043 | I6: 0.0003897384548 | J6: 0.0165087644 | K6: 3.461477364e-05 | L6: 0.001295052816 | M6: 0.1149714227 | N6: 30468.19386 | O6: 38383.91827 | P6: 1289.41628 | Q6: 10657.57087 | R6: 239.6644179 | S6: 11574.63964 | T6: 23.75188942 | U6: 0 | V6: 92637.15522
A7: 2004 | B7: 1 | C7: 1 | D7: 5 | E7: 0.03347592706 | F7: 0.04764696962 | G7: 0.002776885088 | H7: 0.01239437172 | I7: 0.0003897384548 | J7: 0.01641089875 | K7: 3.461477364e-05 | L7: 0.001289395663 | M7: 0.1144188011 | N7: 30666.77289 | O7: 37070.76762 | P7: 1289.41628 | Q7: 11615.25352 | R7: 239.6644179 | S7: 11507.33726 | T7: 23.75188942 | U7: 0 | V7: 92412.96388
A8: 2004 | B8: 1 | C8: 1 | D8: 6 | E8: 0.03546687122 | F8: 0.04802036728 | G8: 0.002776885088 | H8: 0.01159170252 | I8: 0.0003897384548 | J8: 0.01644675023 | K8: 3.461477364e-05 | L8: 0.001292441822 | M8: 0.1160193714 | N8: 32490.64568 | O8: 37361.28217 | P8: 1289.41628 | Q8: 10863.04062 | R8: 239.6644179 | S8: 11532.62545 | T8: 23.75188942 | U8: 0 | V8: 93800.42651
A9: 2004 | B9: 1 | C9: 1 | D9: 7 | E9: 0.03785177395 | F9: 0.04835569288 | G9: 0.002776885088 | H9: 0.01449877023 | I9: 0.0003897384548 | J9: 0.0169021563 | K9: 3.461477364e-05 | L9: 0.001302015465 | M9: 0.1221116471 | N9: 34675.41775 | O9: 37622.17551 | P9: 1289.41628 | Q9: 13587.36819 | R9: 239.6644179 | S9: 11834.91863 | T9: 23.75188942 | U9: 0 | V9: 99272.71267
A10: 2004 | B10: 1 | C10: 1 | D10: 8 | E10: 0.04276706538 | F10: 0.05108529242 | G10: 0.002082664366 | H10: 0.01728551217 | I10: 0.0003750266383 | J10: 0.01701177637 | K10: 2.596108708e-05 | L10: 0.001277211026 | M10: 0.1319105095 | N10: 39178.2393 | O10: 39745.88561 | P10: 967.0624654 | Q10: 16198.93373 | R10: 230.6175842 | S10: 11890.05907 | T10: 17.81392177 | U10: 0 | V10: 108228.6117
A11: 2004 | B11: 1 | C11: 1 | D11: 9 | E11: 0.05204626475 | F11: 0.04671895112 | G11: 0 | H11: 0.02175279448 | I11: 0.0003308911419 | J11: 0.01760951884 | K11: 0 | L11: 0.001276340695 | M11: 0.139734761 | N11: 47678.76864 | O11: 36348.74146 | P11: 0 | Q11: 20385.39979 | R11: 203.4770547 | S11: 12278.09832 | T11: 0 | U11: 0 | V11: 116894.4853
A12: 2004 | B12: 1 | C12: 1 | D12: 10 | E12: 0.06262119137 | F12: 0.03811778456 | G12: 0 | H12: 0.0252768243 | I12: 0.0003308911419 | J12: 0.01740729247 | K12: 0 | L12: 0.001223903241 | M12: 0.1449778871 | N12: 57366.29342 | O12: 29656.77659 | P12: 0 | Q12: 23687.90683 | R12: 203.4770547 | S12: 12112.53596 | T12: 0 | U12: 0 | V12: 123026.9899
A13: 2004 | B13: 1 | C13: 1 | D13: 11 | E13: 0.06198423574 | F13: 0.04039117095 | G13: 0 | H13: 0.02791456781 | I13: 0.0003308911419 | J13: 0.01722678987 | K13: 0 | L13: 0.001183868006 | M13: 0.1490315235 | N13: 56782.78833 | O13: 31425.53921 | P13: 0 | Q13: 26159.84008 | R13: 203.4770547 | S13: 11969.15963 | T13: 0 | U13: 0 | V13: 126540.8043
A14: 2004 | B14: 1 | C14: 1 | D14: 12 | E14: 0.0644777121 | F14: 0.0411874738 | G14: 0 | H14: 0.02799936699 | I14: 0.0003308911419 | J14: 0.01728194291 | K14: 0 | L14: 0.001194529563 | M14: 0.1524719165 | N14: 59067.023 | O14: 32045.08665 | P14: 0 | Q14: 26239.30872 | R14: 203.4770547 | S14: 12011.9471 | T14: 0 | U14: 0 | V14: 129566.8425
A15: 2004 | B15: 1 | C15: 1 | D15: 13 | E15: 0.06145495523 | F15: 0.04206169938 | G15: 0 | H15: 0.0286327501 | I15: 0.0003308911419 | J15: 0.01717957533 | K15: 0 | L15: 0.001184520754 | M15: 0.1508443919 | N15: 56297.92274 | O15: 32725.2603 | P15: 0 | Q15: 26832.87696 | R15: 203.4770547 | S15: 11938.88882 | T15: 0 | U15: 0 | V15: 127998.4259
A16: 2004 | B16: 1 | C16: 1 | D16: 14 | E16: 0.05812588287 | F16: 0.04379015536 | G16: 0 | H16: 0.02752527897 | I16: 0.0003308911419 | J16: 0.01746015258 | K16: 0 | L16: 0.001148837175 | M16: 0.1483811981 | N16: 53248.21165 | O16: 34070.05075 | P16: 0 | Q16: 25795.02219 | R16: 203.4770547 | S16: 12098.0994 | T16: 0 | U16: 0 | V16: 125414.8611
A17: 2004 | B17: 1 | C17: 1 | D17: 15 | E17: 0.05958989511 | F17: 0.04191962185 | G17: 0 | H17: 0.02660969731 | I17: 0.0003308911419 | J17: 0.01763623394 | K17: 0 | L17: 0.001166026216 | M17: 0.1472523656 | N17: 54589.37036 | O17: 32614.71974 | P17: 0 | Q17: 24936.99458 | R17: 203.4770547 | S17: 12223.74859 | T17: 0 | U17: 0 | V17: 124568.3103
A18: 2004 | B18: 1 | C18: 1 | D18: 16 | E18: 0.06092753759 | F18: 0.04022137606 | G18: 0 | H18: 0.02541584563 | I18: 0.0003308911419 | J18: 0.01774915897 | K18: 0 | L18: 0.001178863602 | M18: 0.145823673 | N18: 55814.7637 | O18: 31293.43371 | P18: 0 | Q18: 23818.18919 | R18: 203.4770547 | S18: 12305.50941 | T18: 0 | U18: 0 | V18: 123435.3731
A19: 2004 | B19: 1 | C19: 1 | D19: 17 | E19: 0.06582876519 | F19: 0.03868360214 | G19: 0.0006942212721 | H19: 0.02600601873 | I19: 0.0003456029701 | J19: 0.01754484733 | K19: 8.653693409e-06 | L19: 0.001190177907 | M19: 0.1503018892 | N19: 60304.70159 | O19: 30096.9996 | P19: 322.3540701 | Q19: 24371.26363 | R19: 212.5238955 | S19: 12180.03775 | T19: 5.937972356 | U19: 0 | V19: 127493.8185
A20: 2004 | B20: 1 | C20: 1 | D20: 18 | E20: 0.07019971891 | F20: 0.04526947991 | G20: 0.002776885088 | H20: 0.02499926826 | I20: 0.0003897384548 | J20: 0.01736835802 | K20: 3.461477364e-05 | L20: 0.001229342811 | M20: 0.1622674062 | N20: 64308.86389 | O20: 35221.0095 | P20: 1289.41628 | Q20: 23427.79814 | R20: 239.6644179 | S20: 12090.76023 | T20: 23.75188942 | U20: 0 | V20: 136601.2644
A21: 2004 | B21: 1 | C21: 1 | D21: 19 | E21: 0.07206284716 | F21: 0.05042632136 | G21: 0.002776885088 | H21: 0.01941393854 | I21: 0.0003897384548 | J21: 0.01724858836 | K21: 3.461477364e-05 | L21: 0.001265679138 | M21: 0.1636186129 | N21: 66015.64653 | O21: 39233.18641 | P21: 1289.41628 | Q21: 18193.56585 | R21: 239.6644179 | S21: 12036.51845 | T21: 23.75188942 | U21: 0 | V21: 137031.7498
A22: 2004 | B22: 1 | C22: 1 | D22: 20 | E22: 0.07049044084 | F22: 0.05309257132 | G22: 0.002776885088 | H22: 0.015148964 | I22: 0.0003897384548 | J22: 0.01722042934 | K22: 3.461477364e-05 | L22: 0.001267202218 | M22: 0.160420846 | N22: 64575.1897 | O22: 41307.60864 | P22: 1289.41628 | Q22: 14196.69035 | R22: 239.6644179 | S22: 12019.20186 | T22: 23.75188942 | U22: 0 | V22: 133651.5231
A23: 2004 | B23: 1 | C23: 1 | D23: 21 | E23: 0.06836023115 | F23: 0.05109596208 | G23: 0.002776885088 | H23: 0.0173429862 | I23: 0.0003897384548 | J23: 0.01718765397 | K23: 3.461477364e-05 | L23: 0.001268290132 | M23: 0.1584563618 | N23: 62623.73794 | O23: 39754.18692 | P23: 1289.41628 | Q23: 16252.79491 | R23: 239.6644179 | S23: 11998.60117 | T23: 23.75188942 | U23: 0 | V23: 132182.1535
A24: 2004 | B24: 1 | C24: 1 | D24: 22 | E24: 0.06596496549 | F24: 0.05059565702 | G24: 0.002776885088 | H24: 0.01689626545 | I24: 0.0003897384548 | J24: 0.01699828251 | K24: 3.461477364e-05 | L24: 0.001251753839 | M24: 0.1549081626 | N24: 60429.47256 | O24: 39364.93462 | P24: 1289.41628 | Q24: 15834.15531 | R24: 239.6644179 | S24: 11864.73617 | T24: 23.75188942 | U24: 0 | V24: 129046.1312
A25: 2004 | B25: 1 | C25: 1 | D25: 23 | E25: 0.05924549521 | F25: 0.04834925359 | G25: 0.002776885088 | H25: 0.01403407261 | I25: 0.0003897384548 | J25: 0.01658487303 | K25: 3.461477364e-05 | L25: 0.001221074664 | M25: 0.1426360074 | N25: 54273.87099 | O25: 37617.16555 | P25: 1289.41628 | Q25: 13151.88176 | R25: 239.6644179 | S25: 11576.0247 | T25: 23.75188942 | U25: 0 | V25: 118171.7756
A26: 2004 | B26: 1 | C26: 1 | D26: 24 | E26: 0.05078851552 | F26: 0.04856481371 | G26: 0.002776885088 | H26: 0.0154289562 | I26: 0.0003897384548 | J26: 0.01595334579 | K26: 3.461477364e-05 | L26: 0.001221944996 | M26: 0.1351588145 | N26: 46526.56425 | O26: 37784.87778 | P26: 1289.41628 | Q26: 14459.08206 | R26: 239.6644179 | S26: 11166.02125 | T26: 23.75188942 | U26: 0 | V26: 111489.3779
A27: 2004 | B27: 1 | C27: 2 | D27: 1 | E27: 0.04580954426 | F27: 0.04332630682 | G27: 0.002776885088 | H27: 0.01411059756 | I27: 0.0003897384548 | J27: 0.01586906102 | K27: 3.461477364e-05 | L27: 0.001224338406 | M27: 0.1235410864 | N27: 41965.40659 | O27: 33709.16272 | P27: 1289.41628 | Q27: 13223.5963 | R27: 239.6644179 | S27: 11112.78194 | T27: 23.75188942 | U27: 0 | V27: 101563.7801
A28: 2004 | B28: 1 | C28: 2 | D28: 2 | E28: 0.04118859663 | F28: 0.04256719489 | G28: 0.002776885088 | H28: 0.01375163748 | I28: 0.0003897384548 | J28: 0.0155010594 | K28: 3.461477364e-05 | L28: 0.001215417512 | M28: 0.1174251442 | N28: 37732.22879 | O28: 33118.55093 | P28: 1289.41628 | Q28: 12887.20068 | R28: 239.6644179 | S28: 10867.73662 | T28: 23.75188942 | U28: 0 | V28: 96158.5496
A29: 2004 | B29: 1 | C29: 2 | D29: 3 | E29: 0.03758572149 | F29: 0.04239768516 | G29: 0.002776885088 | H29: 0.01486630735 | I29: 0.0003897384548 | J29: 0.01544519303 | K29: 3.461477364e-05 | L29: 0.001218463671 | M29: 0.114714609 | N29: 34431.69126 | O29: 32986.66729 | P29: 1289.41628 | Q29: 13931.80168 | R29: 239.6644179 | S29: 10833.39707 | T29: 23.75188942 | U29: 0 | V29: 93736.38989
A30: 2004 | B30: 1 | C30: 2 | D30: 4 | E30: 0.03537421695 | F30: 0.04294129657 | G30: 0.002776885088 | H30: 0.01426352146 | I30: 0.0003897384548 | J30: 0.01536400022 | K30: 3.461477364e-05 | L30: 0.001228690062 | M30: 0.1123729636 | N30: 32405.76656 | O30: 33409.61322 | P30: 1289.41628 | Q30: 13366.9073 | R30: 239.6644179 | S30: 10787.2603 | T30: 23.75188942 | U30: 0 | V30: 91522.37997
A31: 2004 | B31: 1 | C31: 2 | D31: 5 | E31: 0.03480532129 | F31: 0.04242771344 | G31: 0.002776885088 | H31: 0.01469705984 | I31: 0.0003897384548 | J31: 0.01547628569 | K31: 3.461477364e-05 | L31: 0.001225208738 | M31: 0.1118328273 | N31: 31884.61014 | O31: 33010.03019 | P31: 1289.41628 | Q31: 13773.19318 | R31: 239.6644179 | S31: 10857.99618 | T31: 23.75188942 | U31: 0 | V31: 91078.66228
A32: 2004 | B32: 1 | C32: 2 | D32: 6 | E32: 0.03612525915 | F32: 0.04346060674 | G32: 0.002776885088 | H32: 0.01414400205 | I32: 0.0003897384548 | J32: 0.01524069684 | K32: 3.461477364e-05 | L32: 0.00122542632 | M32: 0.1133972294 | N32: 33093.78456 | O32: 33813.65207 | P32: 1289.41628 | Q32: 13254.90096 | R32: 239.6644179 | S32: 10704.97632 | T32: 23.75188942 | U32: 0 | V32: 92420.1465
A33: 2004 | B33: 1 | C33: 2 | D33: 7 | E33: 0.03779131088 | F33: 0.04508149151 | G33: 0.002776885088 | H33: 0.0152908825 | I33: 0.0003897384548 | J33: 0.01676515689 | K33: 3.461477364e-05 | L33: 0.001221727413 | M33: 0.1193518075 | N33: 34620.02847 | O33: 35074.74891 | P33: 1289.41628 | Q33: 14329.68776 | R33: 239.6644179 | S33: 11693.65543 | T33: 23.75188942 | U33: 0 | V33: 97270.95317
A34: 2004 | B34: 1 | C34: 2 | D34: 8 | E34: 0.04026220747 | F34: 0.04897206542 | G34: 0.002082664366 | H34: 0.01595224947 | I34: 0.0003750266383 | J34: 0.01988064801 | K34: 2.596108708e-05 | L34: 0.001378387028 | M34: 0.1289292095 | N34: 36883.57817 | O34: 38101.73179 | P34: 967.0624654 | Q34: 14949.48078 | R34: 230.6175842 | S34: 13820.95012 | T34: 17.81392177 | U34: 0 | V34: 104971.2348
A35: 2004 | B35: 1 | C35: 2 | D35: 9 | E35: 0.04773727099 | F35: 0.04544828417 | G35: 0 | H35: 0.01739455719 | I35: 0.0003308911419 | J35: 0.02425960266 | K35: 0 | L35: 0.001406020043 | M35: 0.1365766262 | N35: 43731.36689 | O35: 35360.12457 | P35: 0 | Q35: 16301.12411 | R35: 203.4770547 | S35: 16685.76633 | T35: 0 | U35: 0 | V35: 112281.859
A36: 2004 | B36: 1 | C36: 2 | D36: 10 | E36: 0.05401672989 | F36: 0.04261338124 | G36: 0 | H36: 0.01916256628 | I36: 0.0003308911419 | J36: 0.02423738007 | K36: 0 | L36: 0.001340310038 | M36: 0.1417012587 | N36: 49483.88091 | O36: 33154.48529 | P36: 0 | Q36: 17957.995 | R36: 203.4770547 | S36: 16628.59948 | T36: 0 | U36: 0 | V36: 117428.4377
A37: 2004 | B37: 1 | C37: 2 | D37: 11 | E37: 0.0548394817 | F37: 0.04440765843 | G37: 0 | H37: 0.02021568839 | I37: 0.0003308911419 | J37: 0.02457102722 | K37: 0 | L37: 0.001298534141 | M37: 0.145663281 | N37: 50237.59097 | O37: 34550.48661 | P37: 0 | Q37: 18944.91718 | R37: 203.4770547 | S37: 16818.35118 | T37: 0 | U37: 0 | V37: 120754.823
A38: 2004 | B38: 1 | C38: 2 | D38: 12 | E38: 0.06095487348 | F38: 0.04228504687 | G38: 0 | H38: 0.02024524881 | I38: 0.0003308911419 | J38: 0.02393286602 | K38: 0 | L38: 0.001276993444 | M38: 0.1490259198 | N38: 55839.80568 | O38: 32899.03133 | P38: 0 | Q38: 18972.61942 | R38: 203.4770547 | S38: 16389.46497 | T38: 0 | U38: 0 | V38: 124304.3984
A39: 2004 | B39: 1 | C39: 2 | D39: 13 | E39: 0.05615690056 | F39: 0.04238074388 | G39: 0 | H39: 0.02322736091 | I39: 0.0003308911419 | J39: 0.02404204852 | K39: 0 | L39: 0.001297228644 | M39: 0.1474351737 | N39: 51444.45777 | O39: 32973.48647 | P39: 0 | Q39: 21767.27403 | R39: 203.4770547 | S39: 16473.60216 | T39: 0 | U39: 0 | V39: 122862.2975
A40: 2004 | B40: 1 | C40: 2 | D40: 14 | E40: 0.05760562414 | F40: 0.0403476519 | G40: 0 | H40: 0.02251168967 | I40: 0.0003308911419 | J40: 0.02294129643 | K40: 0 | L40: 0.001290483577 | M40: 0.1450276369 | N40: 52771.61077 | O40: 31391.68009 | P40: 0 | Q40: 21096.59034 | R40: 203.4770547 | S40: 15753.59475 | T40: 0 | U40: 0 | V40: 121216.953
A41: 2004 | B41: 1 | C41: 2 | D41: 15 | E41: 0.05606374893 | F41: 0.04016753861 | G41: 0 | H41: 0.02375305861 | I41: 0.0003308911419 | J41: 0.02241934578 | K41: 0 | L41: 0.001189742742 | M41: 0.1439243258 | N41: 51359.12302 | O41: 31251.54656 | P41: 0 | Q41: 22259.92603 | R41: 203.4770547 | S41: 15348.76978 | T41: 0 | U41: 0 | V41: 120422.8425
A42: 2004 | B42: 1 | C42: 2 | D42: 16 | E42: 0.05971594704 | F42: 0.03803176981 | G42: 0 | H42: 0.0220031786 | I42: 0.0003308911419 | J42: 0.02125877935 | K42: 0 | L42: 0.001187349331 | M42: 0.1425279153 | N42: 54704.84455 | O42: 29589.85455 | P42: 0 | Q42: 20620.04461 | R42: 203.4770547 | S42: 14592.7049 | T42: 0 | U42: 0 | V42: 119710.9257
A43: 2004 | B43: 1 | C43: 2 | D43: 17 | E43: 0.06041109436 | F43: 0.03873984562 | G43: 0.0006942212721 | H43: 0.02601927471 | I43: 0.0003456029701 | J43: 0.01948670972 | K43: 8.653693409e-06 | L43: 0.001199533967 | M43: 0.1469049363 | N43: 55341.65813 | O43: 30140.75871 | P43: 322.3540701 | Q43: 24383.68632 | R43: 212.5238955 | S43: 13448.5663 | T43: 5.937972356 | U43: 0 | V43: 123855.4854
A44: 2004 | B44: 1 | C44: 2 | D44: 18 | E44: 0.06824024976 | F44: 0.04065993419 | G44: 0.002776885088 | H44: 0.02407603297 | I44: 0.0003897384548 | J44: 0.02117732694 | K44: 3.461477364e-05 | L44: 0.001245226355 | M44: 0.1586000085 | N44: 62513.82487 | O44: 31634.64505 | P44: 1289.41628 | Q44: 22562.59802 | R44: 239.6644179 | S44: 14577.37804 | T44: 23.75188942 | U44: 0 | V44: 132841.2786
A45: 2004 | B45: 1 | C45: 2 | D45: 19 | E45: 0.06842373452 | F45: 0.04636261264 | G45: 0.002776885088 | H45: 0.01826375362 | I45: 0.0003897384548 | J45: 0.0224014996 | K45: 3.461477364e-05 | L45: 0.001267854966 | M45: 0.1599206937 | N45: 62681.91238 | O45: 36071.49947 | P45: 1289.41628 | Q45: 17115.68229 | R45: 239.6644179 | S45: 15387.95002 | T45: 23.75188942 | U45: 0 | V45: 132809.8768
A46: 2004 | B46: 1 | C46: 2 | D46: 20 | E46: 0.06650800776 | F46: 0.04770675507 | G46: 0.002776885088 | H46: 0.01460257065 | I46: 0.0003897384548 | J46: 0.02350050006 | K46: 3.461477364e-05 | L46: 0.001276123112 | M46: 0.156795195 | N46: 60926.94508 | O46: 37117.28248 | P46: 1289.41628 | Q46: 13684.64364 | R46: 239.6644179 | S46: 16107.80886 | T46: 23.75188942 | U46: 0 | V46: 129389.5127
A47: 2004 | B47: 1 | C47: 2 | D47: 21 | E47: 0.06427984829 | F47: 0.04661724024 | G47: 0.002776885088 | H47: 0.01557592399 | I47: 0.0003897384548 | J47: 0.02392819842 | K47: 3.461477364e-05 | L47: 0.001272641788 | M47: 0.154875091 | N47: 58885.76306 | O47: 36269.60736 | P47: 1289.41628 | Q47: 14596.81136 | R47: 239.6644179 | S47: 16383.60136 | T47: 23.75188942 | U47: 0 | V47: 127688.6157
A48: 2004 | B48: 1 | C48: 2 | D48: 22 | E48: 0.06063996038 | F48: 0.04725436523 | G48: 0.002776885088 | H48: 0.01534740564 | I48: 0.0003897384548 | J48: 0.02369104953 | K48: 3.461477364e-05 | L48: 0.001273076953 | M48: 0.1514070961 | N48: 55551.31871 | O48: 36765.30966 | P48: 1289.41628 | Q48: 14382.65783 | R48: 239.6644179 | S48: 16229.70874 | T48: 23.75188942 | U48: 0 | V48: 124481.8275
A49: 2004 | B49: 1 | C49: 2 | D49: 23 | E49: 0.05750396011 | F49: 0.04175317795 | G49: 0.002776885088 | H49: 0.01133532792 | I49: 0.0003897384548 | J49: 0.02434442986 | K49: 3.461477364e-05 | L49: 0.001274164867 | M49: 0.139412299 | N49: 52678.47794 | O49: 32485.2214 | P49: 1289.41628 | Q49: 10622.78189 | R49: 239.6644179 | S49: 16655.19244 | T49: 23.75188942 | U49: 0 | V49: 113994.5063
A50: 2004 | B50: 1 | C50: 2 | D50: 24 | E50: 0.05066899885 | F50: 0.04293939597 | G50: 0.002776885088 | H50: 0.01065992516 | I50: 0.0003897384548 | J50: 0.02337865217 | K50: 3.461477364e-05 | L50: 0.001255887912 | M50: 0.1321040984 | N50: 46417.0769 | O50: 33408.13451 | P50: 1289.41628 | Q50: 9989.835389 | R50: 239.6644179 | S50: 16015.43762 | T50: 23.75188942 | U50: 0 | V50: 107383.317
A51: 2004 | B51: 1 | C51: 3 | D51: 1 | E51: 0.04064406078 | F51: 0.04751424392 | G51: 0.002776885088 | H51: 0.01085113033 | I51: 0.0003897384548 | J51: 0.02334477184 | K51: 3.461477364e-05 | L51: 0.001256758243 | M51: 0.1268122034 | N51: 37233.38802 | O51: 36967.50305 | P51: 1289.41628 | Q51: 10169.02128 | R51: 239.6644179 | S51: 15993.97712 | T51: 23.75188942 | U51: 0 | V51: 101916.7221
A52: 2004 | B52: 1 | C52: 3 | D52: 2 | E52: 0.03491333888 | F52: 0.04575485897 | G52: 0.002776885088 | H52: 0.01244241755 | I52: 0.0003897384548 | J52: 0.02211706017 | K52: 3.461477364e-05 | L52: 0.001247619766 | M52: 0.1196765337 | N52: 31983.56337 | O52: 35598.64893 | P52: 1289.41628 | Q52: 11660.27916 | R52: 239.6644179 | S52: 15189.87457 | T52: 23.75188942 | U52: 0 | V52: 95985.19863
A53: 2004 | B53: 1 | C53: 3 | D53: 3 | E53: 0.03257758523 | F53: 0.0455594145 | G53: 0.002776885088 | H53: 0.01198408326 | I53: 0.0003897384548 | J53: 0.01918690857 | K53: 3.461477364e-05 | L53: 0.001254799998 | M53: 0.1137640299 | N53: 29843.816 | O53: 35446.58729 | P53: 1289.41628 | Q53: 11230.75606 | R53: 239.6644179 | S53: 13289.58882 | T53: 23.75188942 | U53: 0 | V53: 91363.58076
A54: 2004 | B54: 1 | C54: 3 | D54: 4 | E54: 0.03216515291 | F54: 0.04416508177 | G54: 0.002776885088 | H54: 0.01253864825 | I54: 0.0003897384548 | J54: 0.01890479897 | K54: 3.461477364e-05 | L54: 0.001244573607 | M54: 0.1122194938 | N54: 29465.99321 | O54: 34361.75472 | P54: 1289.41628 | Q54: 11750.46073 | R54: 239.6644179 | S54: 13099.53498 | T54: 23.75188942 | U54: 0 | V54: 90230.57623
A55: 2004 | B55: 1 | C55: 3 | D55: 5 | E55: 0.03232246206 | F55: 0.04390749197 | G55: 0.002776885088 | H55: 0.01134036948 | I55: 0.0003897384548 | J55: 0.01830003804 | K55: 3.461477364e-05 | L55: 0.001236087878 | M55: 0.1103076878 | N55: 29610.10166 | O55: 34161.34215 | P55: 1289.41628 | Q55: 10627.50654 | R55: 239.6644179 | S55: 12700.85031 | T55: 23.75188942 | U55: 0 | V55: 88652.63325
A56: 2004 | B56: 1 | C56: 3 | D56: 6 | E56: 0.0330141457 | F56: 0.04439941004 | G56: 0.002776885088 | H56: 0.01100660559 | I56: 0.0003897384548 | J56: 0.01794596125 | K56: 3.461477364e-05 | L56: 0.001271553874 | M56: 0.1108389148 | N56: 30243.74221 | O56: 34544.06912 | P56: 1289.41628 | Q56: 10314.72327 | R56: 239.6644179 | S56: 12493.71466 | T56: 23.75188942 | U56: 0 | V56: 89149.08185
A57: 2004 | B57: 1 | C57: 3 | D57: 7 | E57: 0.03593793786 | F57: 0.04562034497 | G57: 0.002776885088 | H57: 0.0120286496 | I57: 0.0003897384548 | J57: 0.01795009118 | K57: 3.461477364e-05 | L57: 0.001304844042 | M57: 0.116043106 | N57: 32922.18245 | O57: 35493.99302 | P57: 1289.41628 | Q57: 11272.52093 | R57: 239.6644179 | S57: 12518.04226 | T57: 23.75188942 | U57: 0 | V57: 93759.57125
A58: 2004 | B58: 1 | C58: 3 | D58: 8 | E58: 0.03875948699 | F58: 0.04813074303 | G58: 0.002082664366 | H58: 0.01381034802 | I58: 0.0003750266383 | J58: 0.01907060999 | K58: 2.596108708e-05 | L58: 0.001320727586 | M58: 0.1235755677 | N58: 35506.95946 | O58: 37447.1578 | P58: 967.0624654 | Q58: 12942.22064 | R58: 230.6175842 | S58: 13256.84157 | T58: 17.81392177 | U58: 0 | V58: 100368.6734
A59: 2004 | B59: 1 | C59: 3 | D59: 9 | E59: 0.04736686516 | F59: 0.0452698166 | G59: 0 | H59: 0.02145290421 | I59: 0.0003308911419 | J59: 0.01986594072 | K59: 0 | L59: 0.001317463844 | M59: 0.1356038817 | N59: 43392.0439 | O59: 35221.27146 | P59: 0 | Q59: 20104.36082 | R59: 203.4770547 | S59: 13771.78114 | T59: 0 | U59: 0 | V59: 112692.9344
A60: 2004 | B60: 1 | C60: 3 | D60: 10 | E60: 0.05498186147 | F60: 0.03889111737 | G60: 0 | H60: 0.02391365579 | I60: 0.0003308911419 | J60: 0.01961998046 | K60: 0 | L60: 0.001270248377 | M60: 0.1390077546 | N60: 50368.02285 | O60: 30258.45266 | P60: 0 | Q60: 22410.42797 | R60: 203.4770547 | S60: 13581.18137 | T60: 0 | U60: 0 | V60: 116821.5619
A61: 2004 | B61: 1 | C61: 3 | D61: 11 | E61: 0.05932691982 | F61: 0.03883590183 | G61: 0 | H61: 0.02460254302 | I61: 0.0003308911419 | J61: 0.01982850433 | K61: 0 | L61: 0.001251101091 | M61: 0.1441758612 | N61: 54348.4628 | O61: 30215.49331 | P61: 0 | Q61: 23056.0113 | R61: 203.4770547 | S61: 13704.29911 | T61: 0 | U61: 0 | V61: 121527.7436
A62: 2004 | B62: 1 | C62: 3 | D62: 12 | E62: 0.05929996339 | F62: 0.03965297565 | G62: 0 | H62: 0.02792227506 | I62: 0.0003308911419 | J62: 0.02056323209 | K62: 0 | L62: 0.001253276919 | M62: 0.1490226143 | N62: 54323.76844 | O62: 30851.20119 | P62: 0 | Q62: 26167.06285 | R62: 203.4770547 | S62: 14183.37578 | T62: 0 | U62: 0 | V62: 125728.8853
A63: 2004 | B63: 1 | C63: 3 | D63: 13 | E63: 0.05647636063 | F63: 0.04046557875 | G63: 0 | H63: 0.02683199142 | I63: 0.0003308911419 | J63: 0.02072674865 | K63: 0 | L63: 0.001256105495 | M63: 0.1460876761 | N63: 51737.11014 | O63: 31483.4307 | P63: 0 | Q63: 25145.31514 | R63: 203.4770547 | S63: 14291.52028 | T63: 0 | U63: 0 | V63: 122860.8533
A64: 2004 | B64: 1 | C64: 3 | D64: 14 | E64: 0.0574017718 | F64: 0.04011031231 | G64: 0 | H64: 0.02600666122 | I64: 0.0003308911419 | J64: 0.02035933465 | K64: 0 | L64: 0.001258934071 | M64: 0.1454679052 | N64: 52584.86483 | O64: 31207.02279 | P64: 0 | Q64: 24371.86573 | R64: 203.4770547 | S64: 14054.49556 | T64: 0 | U64: 0 | V64: 122421.726
A65: 2004 | B65: 1 | C65: 3 | D65: 15 | E65: 0.0576966843 | F65: 0.03827820216 | G65: 0 | H65: 0.02587820222 | I65: 0.0003308911419 | J65: 0.01991819856 | K65: 0 | L65: 0.001263720893 | M65: 0.1433658993 | N65: 52855.02955 | O65: 29781.58629 | P65: 0 | Q65: 24251.48174 | R65: 203.4770547 | S65: 13770.81563 | T65: 0 | U65: 0 | V65: 120862.3903
A66: 2004 | B66: 1 | C66: 3 | D66: 16 | E66: 0.05599929598 | F66: 0.0385139967 | G66: 0 | H66: 0.02749697303 | I66: 0.0003308911419 | J66: 0.01902215398 | K66: 0 | L66: 0.001277863775 | M66: 0.1426411746 | N66: 51300.07868 | O66: 29965.0415 | P66: 0 | Q66: 25768.49558 | R66: 203.4770547 | S66: 13197.47261 | T66: 0 | U66: 0 | V66: 120434.5654
A67: 2004 | B67: 1 | C67: 3 | D67: 17 | E67: 0.0621112627 | F67: 0.03734182115 | G67: 0.0006942212721 | H67: 0.02684720627 | I67: 0.0003456029701 | J67: 0.01876057608 | K67: 8.653693409e-06 | L67: 0.001293312154 | M67: 0.1474026563 | N67: 56899.15574 | O67: 29053.05385 | P67: 322.3540701 | Q67: 25159.57358 | R67: 212.5238955 | S67: 13037.45859 | T67: 5.937972356 | U67: 0 | V67: 124690.0577
A68: 2004 | B68: 1 | C68: 3 | D68: 18 | E68: 0.06856649409 | F68: 0.04137941415 | G68: 0.002776885088 | H68: 0.02299037641 | I68: 0.0003897384548 | J68: 0.01894514421 | K68: 3.461477364e-05 | L68: 0.001331389143 | M68: 0.1564140563 | N68: =E68*1000000*$N$8826 -> 62812.6922 | O68: =F68*1000000*$O$8826 -> 32194.42199 | P68: =G68*1000000*$P$8826 -> 1289.41628 | Q68: =H68*1000000*$Q$8826 -> 21545.18653 | R68: =I68*1000000*$R$8826 -> 239.6644179 | S68: =(J68+L68)*1000000*$S$8826 -> 13182.20491 | T68: =K68*1000000*$T$8826 -> 23.75188942 | U68: =L68*1000000*$U$8826 -> 0 | V68: =SUM(N68:U68) -> 131287.3382
A69: 2004 | B69: 1 | C69: 3 | D69: 19 | E69: 0.06704820131 | F69: 0.04906375137 | G69: 0.002776885088 | H69: 0.02111688487 | I69: 0.0003897384548 | J69: 0.01906470066 | K69: 3.461477364e-05 | L69: 0.001372512292 | M69: 0.1608672888 | N69: 61421.80794 | O69: 38173.0662 | P69: 1289.41628 | Q69: 19789.46387 | R69: 239.6644179 | S69: 13286.66612 | T69: 23.75188942 | U69: 0 | V69: 134223.8367
A70: 2004 | B70: 1 | C70: 3 | D70: 20 | E70: 0.06495046322 | F70: 0.05051940574 | G70: 0.002776885088 | H70: 0.01984716698 | I70: 0.0003897384548 | J70: 0.01886491394 | K70: 3.461477364e-05 | L70: 0.001378822193 | M70: 0.1587620104 | N70: 59500.1029 | O70: 39305.60884 | P70: 1289.41628 | Q70: 18599.56127 | R70: 239.6644179 | S70: 13160.88273 | T70: 23.75188942 | U70: 0 | V70: 132118.9883
A71: 2004 | B71: 1 | C71: 3 | D71: 21 | E71: 0.06233282306 | F71: 0.04906567147 | G71: 0.002776885088 | H71: 0.01873481656 | I71: 0.0003897384548 | J71: 0.01882592122 | K71: 3.461477364e-05 | L71: 0.001387525505 | M71: 0.1535479961 | N71: 57102.12372 | O71: 38174.5601 | P71: 1289.41628 | Q71: 17557.13391 | R71: 239.6644179 | S71: 13141.19095 | T71: 23.75188942 | U71: 0 | V71: 127527.8413
A72: 2004 | B72: 1 | C72: 3 | D72: 22 | E72: 0.05980422059 | F72: 0.04867023528 | G72: 0.002776885088 | H72: 0.01909618764 | I72: 0.0003897384548 | J72: 0.0186318164 | K72: 3.461477364e-05 | L72: 0.001389701333 | M72: 0.1507933996 | N72: 54785.71057 | O72: 37866.89891 | P72: 1289.41628 | Q72: 17895.78897 | R72: 239.6644179 | S72: 13016.41384 | T72: 23.75188942 | U72: 0 | V72: 125117.6449
A73: 2004 | B73: 1 | C73: 3 | D73: 23 | E73: 0.05906654256 | F73: 0.04478903407 | G73: 0.002776885088 | H73: 0.01527221738 | I73: 0.0003897384548 | J73: 0.01824053714 | K73: 3.461477364e-05 | L73: 0.001382956266 | M73: 0.1419525257 | N73: 54109.93527 | O73: 34847.20827 | P73: 1289.41628 | Q73: 14312.19595 | R73: 239.6644179 | S73: 12757.64977 | T73: 23.75188942 | U73: 0 | V73: 117579.8219
A74: 2004 | B74: 1 | C74: 3 | D74: 24 | E74: 0.05236818703 | F74: 0.04330409498 | G74: 0.002776885088 | H74: 0.01242044616 | I74: 0.0003897384548 | J74: 0.01823804643 | K74: 3.461477364e-05 | L74: 0.001379257359 | M74: 0.1309112703 | N74: 47973.6766 | O74: 33691.88124 | P74: 1289.41628 | Q74: 11639.68891 | R74: 239.6644179 | S74: 12753.62577 | T74: 23.75188942 | U74: 0 | V74: 107611.7051
A75: 2004 | B75: 1 | C75: 4 | D75: 1 | E75: 0.03638976643 | F75: 0.04329872088 | G75: 0.002776885088 | H75: 0.009618348116 | I75: 0.0003897384548 | J75: 0.01799881987 | K75: 3.461477364e-05 | L75: 0.00139252991 | M75: 0.1118994235 | N75: 33336.09554 | O75: 33687.70003 | P75: 1289.41628 | Q75: 9013.732552 | R75: 239.6644179 | S75: 12606.72827 | T75: 23.75188942 | U75: 0 | V75: 90197.08898
A76: 2004 | B76: 1 | C76: 4 | D76: 2 | E76: 0.03296866542 | F76: 0.04187690389 | G76: 0.002776885088 | H76: 0.007867193472 | I76: 0.0003897384548 | J76: 0.01810137242 | K76: 3.461477364e-05 | L76: 0.001398839811 | M76: 0.1054142133 | N76: 30202.07845 | O76: 32581.48388 | P76: 1289.41628 | Q76: 7372.656618 | R76: 239.6644179 | S76: 12677.50206 | T76: 23.75188942 | U76: 0 | V76: 84386.55359
A77: 2004 | B77: 1 | C77: 4 | D77: 3 | E77: 0.02759087285 | F77: 0.04445889532 | G77: 0.002776885088 | H77: 0.006603440274 | I77: 0.0003897384548 | J77: 0.01821811591 | K77: 3.461477364e-05 | L77: 0.001388613419 | M77: 0.1014611761 | N77: 25275.56683 | O77: 34590.35045 | P77: 1289.41628 | Q77: 6188.343761 | R77: 239.6644179 | S77: 12746.75109 | T77: 23.75188942 | U77: 0 | V77: 80353.84472
A78: 2004 | B78: 1 | C78: 4 | D78: 4 | E78: 0.02727566759 | F78: 0.04375037159 | G78: 0.002776885088 | H78: 0.006352573515 | I78: 0.0003897384548 | J78: 0.01808772999 | K78: 3.461477364e-05 | L78: 0.001399274976 | M78: 0.100066856 | N78: 24986.81222 | O78: 34039.0978 | P78: 1289.41628 | Q78: 5953.246648 | R78: 239.6644179 | S78: 12668.91573 | T78: 23.75188942 | U78: 0 | V78: 79200.90499
A79: 2004 | B79: 1 | C79: 4 | D79: 5 | E79: 0.02679992288 | F79: 0.04232606438 | G79: 0.002776885088 | H79: 0.007782439133 | I79: 0.0003897384548 | J79: 0.01736481582 | K79: 3.461477364e-05 | L79: 0.001401450804 | M79: 0.09887593134 | N79: 24550.98995 | O79: 32930.94418 | P79: 1289.41628 | Q79: 7293.229992 | R79: 239.6644179 | S79: 12200.34843 | T79: 23.75188942 | U79: 0 | V79: 78528.34514
A80: 2004 | B80: 1 | C80: 4 | D80: 6 | E80: 0.02832219122 | F80: 0.04256911647 | G80: 0.002776885088 | H80: 0.006879040304 | I80: 0.0003897384548 | J80: 0.0171170556 | K80: 3.461477364e-05 | L80: 0.001409283785 | M80: 0.0994979257 | N80: 25945.51615 | O80: 33120.04598 | P80: 1289.41628 | Q80: 6446.619395 | R80: 239.6644179 | S80: 12044.36664 | T80: 23.75188942 | U80: 0 | V80: 79109.38075
A81: 2004 | B81: 1 | C81: 4 | D81: 7 | E81: 0.03018053244 | F81: 0.04216910278 | G81: 0.002776885088 | H81: 0.008570949625 | I81: 0.0003897384548 | J81: 0.0173671354 | K81: 3.461477364e-05 | L81: 0.001396011234 | M81: 0.1028849698 | N81: 27647.91345 | O81: 32808.82336 | P81: 1289.41628 | Q81: 8032.174206 | R81: 239.6644179 | S81: 12198.32006 | T81: 23.75188942 | U81: 0 | V81: 82240.06366
A82: 2004 | B82: 1 | C82: 4 | D82: 8 | E82: 0.03422286442 | F82: 0.04324780662 | G82: 0.002082664366 | H82: 0.008949272357 | I82: 0.0003750266383 | J82: 0.01770683773 | K82: 2.596108708e-05 | L82: 0.00139492332 | M82: 0.1080053565 | N82: 31351.03052 | O82: 33648.08722 | P82: 967.0624654 | Q82: 8386.715326 | R82: 230.6175842 | S82: 12418.46049 | T82: 17.81392177 | U82: 0 | V82: 87019.78752
A83: 2004 | B83: 1 | C83: 4 | D83: 9 | E83: 0.04054790468 | F83: 0.04010679004 | G83: 0 | H83: 0.01464966497 | I83: 0.0003308911419 | J83: 0.01821118018 | K83: 0 | L83: 0.00138404418 | M83: 0.1152304752 | N83: 37145.30092 | O83: 31204.28236 | P83: 0 | Q83: 13728.77759 | R83: 203.4770547 | S83: 12739.27146 | T83: 0 | U83: 0 | V83: 95021.10938
A84: 2004 | B84: 1 | C84: 4 | D84: 10 | E84: 0.04810161799 | F84: 0.03252219604 | G84: 0 | H84: 0.01883151717 | I84: 0.0003308911419 | J84: 0.01810848965 | K84: 0 | L84: 0.001335958382 | M84: 0.1192306704 | N84: 44065.13947 | O84: 25303.24135 | P84: 0 | Q84: 17647.75586 | R84: 203.4770547 | S84: 12641.24857 | T84: 0 | U84: 0 | V84: 99860.8623
A85: 2004 | B85: 1 | C85: 4 | D85: 11 | E85: 0.04944269772 | F85: 0.03477848303 | G85: 0 | H85: 0.02132823465 | I85: 0.0003308911419 | J85: 0.01781350935 | K85: 0 | L85: 0.001326384739 | M85: 0.1250202006 | N85: 45293.68162 | O85: 27058.70012 | P85: 0 | Q85: 19987.52807 | R85: 203.4770547 | S85: 12443.25158 | T85: 0 | U85: 0 | V85: 104986.6384
A86: 2004 | B86: 1 | C86: 4 | D86: 12 | E86: 0.05001710807 | F86: 0.03584369285 | G86: 0 | H86: 0.02183620007 | I86: 0.0003308911419 | J86: 0.01803872082 | K86: 0 | L86: 0.00130005722 | M86: 0.1273666702 | N86: 45819.88996 | O86: 27887.46522 | P86: 0 | Q86: 20463.56245 | R86: 203.4770547 | S86: 12572.55026 | T86: 0 | U86: 0 | V86: 106946.9449
A87: 2004 | B87: 1 | C87: 4 | D87: 13 | E87: 0.05096755556 | F87: 0.03655246486 | G87: 0 | H87: 0.02208558269 | I87: 0.0003308911419 | J87: 0.01849315328 | K87: 0 | L87: 0.001295270399 | M87: 0.1297249179 | N87: 46690.58003 | O87: 28438.91105 | P87: 0 | Q87: 20697.26872 | R87: 203.4770547 | S87: 12864.87444 | T87: 0 | U87: 0 | V87: 108895.1113
A88: 2004 | B88: 1 | C88: 4 | D88: 14 | E88: 0.04605271547 | F88: 0.03944248325 | G88: 0 | H88: 0.02343729673 | I88: 0.0003308911419 | J88: 0.01860475221 | K88: 0 | L88: 0.001293747319 | M88: 0.1291618861 | N88: 42188.17193 | O88: 30687.4318 | P88: 0 | Q88: 21964.01315 | R88: 203.4770547 | S88: 12936.43709 | T88: 0 | U88: 0 | V88: 107979.531
A89: 2004 | B89: 1 | C89: 4 | D89: 15 | E89: 0.04596608754 | F89: 0.03866964869 | G89: 0 | H89: 0.02372530491 | I89: 0.0003308911419 | J89: 0.01847788415 | K89: 0 | L89: 0.001290483577 | M89: 0.1284603 | N89: 42108.81344 | O89: 30086.1434 | P89: 0 | Q89: 22233.91694 | R89: 203.4770547 | S89: 12851.83564 | T89: 0 | U89: 0 | V89: 107484.1865
A90: 2004 | B90: 1 | C90: 4 | D90: 16 | E90: 0.05026364646 | F90: 0.03721692852 | G90: 0 | H90: 0.02344435738 | I90: 0.0003308911419 | J90: 0.01821901668 | K90: 0 | L90: 0.001270030794 | M90: 0.130744871 | N90: 46045.73992 | O90: 28955.88365 | P90: 0 | Q90: 21970.62996 | R90: 203.4770547 | S90: 12670.24362 | T90: 0 | U90: 0 | V90: 109845.9742
A91: 2004 | B91: 1 | C91: 4 | D91: 17 | E91: 0.05882119864 | F91: 0.0345766545 | G91: 0.0006942212721 | H91: 0.02187646004 | I91: 0.0003456029701 | J91: 0.01911803682 | K91: 8.653693409e-06 | L91: 0.001276340695 | M91: 0.1367171686 | N91: 53885.17954 | O91: 26901.67148 | P91: 322.3540701 | Q91: 20501.29165 | R91: 212.5238955 | S91: 13258.8179 | T91: 5.937972356 | U91: 0 | V91: 115087.7765
A92: 2004 | B92: 1 | C92: 4 | D92: 18 | E92: 0.06124621615 | F92: 0.04031967231 | G92: 0.002776885088 | H92: 0.02007488893 | I92: 0.0003897384548 | J92: 0.0191117789 | K92: 3.461477364e-05 | L92: 0.00133269464 | M92: 0.1452864892 | N92: 56106.70013 | O92: 31369.91113 | P92: 1289.41628 | Q92: 18812.96847 | R92: 239.6644179 | S92: 13291.38639 | T92: 23.75188942 | U92: 0 | V92: 121133.7987
A93: 2004 | B93: 1 | C93: 4 | D93: 19 | E93: 0.06323202105 | F93: 0.04541038337 | G93: 0.002776885088 | H93: 0.01505711912 | I93: 0.0003897384548 | J93: 0.02014092517 | K93: 3.461477364e-05 | L93: 0.001357716662 | M93: 0.1483994037 | N93: 57925.86493 | O93: 35330.63662 | P93: 1289.41628 | Q93: 14110.6189 | R93: 239.6644179 | S93: 13976.72358 | T93: 23.75188942 | U93: 0 | V93: 122896.6766
A94: 2004 | B94: 1 | C94: 4 | D94: 20 | E94: 0.05929406321 | F94: 0.04959336724 | G94: 0.002776885088 | H94: 0.01344914557 | I94: 0.0003897384548 | J94: 0.02009133061 | K94: 3.461477364e-05 | L94: 0.001361197987 | M94: 0.1469903429 | N94: 54318.36338 | O94: 38585.12319 | P94: 1289.41628 | Q94: 12603.72361 | R94: 239.6644179 | S94: 13946.74438 | T94: 23.75188942 | U94: 0 | V94: 121006.7871
A95: 2004 | B95: 1 | C95: 4 | D95: 21 | E95: 0.05808699522 | F95: 0.04651039535 | G95: 0.002776885088 | H95: 0.01408673596 | I95: 0.0003897384548 | J95: 0.01967567008 | K95: 3.461477364e-05 | L95: 0.001364244146 | M95: 0.1429252791 | N95: 53212.58728 | O95: 36186.47884 | P95: 1289.41628 | Q95: 13201.23465 | R95: 239.6644179 | S95: 13678.49502 | T95: 23.75188942 | U95: 0 | V95: 117831.6284
A96: 2004 | B96: 1 | C96: 4 | D96: 22 | E96: 0.05808680663 | F96: 0.04503461759 | G96: 0.002776885088 | H96: 0.0120501296 | I96: 0.0003897384548 | J96: 0.01991902748 | K96: 3.461477364e-05 | L96: 0.001373165041 | M96: 0.1396649847 | N96: 53212.41452 | O96: 35038.2796 | P96: 1289.41628 | Q96: 11292.65068 | R96: 239.6644179 | S96: 13842.50649 | T96: 23.75188942 | U96: 0 | V96: 114938.6839
A97: 2004 | B97: 1 | C97: 4 | D97: 23 | E97: 0.05316952579 | F97: 0.04385725248 | G97: 0.002776885088 | H97: 0.01087815948 | I97: 0.0003897384548 | J97: 0.01998281338 | K97: 3.461477364e-05 | L97: 0.001837269149 | M97: 0.1329262586 | N97: 48707.77049 | O97: 34122.25432 | P97: 1289.41628 | Q97: 10194.35137 | R97: 239.6644179 | S97: 14185.699 | T97: 23.75188942 | U97: 0 | V97: 108762.9078
A98: 2004 | B98: 1 | C98: 4 | D98: 24 | E98: 0.04287289596 | F98: 0.04317123696 | G98: 0.002776885088 | H98: 0.0104146074 | I98: 0.0003897384548 | J98: 0.01957415774 | K98: 3.461477364e-05 | L98: 0.002631881529 | M98: 0.1218660179 | N98: 39275.18904 | O98: 33588.51373 | P98: 1289.41628 | Q98: 9759.93846 | R98: 239.6644179 | S98: 14436.61767 | T98: 23.75188942 | U98: 0 | V98: 98613.09149
A99: 2004 | B99: 1 | C99: 5 | D99: 1 | E99: 0.04207137167 | F99: 0.04407277961 | G99: 0.002776885088 | H99: 0.01525675085 | I99: 0.0003897384548 | J99: 0.02052096235 | K99: 3.461477364e-05 | L99: 0.002275263323 | M99: 0.1273983661 | N99: 38540.92519 | O99: 34289.94087 | P99: 1289.41628 | Q99: 14297.70165 | R99: 239.6644179 | S99: 14820.31039 | T99: 23.75188942 | U99: 0 | V99: 103501.7107
A100: 2004 | B100: 1 | C100: 5 | D100: 2 | E100: 0.03876981732 | F100: 0.0439783108 | G100: 0.002776885088 | H100: 0.01381369066 | I100: 0.0003897384548 | J100: 0.02028216719 | K100: 3.461477364e-05 | L100: 0.002047454133 | M100: 0.1220926784 | N100: 35516.42291 | O100: 34216.44131 | P100: 1289.41628 | Q100: 12945.35316 | R100: 239.6644179 | S100: 14516.96099 | T100: 23.75188942 | U100: 0 | V100: 98748.01096
A101: 2004 | B101: 1 | C101: 5 | D101: 3 | E101: 0.0354927955 | F101: 0.0451049283 | G101: 0.002776885088 | H101: 0.0151226738 | I101: 0.0003897384548 | J101: 0.02002381963 | K101: 3.461477364e-05 | L101: 0.002031570588 | M101: 0.1209770261 | N101: 32514.39451 | O101: 35092.98343 | P101: 1289.41628 | Q101: 14172.05277 | R101: 239.6644179 | S101: 14338.67752 | T101: 23.75188942 | U101: 0 | V101: 97670.94083
A102: 2004 | B102: 1 | C102: 5 | D102: 4 | E102: 0.03528892632 | F102: 0.04358395823 | G102: 0.002776885088 | H102: 0.01460257938 | I102: 0.0003897384548 | J102: 0.02066670327 | K102: 3.461477364e-05 | L102: 0.002060073935 | M102: 0.1194034795 | N102: 32327.63315 | O102: 33909.62322 | P102: 1289.41628 | Q102: 13684.65182 | R102: 239.6644179 | S102: 14775.16046 | T102: 23.75188942 | U102: 0 | V102: 96249.90124
A103: 2004 | B103: 1 | C103: 5 | D103: 5 | E103: 0.0354078724 | F103: 0.04414464039 | G103: 0.002776885088 | H103: 0.01412425358 | I103: 0.0003897384548 | J103: 0.02095104588 | K103: 3.461477364e-05 | L103: 0.002330311771 | M103: 0.1201593623 | N103: 32436.59779 | O103: 34345.85071 | P103: 1289.41628 | Q103: 13236.3939 | R103: 239.6644179 | S103: 15135.70498 | T103: 23.75188942 | U103: 0 | V103: 96707.37997
A104: 2004 | B104: 1 | C104: 5 | D104: 6 | E104: 0.03778998179 | F104: 0.04459537776 | G104: 0.002776885088 | H104: 0.01458275433 | I104: 0.0003897384548 | J104: 0.02136988569 | K104: 3.461477364e-05 | L104: 0.002424960288 | M104: 0.1239641982 | N104: 34618.81091 | O104: 34696.53787 | P104: 1289.41628 | Q104: 13666.07299 | R104: 239.6644179 | S104: 15469.53466 | T104: 23.75188942 | U104: 0 | V104: 100003.789
A105: 2004 | B105: 1 | C105: 5 | D105: 7 | E105: 0.04231629878 | F105: 0.0467370191 | G105: 0.002776885088 | H105: 0.01523202188 | I105: 0.0003897384548 | J105: 0.02287825728 | K105: 3.461477364e-05 | L105: 0.002582707817 | M105: 0.1329475432 | N105: 38765.29908 | O105: 36362.79889 | P105: 1289.41628 | Q105: 14274.52717 | R105: 239.6644179 | S105: 16552.71407 | T105: 23.75188942 | U105: 0 | V105: 107508.1718
A106: 2004 | B106: 1 | C106: 5 | D106: 8 | E106: 0.04750312539 | F106: 0.05325807768 | G106: 0.002082664366 | H106: 0.01966190583 | I106: 0.0003750266383 | J106: 0.02596518033 | K106: 2.596108708e-05 | L106: 0.002823571975 | M106: 0.1516955133 | N106: 43516.86976 | O106: 41436.37753 | P106: 967.0624654 | Q106: 18425.94575 | R106: 230.6175842 | S106: 18716.1792 | T106: 17.81392177 | U106: 0 | V106: 123310.8662
A107: 2004 | B107: 1 | C107: 5 | D107: 9 | E107: 0.05581200155 | F107: 0.0519350627 | G107: 0 | H107: 0.02354666236 | I107: 0.0003308911419 | J107: 0.02975717415 | K107: 0 | L107: 0.003432586227 | M107: 0.1648143781 | N107: 51128.50118 | O107: 40407.0323 | P107: 0 | Q107: 22066.50398 | R107: 203.4770547 | S107: 21577.368 | T107: 0 | U107: 0 | V107: 135382.8825
A108: 2004 | B108: 1 | C108: 5 | D108: 10 | E108: 0.05912942972 | F108: 0.04574537606 | G108: 0 | H108: 0.02732476389 | I108: 0.0003308911419 | J108: 0.02956832464 | K108: 0 | L108: 0.00346783464 | M108: 0.1655666201 | N108: 54167.54521 | O108: 35591.27095 | P108: 0 | Q108: 25607.11162 | R108: 203.4770547 | S108: 21477.50867 | T108: 0 | U108: 0 | V108: 137046.9135
A109: 2004 | B109: 1 | C109: 5 | D109: 11 | E109: 0.05975357777 | F109: 0.04603605729 | G109: 0 | H109: 0.02796311824 | I109: 0.0003308911419 | J109: 0.02992678304 | K109: 0 | L109: 0.003325970656 | M109: 0.1673363981 | N109: 54739.31748 | O109: 35817.42964 | P109: 0 | Q109: 26205.33859 | R109: 203.4770547 | S109: 21618.3213 | T109: 0 | U109: 0 | V109: 138583.8841
A110: 2004 | B110: 1 | C110: 5 | D110: 12 | E110: 0.0580298477 | F110: 0.04782509485 | G110: 0 | H110: 0.02681773284 | I110: 0.0003308911419 | J110: 0.0298974614 | K110: 0 | L110: 0.003494162159 | M110: 0.1663951901 | N110: 53160.23534 | O110: 37209.35438 | P110: 0 | Q110: 25131.95287 | R110: 203.4770547 | S110: 21708.60354 | T110: 0 | U110: 0 | V110: 137413.6232
A111: 2004 | B111: 1 | C111: 5 | D111: 13 | E111: 0.05191557208 | F111: 0.04905741458 | G111: 0 | H111: 0.02759980352 | I111: 0.0003308911419 | J111: 0.03114681014 | K111: 0 | L111: 0.004077066476 | M111: 0.1641275579 | N111: 47559.04313 | O111: 38168.13599 | P111: 0 | Q111: 25864.86207 | R111: 203.4770547 | S111: 22899.79017 | T111: 0 | U111: 0 | V111: 134695.3084
A112: 2004 | B112: 1 | C112: 5 | D112: 14 | E112: 0.05155444747 | F112: 0.04904945354 | G112: 0 | H112: 0.02711796228 | I112: 0.0003308911419 | J112: 0.03048136143 | K112: 0 | L112: 0.003925411265 | M112: 0.1624595271 | N112: 47228.22252 | O112: 38161.94206 | P112: 0 | Q112: 25413.30969 | R112: 203.4770547 | S112: 22368.57356 | T112: 0 | U112: 0 | V112: 133375.5249
A113: 2004 | B113: 1 | C113: 5 | D113: 15 | E113: 0.05339327136 | F113: 0.04623166823 | G113: 0 | H113: 0.02720615658 | I113: 0.0003308911419 | J113: 0.02948626287 | K113: 0 | L113: 0.004048780712 | M113: 0.1606970309 | N113: 48912.74031 | O113: 35969.6208 | P113: 0 | Q113: 25495.96004 | R113: 203.4770547 | S113: 21801.84395 | T113: 0 | U113: 0 | V113: 132383.6422
A114: 2004 | B114: 1 | C114: 5 | D114: 16 | E114: 0.05791715088 | F114: 0.04267582263 | G114: 0 | H114: 0.02619792486 | I114: 0.0003308911419 | J114: 0.02834745038 | K114: 0 | L114: 0.003785070361 | M114: 0.1592543102 | N114: 53056.99554 | O114: 33203.06656 | P114: 0 | Q114: 24551.10641 | R114: 203.4770547 | S114: 20890.03406 | T114: 0 | U114: 0 | V114: 131904.6796
A115: 2004 | B115: 1 | C115: 5 | D115: 17 | E115: 0.06304943766 | F115: 0.04172082172 | G115: 0.0006942212721 | H115: 0.02658357882 | I115: 0.0003456029701 | J115: 0.02525342755 | K115: 8.653693409e-06 | L115: 0.004011574054 | M115: 0.1616673177 | N115: 57758.60314 | O115: 32460.04728 | P115: 322.3540701 | Q115: 24912.51792 | R115: 212.5238955 | S115: 19025.79898 | T115: 5.937972356 | U115: 0 | V115: 134697.7833
A116: 2004 | B116: 1 | C116: 5 | D116: 18 | E116: 0.06529696988 | F116: 0.0475712205 | G116: 0.002776885088 | H116: 0.02581231242 | I116: 0.0003897384548 | J116: 0.02284773145 | K116: 3.461477364e-05 | L116: 0.003951521201 | M116: 0.1686809938 | N116: 59817.53224 | O116: 37011.83253 | P116: 1289.41628 | Q116: 24189.73382 | R116: 239.6644179 | S116: 17422.76323 | T116: 23.75188942 | U116: 0 | V116: 139994.6944
A117: 2004 | B117: 1 | C117: 5 | D117: 19 | E117: 0.06855620259 | F117: 0.05178516738 | G117: 0.002776885088 | H117: 0.02108881428 | I117: 0.0003897384548 | J117: 0.02336874688 | K117: 3.461477364e-05 | L117: 0.00374068347 | M117: 0.1717408529 | N117: 62803.26431 | O117: 40290.40926 | P117: 1289.41628 | Q117: 19763.15782 | R117: 239.6644179 | S117: 17624.41634 | T117: 23.75188942 | U117: 0 | V117: 142034.0803
A118: 2004 | B118: 1 | C118: 5 | D118: 20 | E118: 0.06604100074 | F118: 0.0531932256 | G118: 0.002776885088 | H118: 0.0221165167 | I118: 0.0003897384548 | J118: 0.02506026358 | K118: 3.461477364e-05 | L118: 0.003407781788 | M118: 0.1730200267 | N118: 60499.12726 | O118: 41385.92067 | P118: 1289.41628 | Q118: 20726.2582 | R118: 239.6644179 | S118: 18507.68081 | T118: 23.75188942 | U118: 0 | V118: 142671.8195
A119: 2004 | B119: 1 | C119: 5 | D119: 21 | E119: 0.06684375614 | F119: 0.05252226906 | G119: 0.002776885088 | H119: 0.01827484511 | I119: 0.0003897384548 | J119: 0.02504269349 | K119: 3.461477364e-05 | L119: 0.004126240188 | M119: 0.1700110423 | N119: 61234.51892 | O119: 40863.89642 | P119: 1289.41628 | Q119: 17126.07656 | R119: 239.6644179 | S119: 18963.34318 | T119: 23.75188942 | U119: 0 | V119: 139740.6677
A120: 2004 | B120: 1 | C120: 5 | D120: 22 | E120: 0.06209045497 | F120: 0.05061211806 | G120: 0.002776885088 | H120: 0.01841308802 | I120: 0.0003897384548 | J120: 0.02503036129 | K120: 3.461477364e-05 | L120: 0.003889945269 | M120: 0.1632372059 | N120: 56880.0941 | O120: 39377.7418 | P120: 1289.41628 | Q120: 17255.62944 | R120: 239.6644179 | S120: 18801.70541 | T120: 23.75188942 | U120: 0 | V120: 133868.0033
A121: 2004 | B121: 1 | C121: 5 | D121: 23 | E121: 0.05703737102 | F121: 0.04949855711 | G121: 0.002776885088 | H121: 0.01691287802 | I121: 0.0003897384548 | J121: 0.02464434444 | K121: 3.461477364e-05 | L121: 0.003784417612 | M121: 0.1550788065 | N121: 52251.04298 | O121: 38511.35807 | P121: 1289.41628 | Q121: 15849.7236 | R121: 239.6644179 | S121: 18482.1419 | T121: 23.75188942 | U121: 0 | V121: 126647.0991
A122: 2004 | B122: 1 | C122: 5 | D122: 24 | E122: 0.04868609477 | F122: 0.04698082418 | G122: 0.002776885088 | H122: 0.01494382475 | I122: 0.0003897384548 | J122: 0.02363194913 | K122: 3.461477364e-05 | L122: 0.003861877088 | M122: 0.1413058082 | N122: 44600.5695 | O122: 36552.48654 | P122: 1289.41628 | Q122: 14004.44629 | R122: 239.6644179 | S122: 17874.32026 | T122: 23.75188942 | U122: 0 | V122: 114584.6552
A123: 2004 | B123: 1 | C123: 6 | D123: 1 | E123: 0.04512330548 | F123: 0.04642572879 | G123: 0.002776885088 | H123: 0.01624110678 | I123: 0.0003897384548 | J123: 0.02481050726 | K123: 3.461477364e-05 | L123: 0.00383011 | M123: 0.1396319966 | N123: 41336.75399 | O123: 36120.60572 | P123: 1289.41628 | Q123: 15220.18034 | R123: 239.6644179 | S123: 18619.87346 | T123: 23.75188942 | U123: 0 | V123: 112850.2461
A124: 2004 | B124: 1 | C124: 6 | D124: 2 | E124: 0.04160278724 | F124: 0.04608488688 | G124: 0.002776885088 | H124: 0.01670937237 | I124: 0.0003897384548 | J124: 0.02378110818 | K124: 3.461477364e-05 | L124: 0.003622100845 | M124: 0.1350014938 | N124: 38111.66233 | O124: 35855.42052 | P124: 1289.41628 | Q124: 15659.01045 | R124: 239.6644179 | S124: 17815.4081 | T124: 23.75188942 | U124: 0 | V124: 108994.334
A125: 2004 | B125: 1 | C125: 6 | D125: 3 | E125: 0.0390020176 | F125: 0.04675748581 | G125: 0.002776885088 | H125: 0.01621880978 | I125: 0.0003897384548 | J125: 0.02275918738 | K125: 3.461477364e-05 | L125: 0.003899518912 | M125: 0.1318382578 | N125: 35729.13796 | O125: 36378.72261 | P125: 1289.41628 | Q125: 15199.28494 | R125: 239.6644179 | S125: 17331.39106 | T125: 23.75188942 | U125: 0 | V125: 106191.3692
A126: 2004 | B126: 1 | C126: 6 | D126: 4 | E126: 0.03925336596 | F126: 0.0458382268 | G126: 0.002776885088 | H126: 0.01550287375 | I126: 0.0003897384548 | J126: 0.02277541843 | K126: 3.461477364e-05 | L126: 0.003224359489 | M126: 0.1297954827 | N126: 35959.39425 | O126: 35663.5116 | P126: 1289.41628 | Q126: 14528.35311 | R126: 239.6644179 | S126: 16903.00773 | T126: 23.75188942 | U126: 0 | V126: 104607.0993
A127: 2004 | B127: 1 | C127: 6 | D127: 5 | E127: 0.04041597722 | F127: 0.04501610697 | G127: 0.002776885088 | H127: 0.01593630454 | I127: 0.0003897384548 | J127: 0.02226495902 | K127: 3.461477364e-05 | L127: 0.00400896306 | M127: 0.1308435491 | N127: 37024.44423 | O127: 35023.87778 | P127: 1289.41628 | Q127: 14934.53816 | R127: 239.6644179 | S127: 17081.23467 | T127: 23.75188942 | U127: 0 | V127: 105616.9274
A128: 2004 | B128: 1 | C128: 6 | D128: 6 | E128: 0.04275058486 | F128: 0.04568044998 | G128: 0.002776885088 | H128: 0.01585814747 | I128: 0.0003897384548 | J128: 0.02178636796 | K128: 3.461477364e-05 | L128: 0.003674320716 | M128: 0.1329511093 | N128: 39163.14176 | O128: 35540.75652 | P128: 1289.41628 | Q128: 14861.29409 | R128: 239.6644179 | S128: 16552.53436 | T128: 23.75188942 | U128: 0 | V128: 107670.5593
A129: 2004 | B129: 1 | C129: 6 | D129: 7 | E129: 0.04762080822 | F129: 0.04800058416 | G129: 0.002776885088 | H129: 0.01627643006 | I129: 0.0003897384548 | J129: 0.02366796482 | K129: 3.461477364e-05 | L129: 0.004039642235 | M129: 0.1428066678 | N129: 43624.67716 | O129: 37345.89031 | P129: 1289.41628 | Q129: 15253.28317 | R129: 239.6644179 | S129: 18013.30371 | T129: 23.75188942 | U129: 0 | V129: 115789.9869
A130: 2004 | B130: 1 | C130: 6 | D130: 8 | E130: 0.0514129696 | F130: 0.05439454757 | G130: 0.002082664366 | H130: 0.02152193689 | I130: 0.0003750266383 | J130: 0.02796645375 | K130: 2.596108708e-05 | L130: 0.004059877435 | M130: 0.1618394373 | N130: 47098.61686 | O130: 42320.5851 | P130: 967.0624654 | Q130: 20169.05406 | R130: 230.6175842 | S130: 20820.99798 | T130: 17.81392177 | U130: 0 | V130: 131624.748
A131: 2004 | B131: 1 | C131: 6 | D131: 9 | E131: 0.05950080958 | F131: 0.05302228085 | G131: 0 | H131: 0.026912879 | I131: 0.0003308911419 | J131: 0.0313542575 | K131: 0 | L131: 0.004080112635 | M131: 0.1752012307 | N131: 54507.76049 | O131: 41252.92054 | P131: 0 | Q131: 25221.11808 | R131: 203.4770547 | S131: 23036.63647 | T131: 0 | U131: 0 | V131: 144221.9126
A132: 2004 | B132: 1 | C132: 6 | D132: 10 | E132: 0.06083952735 | F132: 0.04788327483 | G132: 0 | H132: 0.0278936306 | I132: 0.0003308911419 | J132: 0.03325330039 | K132: 0 | L132: 0.003769621982 | M132: 0.1739702463 | N132: =E132*1000000*$N$8826 -> 55734.13889 | O132: =F132*1000000*$O$8826 -> 37254.62014 | P132: =G132*1000000*$P$8826 -> 0 | Q132: =H132*1000000*$Q$8826 -> 26140.219 | R132: =I132*1000000*$R$8826 -> 203.4770547 | S132: =(J132+L132)*1000000*$S$8826 -> 24069.38802 | T132: =K132*1000000*$T$8826 -> 0 | U132: =L132*1000000*$U$8826 -> 0 | V132: =SUM(N132:U132) -> 143401.8431
A133: 2004 | B133: 1 | C133: 6 | D133: 11 | E133: 0.05759361478 | F133: 0.04853968128 | G133: 0 | H133: 0.02909032734 | I133: 0.0003308911419 | J133: 0.03331512131 | K133: 0 | L133: 0.004117319294 | M133: 0.1729869551 | N133: 52760.60918 | O133: 37765.32399 | P133: 0 | Q133: 27261.69061 | R133: 203.4770547 | S133: 24335.62452 | T133: 0 | U133: 0 | V133: 142326.7253
A134: 2004 | B134: 1 | C134: 6 | D134: 12 | E134: 0.0564197581 | F134: 0.04894620334 | G134: 0 | H134: 0.03067912307 | I134: 0.0003308911419 | J134: 0.03208461279 | K134: 0 | L134: 0.003432586227 | M134: 0.1718931747 | N134: 51685.25744 | O134: 38081.61031 | P134: 0 | Q134: 28750.61361 | R134: 203.4770547 | S134: 23090.48528 | T134: 0 | U134: 0 | V134: 141811.4437
A135: 2004 | B135: 1 | C135: 6 | D135: 13 | E135: 0.05506353283 | F135: 0.04706915791 | G135: 0 | H135: 0.02989099926 | I135: 0.0003308911419 | J135: 0.03155743267 | K135: 0 | L135: 0.004227198607 | M135: 0.1681392124 | N135: 50442.84071 | O135: 36621.21283 | P135: 0 | Q135: 28012.03178 | R135: 203.4770547 | S135: 23264.34868 | T135: 0 | U135: 0 | V135: 138543.911
A136: 2004 | B136: 1 | C136: 6 | D136: 14 | E136: 0.05472265712 | F136: 0.04682734049 | G136: 0 | H136: 0.02828932407 | I136: 0.0003308911419 | J136: 0.03312197328 | K136: 0 | L136: 0.003696078996 | M136: 0.1669882651 | N136: 50130.5698 | O136: 36433.07164 | P136: 0 | Q136: 26511.03892 | R136: 203.4770547 | S136: 23936.19762 | T136: 0 | U136: 0 | V136: 137214.355
A137: 2004 | B137: 1 | C137: 6 | D137: 15 | E137: 0.05288452737 | F137: 0.04598151559 | G137: 0 | H137: 0.02834245303 | I137: 0.0003308911419 | J137: 0.03329058173 | K137: 0 | L137: 0.004058354355 | M137: 0.1648883232 | N137: 48446.6879 | O137: 35774.99456 | P137: 0 | Q137: 26560.82816 | R137: 203.4770547 | S137: 24281.33645 | T137: 0 | U137: 0 | V137: 135267.3241
A138: 2004 | B138: 1 | C138: 6 | D138: 16 | E138: 0.05562398459 | F138: 0.04475018284 | G138: 0 | H138: 0.02855679259 | I138: 0.0003308911419 | J138: 0.03111297036 | K138: 0 | L138: 0.003457825832 | M138: 0.1638326474 | N138: 50956.26179 | O138: 34816.98085 | P138: 0 | Q138: 26761.69419 | R138: 203.4770547 | S138: 22475.20872 | T138: 0 | U138: 0 | V138: 135213.6226
A139: 2004 | B139: 1 | C139: 6 | D139: 17 | E139: 0.06390974897 | F139: 0.04327996977 | G139: 0.0006942212721 | H139: 0.02910936792 | I139: 0.0003456029701 | J139: 0.02519049135 | K139: 8.653693409e-06 | L139: 0.003371663044 | M139: 0.165909719 | N139: 58546.72087 | O139: 33673.11111 | P139: 322.3540701 | Q139: 27279.53428 | R139: 212.5238955 | S139: 18568.86309 | T139: 5.937972356 | U139: 0 | V139: 138609.0453
A140: 2004 | B140: 1 | C140: 6 | D140: 18 | E140: 0.06841685956 | F140: 0.04536885385 | G140: 0.002776885088 | H140: 0.02616460087 | I140: 0.0003897384548 | J140: 0.02380968565 | K140: 3.461477364e-05 | L140: 0.003720013104 | M140: 0.1706812513 | N140: 62675.61434 | O140: 35298.3254 | P140: 1289.41628 | Q140: 24519.87718 | R140: 239.6644179 | S140: 17897.64176 | T140: 23.75188942 | U140: 0 | V140: 141944.2913
A141: 2004 | B141: 1 | C141: 6 | D141: 19 | E141: 0.06598243953 | F141: 0.05388743668 | G141: 0.002776885088 | H141: 0.024978285 | I141: 0.0003897384548 | J141: 0.02578497286 | K141: 3.461477364e-05 | L141: 0.003893644177 | M141: 0.1777280166 | N141: 60445.48025 | O141: 41926.03766 | P141: 1289.41628 | Q141: 23408.1339 | R141: 239.6644179 | S141: 19294.69916 | T141: 23.75188942 | U141: 0 | V141: 146627.1836
A142: 2004 | B142: 1 | C142: 6 | D142: 20 | E142: 0.07186912379 | F142: 0.05352452498 | G142: 0.002776885088 | H142: 0.02060670515 | I142: 0.0003897384548 | J142: 0.0265470108 | K142: 3.461477364e-05 | L142: 0.003137979118 | M142: 0.1788865822 | N142: 65838.17958 | O142: 41643.68151 | P142: 1289.41628 | Q142: 19311.35438 | R142: 239.6644179 | S142: 19298.84231 | T142: 23.75188942 | U142: 0 | V142: 147644.8904
A143: 2004 | B143: 1 | C143: 6 | D143: 21 | E143: 0.06562839818 | F143: 0.05472810201 | G143: 0.002776885088 | H143: 0.02240322166 | I143: 0.0003897384548 | J143: 0.02664700639 | K143: 3.461477364e-05 | L143: 0.00391953653 | M143: 0.1765275031 | N143: 60121.14851 | O143: 42580.10044 | P143: 1289.41628 | Q143: 20994.9407 | R143: 239.6644179 | S143: 19871.95863 | T143: 23.75188942 | U143: 0 | V143: 145120.9809
A144: 2004 | B144: 1 | C144: 6 | D144: 22 | E144: 0.06488012286 | F144: 0.05360655992 | G144: 0.002776885088 | H144: 0.01795016243 | I144: 0.0003897384548 | J144: 0.02613956854 | K144: 3.461477364e-05 | L144: 0.0035315864 | M144: 0.1693092385 | N144: 59435.66521 | O144: 41707.50714 | P144: 1289.41628 | Q144: 16821.80365 | R144: 239.6644179 | S144: 19289.84789 | T144: 23.75188942 | U144: 0 | V144: 138807.6565
A145: 2004 | B145: 1 | C145: 6 | D145: 23 | E145: 0.0616748975 | F145: 0.04896108548 | G145: 0.002776885088 | H145: 0.01668587026 | I145: 0.0003897384548 | J145: 0.02564047298 | K145: 3.461477364e-05 | L145: 0.003739813138 | M145: 0.1599033777 | N145: 56499.40841 | O145: 38093.18907 | P145: 1289.41628 | Q145: 15636.98569 | R145: 239.6644179 | S145: 19100.7479 | T145: 23.75188942 | U145: 0 | V145: 130883.1637
A146: 2004 | B146: 1 | C146: 6 | D146: 24 | E146: 0.05421960689 | F146: 0.04764754435 | G146: 0.002776885088 | H146: 0.0157166898 | I146: 0.0003897384548 | J146: 0.02492478044 | K146: 3.461477364e-05 | L146: 0.003865358413 | M146: 0.1495752182 | N146: 49669.73336 | O146: 37071.21477 | P146: 1289.41628 | Q146: 14728.72855 | R146: 239.6644179 | S146: 18717.08063 | T146: 23.75188942 | U146: 0 | V146: 121739.5899
A147: 2004 | B147: 1 | C147: 7 | D147: 1 | E147: 0.04558662711 | F147: 0.04662908899 | G147: 0.002776885088 | H147: 0.01648768264 | I147: 0.0003897384548 | J147: 0.02438839714 | K147: 3.461477364e-05 | L147: 0.004022888359 | M147: 0.1403159226 | N147: 41761.19569 | O147: 36278.82604 | P147: 1289.41628 | Q147: 15451.25628 | R147: 239.6644179 | S147: 18470.78002 | T147: 23.75188942 | U147: 0 | V147: 113514.8906
A148: 2004 | B148: 1 | C148: 7 | D148: 2 | E148: 0.0416807301 | F148: 0.04605261907 | G148: 0.002776885088 | H148: 0.0165237444 | I148: 0.0003897384548 | J148: 0.02420631845 | K148: 3.461477364e-05 | L148: 0.00399808392 | M148: 0.1356627343 | N148: 38183.06456 | O148: 35830.3152 | P148: 1289.41628 | Q148: 15485.05118 | R148: 239.6644179 | S148: 18336.2809 | T148: 23.75188942 | U148: 0 | V148: 109387.5444
A149: 2004 | B149: 1 | C149: 7 | D149: 3 | E149: 0.03884043288 | F149: 0.04644340193 | G149: 0.002776885088 | H149: 0.01572517283 | I149: 0.0003897384548 | J149: 0.0239688816 | K149: 3.461477364e-05 | L149: 0.004304875666 | M149: 0.1324840032 | N149: 35581.11273 | O149: 36134.35595 | P149: 1289.41628 | Q149: 14736.67833 | R149: 239.6644179 | S149: 18381.36999 | T149: 23.75188942 | U149: 0 | V149: 106386.3496
A150: 2004 | B150: 1 | C150: 7 | D150: 4 | E150: 0.03942483398 | F150: 0.04598829772 | G150: 0.002776885088 | H150: 0.01539407022 | I150: 0.0003897384548 | J150: 0.02314947111 | K150: 3.461477364e-05 | L150: 0.003273315619 | M150: 0.130431227 | N150: 36116.47343 | O150: 35780.27127 | P150: 1289.41628 | Q150: 14426.38904 | R150: 239.6644179 | S150: 17178.01474 | T150: 23.75188942 | U150: 0 | V150: 105053.9811
A151: 2004 | B151: 1 | C151: 7 | D151: 5 | E151: 0.04087259075 | F151: 0.04529459773 | G151: 0.002776885088 | H151: 0.01616094152 | I151: 0.0003897384548 | J151: 0.02184926414 | K151: 3.461477364e-05 | L151: 0.004105787405 | M151: 0.1314844199 | N151: 37442.74074 | O151: 35240.55192 | P151: 1289.41628 | Q151: 15145.05432 | R151: 239.6644179 | S151: 16873.93016 | T151: 23.75188942 | U151: 0 | V151: 106255.1097
A152: 2004 | B152: 1 | C152: 7 | D152: 6 | E152: 0.04326621267 | F152: 0.04600706709 | G152: 0.002776885088 | H152: 0.01612572287 | I152: 0.0003897384548 | J152: 0.02131229668 | K152: 3.461477364e-05 | L152: 0.003689769095 | M152: 0.1336023067 | N152: 39635.50033 | O152: 35794.8744 | P152: 1289.41628 | Q152: 15112.04953 | R152: 239.6644179 | S152: 16254.37388 | T152: 23.75188942 | U152: 0 | V152: 108349.6307
A153: 2004 | B153: 1 | C153: 7 | D153: 7 | E153: 0.04794665179 | F153: 0.04818658107 | G153: 0.002776885088 | H153: 0.01624097367 | I153: 0.0003897384548 | J153: 0.02389953795 | K153: 3.461477364e-05 | L153: 0.004031156505 | M153: 0.1435061393 | N153: 43923.17736 | O153: 37490.60146 | P153: 1289.41628 | Q153: 15220.05559 | R153: 239.6644179 | S153: 18158.33757 | T153: 23.75188942 | U153: 0 | V153: 116345.0046
A154: 2004 | B154: 1 | C154: 7 | D154: 8 | E154: 0.05165264951 | F154: 0.05452166884 | G154: 0.002082664366 | H154: 0.02141424956 | I154: 0.0003750266383 | J154: 0.02803548067 | K154: 2.596108708e-05 | L154: 0.004524416709 | M154: 0.1626321174 | N154: 47318.18387 | O154: 42419.48926 | P154: 967.0624654 | Q154: 20068.13602 | R154: 230.6175842 | S154: 21167.8807 | T154: 17.81392177 | U154: 0 | V154: 132189.1838
A155: 2004 | B155: 1 | C155: 7 | D155: 9 | E155: 0.05934395935 | F155: 0.05286253097 | G155: 0 | H155: 0.02634142729 | I155: 0.0003308911419 | J155: 0.03241179461 | K155: 0 | L155: 0.004768762192 | M155: 0.1760593656 | N155: 54364.07245 | O155: 41128.63036 | P155: 0 | Q155: 24685.58819 | R155: 203.4770547 | S155: 24171.86951 | T155: 0 | U155: 0 | V155: 144553.6376
A156: 2004 | B156: 1 | C156: 7 | D156: 10 | E156: 0.06119932064 | F156: 0.0480655764 | G156: 0 | H156: 0.02798512393 | I156: 0.0003308911419 | J156: 0.03294810144 | K156: 0 | L156: 0.004293343778 | M156: 0.1748223573 | N156: 56063.73989 | O156: 37396.45621 | P156: 0 | Q156: 26225.961 | R156: 203.4770547 | S156: 24211.45435 | T156: 0 | U156: 0 | V156: 144101.0885
A157: 2004 | B157: 1 | C157: 7 | D157: 11 | E157: 0.05793599583 | F157: 0.04862724672 | G157: 0 | H157: 0.02917401808 | I157: 0.0003308911419 | J157: 0.03312984483 | K157: 0 | L157: 0.004636254268 | M157: 0.1738342509 | N157: 53074.25911 | O157: 37833.45252 | P157: 0 | Q157: 27340.12049 | R157: 203.4770547 | S157: 24552.54298 | T157: 0 | U157: 0 | V157: 143003.8522
A158: 2004 | B158: 1 | C158: 7 | D158: 12 | E158: 0.05675648112 | F158: 0.04904065424 | G158: 0 | H158: 0.03078088528 | I158: 0.0003308911419 | J158: 0.03207986493 | K158: 0 | L158: 0.003746340622 | M158: 0.1727351173 | N158: 51993.72414 | O158: 38155.09594 | P158: 0 | Q158: 28845.97899 | R158: 203.4770547 | S158: 23291.377 | T158: 0 | U158: 0 | V158: 142489.6531
A159: 2004 | B159: 1 | C159: 7 | D159: 13 | E159: 0.05525466582 | F159: 0.04700185503 | G159: 0 | H159: 0.02983239712 | I159: 0.0003308911419 | J159: 0.03152136337 | K159: 0 | L159: 0.005021593404 | M159: 0.1689627659 | N159: 50617.93464 | O159: 36568.84917 | P159: 0 | Q159: 27957.11341 | R159: 203.4770547 | S159: 23757.35219 | T159: 0 | U159: 0 | V159: 139104.7265
A160: 2004 | B160: 1 | C160: 7 | D160: 14 | E160: 0.05539519206 | F160: 0.04721527762 | G160: 0 | H160: 0.02884091567 | I160: 0.0003308911419 | J160: 0.03124208707 | K160: 0 | L160: 0.00478181716 | M160: 0.1678061807 | N160: 50746.66854 | O160: 36734.89833 | P160: 0 | Q160: 27027.95711 | R160: 203.4770547 | S160: 23419.9051 | T160: 0 | U160: 0 | V160: 138132.9061
A161: 2004 | B161: 1 | C161: 7 | D161: 15 | E161: 0.05369007717 | F161: 0.04657563928 | G161: 0 | H161: 0.0290689399 | I161: 0.0003308911419 | J161: 0.03142635331 | K161: 0 | L161: 0.004604052014 | M161: 0.1656959528 | N161: 49184.63947 | O161: 36237.24057 | P161: 0 | Q161: 27241.64759 | R161: 203.4770547 | S161: 23424.13161 | T161: 0 | U161: 0 | V161: 136291.1363
A162: 2004 | B162: 1 | C162: 7 | D162: 16 | E162: 0.05656733752 | F162: 0.04544296492 | G162: 0 | H162: 0.02942202935 | I162: 0.0003308911419 | J162: 0.02835354485 | K162: 0 | L162: 0.004518324391 | M162: 0.1646350922 | N162: 51820.45264 | O162: 35355.98604 | P162: 0 | Q162: 27572.54161 | R162: 203.4770547 | S162: 21370.70023 | T162: 0 | U162: 0 | V162: 136323.1576
A163: 2004 | B163: 1 | C163: 7 | D163: 17 | E163: 0.06404941861 | F163: 0.04339174577 | G163: 0.0006942212721 | H163: 0.02895809598 | I163: 0.0003456029701 | J163: 0.02502043258 | K163: 8.653693409e-06 | L163: 0.004254178874 | M163: 0.1667223497 | N163: 58674.67004 | O163: 33760.07618 | P163: 322.3540701 | Q163: 27137.7714 | R163: 212.5238955 | S163: 19032.04655 | T163: 5.937972356 | U163: 0 | V163: 139145.3801
A164: 2004 | B164: 1 | C164: 7 | D164: 18 | E164: 0.06894229924 | F164: 0.04572954363 | G164: 0.002776885088 | H164: 0.02646545824 | I164: 0.0003897384548 | J164: 0.0237176259 | K164: 3.461477364e-05 | L164: 0.003461089574 | M164: 0.1715172549 | N164: 63156.96141 | O164: 35578.95284 | P164: 1289.41628 | Q164: 24801.82247 | R164: 239.6644179 | S164: 17669.46007 | T164: 23.75188942 | U164: 0 | V164: 142760.0294
A165: 2004 | B165: 1 | C165: 7 | D165: 19 | E165: 0.06634082149 | F165: 0.05406051594 | G165: 0.002776885088 | H165: 0.02506300598 | I165: 0.0003897384548 | J165: 0.02553495159 | K165: 3.461477364e-05 | L165: 0.004398001104 | M165: 0.1785985344 | N165: 60773.78835 | O165: 42060.6985 | P165: 1289.41628 | Q165: 23487.52927 | R165: 239.6644179 | S165: 19460.04817 | T165: 23.75188942 | U165: 0 | V165: 147334.8969
A166: 2004 | B166: 1 | C166: 7 | D166: 20 | E166: 0.0722899645 | F166: 0.0536833574 | G166: 0.002776885088 | H166: 0.02070086869 | I166: 0.0003897384548 | J166: 0.02631789724 | K166: 3.461477364e-05 | L166: 0.003569445807 | M166: 0.179762772 | N166: 66223.70517 | O166: 41767.25788 | P166: 1289.41628 | Q166: 19399.59874 | R166: 239.6644179 | S166: 19430.39637 | T166: 23.75188942 | U166: 0 | V166: 148373.7907
A167: 2004 | B167: 1 | C167: 7 | D167: 21 | E167: 0.06603084497 | F167: 0.05494564054 | G167: 0.002776885088 | H167: 0.02251961223 | I167: 0.0003897384548 | J167: 0.02661731118 | K167: 3.461477364e-05 | L167: 0.004077501642 | M167: 0.1773921489 | N167: 60489.82372 | O167: 42749.35192 | P167: 1289.41628 | Q167: 21104.01489 | R167: 239.6644179 | S167: 19955.34962 | T167: 23.75188942 | U167: 0 | V167: 145851.3727
A168: 2004 | B168: 1 | C168: 7 | D168: 22 | E168: 0.06488595213 | F168: 0.0534558215 | G168: 0.002776885088 | H168: 0.01758381797 | I168: 0.0003897384548 | J168: 0.02665045381 | K168: 3.461477364e-05 | L168: 0.004361229611 | M168: 0.1701385133 | N168: 59441.00531 | O168: 41590.22814 | P168: 1289.41628 | Q168: 16478.48783 | R168: 239.6644179 | S168: 20161.35392 | T168: 23.75188942 | U168: 0 | V168: 139223.9078
A169: 2004 | B169: 1 | C169: 7 | D169: 23 | E169: 0.06152628301 | F169: 0.04868490316 | G169: 0.002776885088 | H169: 0.01614629683 | I169: 0.0003897384548 | J169: 0.02641916358 | K169: 3.461477364e-05 | L169: 0.00470870934 | M169: 0.1606865942 | N169: 56363.26501 | O169: 37878.31096 | P169: 1289.41628 | Q169: 15131.3302 | R169: 239.6644179 | S169: 20236.89119 | T169: 23.75188942 | U169: 0 | V169: 131162.6299
A170: 2004 | B170: 1 | C170: 7 | D170: 24 | E170: 0.05429073052 | F170: 0.04755786075 | G170: 0.002776885088 | H170: 0.01546633038 | I170: 0.0003897384548 | J170: 0.02511082615 | K170: 3.461477364e-05 | L170: 0.004680858741 | M170: 0.1503078449 | N170: 49734.8886 | O170: 37001.43825 | P170: 1289.41628 | Q170: 14494.10688 | R170: 239.6644179 | S170: 19368.20698 | T170: 23.75188942 | U170: 0 | V170: 122151.4733
A171: 2004 | B171: 1 | C171: 8 | D171: 1 | E171: 0.04506012606 | F171: 0.04627317492 | G171: 0.002776885088 | H171: 0.0159793692 | I171: 0.0003897384548 | J171: 0.02495753063 | K171: 3.461477364e-05 | L171: 0.004569238766 | M171: 0.1400406779 | N171: 41278.87631 | O171: 36001.91425 | P171: 1289.41628 | Q171: 14974.89575 | R171: 239.6644179 | S171: 19195.97978 | T171: 23.75188942 | U171: 0 | V171: 113004.4987
A172: 2004 | B172: 1 | C172: 8 | D172: 2 | E172: 0.04127080114 | F172: 0.04570915947 | G172: 0.002776885088 | H172: 0.01614302665 | I172: 0.0003897384548 | J172: 0.02506712684 | K172: 3.461477364e-05 | L172: 0.004005264152 | M172: 0.1353966166 | N172: 37807.53505 | O172: 35563.09335 | P172: 1289.41628 | Q172: 15128.26558 | R172: 239.6644179 | S172: 18900.57874 | T172: 23.75188942 | U172: 0 | V172: 108952.3053
A173: 2004 | B173: 1 | C173: 8 | D173: 3 | E173: 0.03836910336 | F173: 0.04618499201 | G173: 0.002776885088 | H173: 0.01527857759 | I173: 0.0003897384548 | J173: 0.02451153399 | K173: 3.461477364e-05 | L173: 0.004678682913 | M173: 0.1322241282 | N173: 35149.33512 | O173: 35933.30531 | P173: 1289.41628 | Q173: 14318.15636 | R173: 239.6644179 | S173: 18977.17986 | T173: 23.75188942 | U173: 0 | V173: 105930.8092
A174: 2004 | B174: 1 | C174: 8 | D174: 4 | E174: 0.03894523556 | F174: 0.04560260455 | G174: 0.002776885088 | H174: 0.01494390119 | I174: 0.0003897384548 | J174: 0.02374497175 | K174: 3.461477364e-05 | L174: 0.003737419728 | M174: 0.1301753711 | N174: 35677.12082 | O174: 35480.19044 | P174: 1289.41628 | Q174: 14004.51793 | R174: 239.6644179 | S174: 17866.88629 | T174: 23.75188942 | U174: 0 | V174: 104581.5481
A175: 2004 | B175: 1 | C175: 8 | D175: 5 | E175: 0.04048234514 | F175: 0.045057803 | G175: 0.002776885088 | H175: 0.01582212803 | I175: 0.0003897384548 | J175: 0.02217817654 | K175: 3.461477364e-05 | L175: 0.00448481664 | M175: 0.1312265077 | N175: 37085.24285 | O175: 35056.31854 | P175: 1289.41628 | Q175: 14827.53886 | R175: 239.6644179 | S175: 17334.17805 | T175: 23.75188942 | U175: 0 | V175: 105856.1109
A176: 2004 | B176: 1 | C176: 8 | D176: 6 | E176: 0.0428823271 | F176: 0.04579524483 | G176: 0.002776885088 | H176: 0.0158058534 | I176: 0.0003897384548 | J176: 0.02176910592 | K176: 3.461477364e-05 | L176: 0.003886463945 | M176: 0.1333402335 | N176: 39283.82876 | O176: 35630.07034 | P176: 1289.41628 | Q176: 14812.28726 | R176: 239.6644179 | S176: 16679.23076 | T176: 23.75188942 | U176: 0 | V176: 107958.2497
A177: 2004 | B177: 1 | C177: 8 | D177: 7 | E177: 0.04759967309 | F177: 0.04799192381 | G177: 0.002776885088 | H177: 0.01599557277 | I177: 0.0003897384548 | J177: 0.02382586558 | K177: 3.461477364e-05 | L177: 0.004610361915 | M177: 0.1432246355 | N177: 43605.3156 | O177: 37339.1523 | P177: 1289.41628 | Q177: 14990.08075 | R177: 239.6644179 | S177: 18486.99534 | T177: 23.75188942 | U177: 0 | V177: 115974.3766
A178: 2004 | B178: 1 | C178: 8 | D178: 8 | E178: 0.05159027928 | F178: 0.05448716485 | G178: 0.002082664366 | H178: 0.02149859354 | I178: 0.0003750266383 | J178: 0.02760454881 | K178: 2.596108708e-05 | L178: 0.00464887407 | M178: 0.1623131126 | N178: 47261.04748 | O178: 42392.64412 | P178: 967.0624654 | Q178: 20147.17809 | R178: 230.6175842 | S178: 20968.63511 | T178: 17.81392177 | U178: 0 | V178: 131984.9988
A179: 2004 | B179: 1 | C179: 8 | D179: 9 | E179: 0.05985009331 | F179: 0.05327481634 | G179: 0 | H179: 0.02710435591 | I179: 0.0003308911419 | J179: 0.03034397586 | K179: 0 | L179: 0.004809885341 | M179: 0.1757140179 | N179: 54827.73385 | O179: 41449.40071 | P179: 0 | Q179: 25400.55862 | R179: 203.4770547 | S179: 22854.27166 | T179: 0 | U179: 0 | V179: 144735.4419
A180: 2004 | B180: 1 | C180: 8 | D180: 10 | E180: 0.06171650225 | F180: 0.04852385763 | G180: 0 | H180: 0.02874467867 | I180: 0.0003308911419 | J180: 0.03096501821 | K180: 0 | L180: 0.004198477677 | M180: 0.1744794256 | N180: 56537.52188 | O180: 37753.01272 | P180: 0 | Q180: 26937.76963 | R180: 203.4770547 | S180: 22860.53537 | T180: 0 | U180: 0 | V180: 144292.3167
A181: 2004 | B181: 1 | C181: 8 | D181: 11 | E181: 0.05840827688 | F181: 0.04907315845 | G181: 0 | H181: 0.02987426754 | I181: 0.0003308911419 | J181: 0.03097611576 | K181: 0 | L181: 0.004830555707 | M181: 0.1734932655 | N181: 53506.90838 | O181: 38180.38519 | P181: 0 | Q181: 27996.35183 | R181: 203.4770547 | S181: 23278.67747 | T181: 0 | U181: 0 | V181: 143165.7999
A182: 2004 | B182: 1 | C182: 8 | D182: 12 | E182: 0.05718670396 | F182: 0.04945377962 | G182: 0 | H182: 0.031420525 | I182: 0.0003308911419 | J182: 0.03006808942 | K182: 0 | L182: 0.003936290405 | M182: 0.1723962795 | N182: 52387.84455 | O182: 38476.51985 | P182: 0 | Q182: 29445.41054 | R182: 203.4770547 | S182: 22106.96941 | T182: 0 | U182: 0 | V182: 142620.2214
A183: 2004 | B183: 1 | C183: 8 | D183: 13 | E183: 0.05554368542 | F183: 0.0473886576 | G183: 0 | H183: 0.03029621485 | I183: 0.0003308911419 | J183: 0.02998131139 | K183: 0 | L183: 0.005090567151 | M183: 0.1686313276 | N183: 50882.70098 | O183: 36869.79314 | P183: 0 | Q183: 28391.77525 | R183: 203.4770547 | S183: 22800.97299 | T183: 0 | U183: 0 | V183: 139148.7194
A184: 2004 | B184: 1 | C184: 8 | D184: 14 | E184: 0.05571129307 | F184: 0.04756447685 | G184: 0 | H184: 0.02932481595 | I184: 0.0003308911419 | J184: 0.02996715338 | K184: 0 | L184: 0.004578377243 | M184: 0.1674770076 | N184: 51036.24372 | O184: 37006.58578 | P184: 0 | Q184: 27481.43911 | R184: 203.4770547 | S184: 22458.78303 | T184: 0 | U184: 0 | V184: 138186.5287
A185: 2004 | B185: 1 | C185: 8 | D185: 15 | E185: 0.05416606901 | F185: 0.04709521512 | G185: 0 | H185: 0.02973920667 | I185: 0.0003308911419 | J185: 0.02907887211 | K185: 0 | L185: 0.00496067022 | M185: 0.1653709243 | N185: 49620.68815 | O185: 36641.48611 | P185: 0 | Q185: 27869.78096 | R185: 203.4770547 | S185: 22129.8293 | T185: 0 | U185: 0 | V185: 136465.2616
A186: 2004 | B186: 1 | C186: 8 | D186: 16 | E186: 0.05658346232 | F186: 0.04555818777 | G186: 0 | H186: 0.02954994282 | I186: 0.0003308911419 | J186: 0.02770627843 | K186: 0 | L186: 0.004583381648 | M186: 0.1643121441 | N186: 51835.22433 | O186: 35445.63285 | P186: 0 | Q186: 27692.41436 | R186: 203.4770547 | S186: 20992.19369 | T186: 0 | U186: 0 | V186: 136168.9423
A187: 2004 | B187: 1 | C187: 8 | D187: 17 | E187: 0.06352931983 | F187: 0.04306335294 | G187: 0.0006942212721 | H187: 0.02846090041 | I187: 0.0003456029701 | J187: 0.02569399146 | K187: 8.653693409e-06 | L187: 0.004599265192 | M187: 0.1663953078 | N187: 58198.21569 | O187: 33504.57673 | P187: 322.3540701 | Q187: 26671.82986 | R187: 212.5238955 | S187: 19694.28943 | T187: 5.937972356 | U187: 0 | V187: 138609.7276
A188: 2004 | B188: 1 | C188: 8 | D188: 18 | E188: 0.06821440331 | F188: 0.04518055864 | G188: 0.002776885088 | H188: 0.02572309041 | I188: 0.0003897384548 | J188: 0.02493044092 | K188: 3.461477364e-05 | L188: 0.003931068418 | M188: 0.1711808 | N188: 62490.14734 | O188: 35151.8261 | P188: 1289.41628 | Q188: 24106.12037 | R188: 239.6644179 | S188: 18763.48009 | T188: 23.75188942 | U188: 0 | V188: 142064.4065
A189: 2004 | B189: 1 | C189: 8 | D189: 19 | E189: 0.06568158905 | F189: 0.05350930051 | G189: 0.002776885088 | H189: 0.0244093447 | I189: 0.0003897384548 | J189: 0.02680371481 | K189: 3.461477364e-05 | L189: 0.004642999335 | M189: 0.1782481867 | N189: 60169.87583 | O189: 41631.83641 | P189: 1289.41628 | Q189: 22874.95756 | R189: 239.6644179 | S189: 20444.17664 | T189: 23.75188942 | U189: 0 | V189: 146673.679
A190: 2004 | B190: 1 | C190: 8 | D190: 20 | E190: 0.07193535063 | F190: 0.05335555679 | G190: 0.002776885088 | H190: 0.02044010907 | I190: 0.0003897384548 | J190: 0.02686102424 | K190: 3.461477364e-05 | L190: 0.003616878857 | M190: 0.1794101579 | N190: 65898.84895 | O190: 41512.2192 | P190: 1289.41628 | Q190: 19155.23064 | R190: 239.6644179 | S190: 19814.332 | T190: 23.75188942 | U190: 0 | V190: 147933.4634
A191: 2004 | B191: 1 | C191: 8 | D191: 21 | E191: 0.06576040422 | F191: 0.05473655629 | G191: 0.002776885088 | H191: 0.02234226569 | I191: 0.0003897384548 | J191: 0.02674995829 | K191: 3.461477364e-05 | L191: 0.004253743708 | M191: 0.1770441665 | N191: 60242.07718 | O191: 42586.67812 | P191: 1289.41628 | Q191: 20937.81646 | R191: 239.6644179 | S191: 20156.16503 | T191: 23.75188942 | U191: 0 | V191: 145475.5694
A192: 2004 | B192: 1 | C192: 8 | D192: 22 | E192: 0.0650586139 | F192: 0.05364503837 | G192: 0.002776885088 | H192: 0.01794178778 | I192: 0.0003897384548 | J192: 0.02609796196 | K192: 3.461477364e-05 | L192: 0.003860136426 | M192: 0.1698047768 | N192: 59599.17805 | O192: 41737.44452 | P192: 1289.41628 | Q192: 16813.95543 | R192: 239.6644179 | S192: 19476.39592 | T192: 23.75188942 | U192: 0 | V192: 139179.8065
A193: 2004 | B193: 1 | C193: 8 | D193: 23 | E193: 0.06153448285 | F193: 0.04878343636 | G193: 0.002776885088 | H193: 0.01630135354 | I193: 0.0003897384548 | J193: 0.02626994492 | K193: 3.461477364e-05 | L193: 0.004280941558 | M193: 0.1603713975 | N193: 56370.77675 | O193: 37954.97274 | P193: 1289.41628 | Q193: 15276.63995 | R193: 239.6644179 | S193: 19861.78005 | T193: 23.75188942 | U193: 0 | V193: 131017.0021
A194: 2004 | B194: 1 | C194: 8 | D194: 24 | E194: 0.05426873798 | F194: 0.04766671307 | G194: 0.002776885088 | H194: 0.015575061 | I194: 0.0003897384548 | J194: 0.02524529116 | K194: 3.461477364e-05 | L194: 0.004055960944 | M194: 0.1500130025 | N194: 49714.74157 | O194: 37086.12861 | P194: 1289.41628 | Q194: 14596.00262 | R194: 239.6644179 | S194: 19049.3662 | T194: 23.75188942 | U194: 0 | V194: 121999.0716
A195: 2004 | B195: 1 | C195: 9 | D195: 1 | E195: 0.04158067274 | F195: 0.04471626955 | G195: 0.002776885088 | H195: 0.01373794905 | I195: 0.0003897384548 | J195: 0.02539119109 | K195: 3.461477364e-05 | L195: 0.004230462349 | M195: 0.1328577831 | N195: 38091.40358 | O195: 34790.5953 | P195: 1289.41628 | Q195: 12874.37271 | R195: 239.6644179 | S195: 19257.66592 | T195: 23.75188942 | U195: 0 | V195: 106566.8701
A196: 2004 | B196: 1 | C196: 9 | D196: 2 | E196: 0.03812509212 | F196: 0.04502022657 | G196: 0.002776885088 | H196: 0.01519976872 | I196: 0.0003897384548 | J196: 0.02448800558 | K196: 3.461477364e-05 | L196: 0.003952391532 | M196: 0.1299867228 | N196: =E196*1000000*$N$8826 -> 34925.80025 | O196: =F196*1000000*$O$8826 -> 35027.08295 | P196: =G196*1000000*$P$8826 -> 1289.41628 | Q196: =H196*1000000*$Q$8826 -> 14244.30146 | R196: =I196*1000000*$R$8826 -> 239.6644179 | S196: =(J196+L196)*1000000*$S$8826 -> 18489.70609 | T196: =K196*1000000*$T$8826 -> 23.75188942 | U196: =L196*1000000*$U$8826 -> 0 | V196: =SUM(N196:U196) -> 104239.7233
A197: 2004 | B197: 1 | C197: 9 | D197: 3 | E197: 0.03630345229 | F197: 0.0437305653 | G197: 0.002776885088 | H197: 0.01463071674 | I197: 0.0003897384548 | J197: 0.02463104588 | K197: 3.461477364e-05 | L197: 0.004164752344 | M197: 0.1266617709 | N197: 33257.0245 | O197: 34023.68791 | P197: 1289.41628 | Q197: 13711.02045 | R197: 239.6644179 | S197: 18720.7599 | T197: 23.75188942 | U197: 0 | V197: 101265.3254
A198: 2004 | B198: 1 | C198: 9 | D198: 4 | E198: 0.03557600097 | F198: 0.04468698953 | G198: 0.002776885088 | H198: 0.0148122989 | I198: 0.0003897384548 | J198: 0.02418184476 | K198: 3.461477364e-05 | L198: 0.003461307157 | M198: 0.1259196796 | N198: 32590.61774 | O198: 34767.81456 | P198: 1289.41628 | Q198: 13881.18824 | R198: 239.6644179 | S198: 17971.40006 | T198: 23.75188942 | U198: 0 | V198: 100763.8532
A199: 2004 | B199: 1 | C199: 9 | D199: 5 | E199: 0.03738168446 | F199: 0.04349248685 | G199: 0.002776885088 | H199: 0.01439962077 | I199: 0.0003897384548 | J199: 0.02242981402 | K199: 3.461477364e-05 | L199: 0.004153873204 | M199: 0.1250587176 | N199: 34244.77613 | O199: 33838.45575 | P199: 1289.41628 | Q199: 13494.45132 | R199: 239.6644179 | S199: 17282.61957 | T199: 23.75188942 | U199: 0 | V199: 100413.1354
A200: 2004 | B200: 1 | C200: 9 | D200: 6 | E200: 0.040114924 | F200: 0.04471424263 | G200: 0.002776885088 | H200: 0.01387926991 | I200: 0.0003897384548 | J200: 0.02208695856 | K200: 3.461477364e-05 | L200: 0.003929545339 | M200: 0.1279261788 | N200: 36748.6541 | O200: 34789.01829 | P200: 1289.41628 | Q200: 13006.81006 | R200: 239.6644179 | S200: 16913.88164 | T200: 23.75188942 | U200: 0 | V200: 103011.1967
... 4294 more rows

Sheet KN Hourly load shapes by class
A1: ALL UNITS IN GWh
A2: Year | B2: Month | C2: Day | D2: Hour (EST) | E2: Residential 04 | G2: Residential | H2: GS>50kW | J2: GS>50kW | K2: Street Lighting 04 | M2: Street Lighting | N2: GS<50kW 04 | P2: GS<50kW | Q2: USL 04 | S2: USL | T2: TOTAL LDC sales | U2: Residential | V2: GS>50kW | W2: Street Lighting | X2: GS<50kW | Y2: USL | Z2: TOTAL LDC sales
A3: 2011 | B3: 1 | C3: 1 | D3: 1 | E3: 0.005840711274 | F3: =E3/$E$8787 -> 0.0001319906364 | G3: =F3*$E$8788 -> 0.005090392423 | H3: 0.005459979132 | I3: =H3/$H$8787 -> 0.0001401520155 | J3: =I3*$H$8788 -> 0.005248458833 | K3: 0.0005061248817 | L3: =K3/$K$8787 -> 0.0002773185 | M3: =L3*$K$8788 -> 0.0001041015795 | N3: 0.002972540066 | O3: =N3/$N$8787 -> 0.0001037369487 | P3: =O3*$N$8788 -> 0.002478877123 | Q3: 2.400860215e-05 | R3: =Q3/$Q$8787 -> 0.0001235519288 | S3: =R3*$Q$8788 -> 2.083974835e-05 | T3: =G3+J3+M3+P3+S3 -> 0.01294266971 | U3: =G3*1000000 -> 5090.392423 | V3: =J3*1000000 -> 5248.458833 | W3: =M3*1000000 -> 104.1015795 | X3: =P3*1000000 -> 2478.877123 | Y3: =S3*1000000 -> 20.83974835 | Z3: =SUM(U3:Y3) -> 12942.66971
A4: 2011 | B4: 1 | C4: 1 | D4: 2 | E4: 0.005475034144 | F4: =E4/$E$8787 -> 0.0001237269242 | G4: =F4*$E$8788 -> 0.004771691497 | H4: 0.005358821678 | I4: =H4/$H$8787 -> 0.0001375554083 | J4: =I4*$H$8788 -> 0.005151220232 | K4: 0.0005061248817 | L4: =K4/$K$8787 -> 0.0002773185 | M4: =L4*$K$8788 -> 0.0001041015795 | N4: 0.002628318688 | O4: =N4/$N$8787 -> 9.172416684e-05 | P4: =O4*$N$8788 -> 0.002191822119 | Q4: 2.400860215e-05 | R4: =Q4/$Q$8787 -> 0.0001235519288 | S4: =R4*$Q$8788 -> 2.083974835e-05 | T4: =G4+J4+M4+P4+S4 -> 0.01223967518 | U4: =G4*1000000 -> 4771.691497 | V4: =J4*1000000 -> 5151.220232 | W4: =M4*1000000 -> 104.1015795 | X4: =P4*1000000 -> 2191.822119 | Y4: =S4*1000000 -> 20.83974835 | Z4: =SUM(U4:Y4) -> 12239.67518
A5: 2011 | B5: 1 | C5: 1 | D5: 3 | E5: 0.004787635172 | F5: 0.0001081928182 | G5: 0.004172598278 | H5: 0.005629044689 | I5: 0.0001444917534 | J5: 0.005410974768 | K5: 0.0005061248817 | L5: 0.0002773185 | M5: 0.0001041015795 | N5: 0.002443932316 | O5: 8.528937395e-05 | P5: 0.002038057611 | Q5: 2.400860215e-05 | R5: 0.0001235519288 | S5: 2.083974835e-05 | T5: 0.01174657199 | U5: 4172.598278 | V5: 5410.974768 | W5: 104.1015795 | X5: 2038.057611 | Y5: 20.83974835 | Z5: 11746.57199
A6: 2011 | B6: 1 | C6: 1 | D6: 4 | E6: 0.004754340222 | F6: 0.0001074404062 | G6: 0.004143580517 | H6: 0.00555689694 | I6: 0.0001426397953 | J6: 0.005341622033 | K6: 0.0005061248817 | L6: 0.0002773185 | M6: 0.0001041015795 | N6: 0.002352789081 | O6: 8.210861916e-05 | P6: 0.001962050939 | Q6: 2.400860215e-05 | R6: 0.0001235519288 | S6: 2.083974835e-05 | T6: 0.01157219482 | U6: 4143.580517 | V6: 5341.622033 | W6: 104.1015795 | X6: 1962.050939 | Y6: 20.83974835 | Z6: 11572.19482
A7: 2011 | B7: 1 | C7: 1 | D7: 5 | E7: 0.004713439412 | F7: 0.0001065161139 | G7: 0.004107933973 | H7: 0.005349414037 | I7: 0.0001373139239 | J7: 0.005142177044 | K7: 0.0005061248817 | L7: 0.0002773185 | M7: 0.0001041015795 | N7: 0.002383931311 | O7: 8.319543375e-05 | P7: 0.00198802124 | Q7: 2.400860215e-05 | R7: 0.0001235519288 | S7: 2.083974835e-05 | T7: 0.01136307359 | U7: 4107.933973 | V7: 5142.177044 | W7: 104.1015795 | X7: 1988.02124 | Y7: 20.83974835 | Z7: 11363.07359
A8: 2011 | B8: 1 | C8: 1 | D8: 6 | E8: 0.004947494786 | F8: 0.0001118053872 | G8: 0.004311921749 | H8: 0.005358970634 | I8: 0.0001375592318 | J8: 0.005151363418 | K8: 0.0005061248817 | L8: 0.0002773185 | M8: 0.0001041015795 | N8: 0.002032621364 | O8: 7.093527201e-05 | P8: 0.001695054898 | Q8: 2.400860215e-05 | R8: 0.0001235519288 | S8: 2.083974835e-05 | T8: 0.01128328139 | U8: 4311.921749 | V8: 5151.363418 | W8: 104.1015795 | X8: 1695.054898 | Y8: 20.83974835 | Z8: 11283.28139
A9: 2011 | B9: 1 | C9: 1 | D9: 7 | E9: 0.005018804309 | F9: 0.0001134168672 | G9: 0.004374070593 | H9: 0.005280486574 | I9: 0.0001355446272 | J9: 0.00507591984 | K9: 0.0005061248817 | L9: 0.0002773185 | M9: 0.0001041015795 | N9: 0.002236381834 | O9: 7.804619029e-05 | P9: 0.001864975961 | Q9: 2.400860215e-05 | R9: 0.0001235519288 | S9: 2.083974835e-05 | T9: 0.01143990772 | U9: 4374.070593 | V9: 5075.91984 | W9: 104.1015795 | X9: 1864.975961 | Y9: 20.83974835 | Z9: 11439.90772
A10: 2011 | B10: 1 | C10: 1 | D10: 8 | E10: 0.005397867668 | F10: 0.0001219830865 | G10: 0.004704438104 | H10: 0.0053888295 | I10: 0.000138325678 | J10: 0.005180065547 | K10: 0.0005061248817 | L10: 0.0002773185 | M10: 0.0001041015795 | N10: 0.002433156524 | O10: 8.491331585e-05 | P10: 0.002029071403 | Q10: 2.400860215e-05 | R10: 0.0001235519288 | S10: 2.083974835e-05 | T10: 0.01203851638 | U10: 4704.438104 | V10: 5180.065547 | W10: 104.1015795 | X10: 2029.071403 | Y10: 20.83974835 | Z10: 12038.51638
A11: 2011 | B11: 1 | C11: 1 | D11: 9 | E11: 0.006268843421 | F11: 0.0001416657311 | G11: 0.005463525169 | H11: 0.004782500817 | I11: 0.000122761848 | J11: 0.004597226115 | K11: 0.0005061248817 | L11: 0.0002773185 | M11: 0.0001041015795 | N11: 0.002716958911 | O11: 9.481757045e-05 | P11: 0.002265741466 | Q11: 2.400860215e-05 | R11: 0.0001235519288 | S11: 2.083974835e-05 | T11: 0.01245143408 | U11: 5463.525169 | V11: 4597.226115 | W11: 104.1015795 | X11: 2265.741466 | Y11: 20.83974835 | Z11: 12451.43408
A12: 2011 | B12: 1 | C12: 1 | D12: 10 | E12: 0.00754804053 | F12: 0.0001705735186 | G12: 0.006578392 | H12: 0.004035232304 | I12: 0.0001035802384 | J12: 0.003878906882 | K12: 0 | L12: 0 | M12: 0 | N12: 0.003515858581 | O12: 0.0001226979059 | P12: 0.002931964316 | Q12: 2.400860215e-05 | R12: 0.0001235519288 | S12: 2.083974835e-05 | T12: 0.01341010295 | U12: 6578.392 | V12: 3878.906882 | W12: 0 | X12: 2931.964316 | Y12: 20.83974835 | Z12: 13410.10295
A13: 2011 | B13: 1 | C13: 1 | D13: 11 | E13: 0.007320555068 | F13: 0.0001654327147 | G13: 0.006380130141 | H13: 0.004203850556 | I13: 0.0001079084945 | J13: 0.004040992841 | K13: 0 | L13: 0 | M13: 0 | N13: 0.004059739017 | O13: 0.0001416784732 | P13: 0.003385520111 | Q13: 2.400860215e-05 | R13: 0.0001235519288 | S13: 2.083974835e-05 | T13: 0.01382748284 | U13: 6380.130141 | V13: 4040.992841 | W13: 0 | X13: 3385.520111 | Y13: 20.83974835 | Z13: 13827.48284
A14: 2011 | B14: 1 | C14: 1 | D14: 12 | E14: 0.007600029225 | F14: 0.0001717483791 | G14: 0.00662370204 | H14: 0.004288386352 | I14: 0.0001100784409 | J14: 0.004122253709 | K14: 0 | L14: 0 | M14: 0 | N14: 0.004140167358 | O14: 0.0001444852952 | P14: 0.00345259136 | Q14: 2.400860215e-05 | R14: 0.0001235519288 | S14: 2.083974835e-05 | T14: 0.01421938686 | U14: 6623.70204 | V14: 4122.253709 | W14: 0 | X14: 3452.59136 | Y14: 20.83974835 | Z14: 14219.38686
A15: 2011 | B15: 1 | C15: 1 | D15: 13 | E15: 0.007163510119 | F15: 0.0001618837527 | G15: 0.006243259753 | H15: 0.004427096523 | I15: 0.0001136389875 | J15: 0.00425559023 | K15: 0 | L15: 0 | M15: 0 | N15: 0.004553789233 | O15: 0.0001589200446 | P15: 0.003797521211 | Q15: 2.400860215e-05 | R15: 0.0001235519288 | S15: 2.083974835e-05 | T15: 0.01431721094 | U15: 6243.259753 | V15: 4255.59023 | W15: 0 | X15: 3797.521211 | Y15: 20.83974835 | Z15: 14317.21094
A16: 2011 | B16: 1 | C16: 1 | D16: 14 | E16: 0.0069198042 | F16: 0.0001563763927 | G16: 0.006030861177 | H16: 0.004614556245 | I16: 0.0001184508846 | J16: 0.004435787739 | K16: 0 | L16: 0 | M16: 0 | N16: 0.004403122582 | O16: 0.0001536620167 | P16: 0.00367187644 | Q16: 2.400860215e-05 | R16: 0.0001235519288 | S16: 2.083974835e-05 | T16: 0.0141593651 | U16: 6030.861177 | V16: 4435.787739 | W16: 0 | X16: 3671.87644 | Y16: 20.83974835 | Z16: 14159.3651
A17: 2011 | B17: 1 | C17: 1 | D17: 15 | E17: 0.00716631456 | F17: 0.0001619471285 | G17: 0.006245703926 | H17: 0.004462274363 | I17: 0.0001145419663 | J17: 0.004289405276 | K17: 0 | L17: 0 | M17: 0 | N17: 0.004195662864 | O17: 0.0001464220006 | P17: 0.00349887048 | Q17: 2.400860215e-05 | R17: 0.0001235519288 | S17: 2.083974835e-05 | T17: 0.01405481943 | U17: 6245.703926 | V17: 4289.405276 | W17: 0 | X17: 3498.87048 | Y17: 20.83974835 | Z17: 14054.81943
A18: 2011 | B18: 1 | C18: 1 | D18: 16 | E18: 0.00737109353 | F18: 0.0001665748023 | G18: 0.00642417625 | H18: 0.004316957153 | I18: 0.0001108118238 | J18: 0.004149717674 | K18: 0 | L18: 0 | M18: 0 | N18: 0.004045101197 | O18: 0.0001411676364 | P18: 0.003373313258 | Q18: 2.400860215e-05 | R18: 0.0001235519288 | S18: 2.083974835e-05 | T18: 0.01396804693 | U18: 6424.17625 | V18: 4149.717674 | W18: 0 | X18: 3373.313258 | Y18: 20.83974835 | Z18: 13968.04693
A19: 2011 | B19: 1 | C19: 1 | D19: 17 | E19: 0.007760048522 | F19: 0.0001753645566 | G19: 0.00676316468 | H19: 0.004153149897 | I19: 0.000106607061 | J19: 0.003992256331 | K19: 0 | L19: 0 | M19: 0 | N19: 0.003956420228 | O19: 0.0001380728108 | P19: 0.003299359933 | Q19: 2.400860215e-05 | R19: 0.0001235519288 | S19: 2.083974835e-05 | T19: 0.01407562069 | U19: 6763.16468 | V19: 3992.256331 | W19: 0 | X19: 3299.359933 | Y19: 20.83974835 | Z19: 14075.62069
A20: 2011 | B20: 1 | C20: 1 | D20: 18 | E20: 0.008429836878 | F20: 0.0001905006911 | G20: 0.007346909607 | H20: 0.004820606586 | I20: 0.0001237399837 | J20: 0.004633855662 | K20: 0 | L20: 0 | M20: 0 | N20: 0.003989747128 | O20: 0.000139235867 | P20: 0.003327152086 | Q20: 2.400860215e-05 | R20: 0.0001235519288 | S20: 2.083974835e-05 | T20: 0.0153287571 | U20: 7346.909607 | V20: 4633.855662 | W20: 0 | X20: 3327.152086 | Y20: 20.83974835 | Z20: 15328.7571
A21: 2011 | B21: 1 | C21: 1 | D21: 19 | E21: 0.009098703414 | F21: 0.0002056159939 | G21: 0.007929851134 | H21: 0.005455489349 | I21: 0.0001400367674 | J21: 0.005244142985 | K21: 0.0005061248817 | L21: 0.0002773185 | M21: 0.0001041015795 | N21: 0.003490327564 | O21: 0.0001218069137 | P21: 0.002910673349 | Q21: 2.400860215e-05 | R21: 0.0001235519288 | S21: 2.083974835e-05 | T21: 0.0162096088 | U21: 7929.851134 | V21: 5244.142985 | W21: 104.1015795 | X21: 2910.673349 | Y21: 20.83974835 | Z21: 16209.6088
A22: 2011 | B22: 1 | C22: 1 | D22: 20 | E22: 0.009165582635 | F22: 0.0002071273562 | G22: 0.007988138808 | H22: 0.005732700287 | I22: 0.0001471524854 | J22: 0.005510614735 | K22: 0.0005061248817 | L22: 0.0002773185 | M22: 0.0001041015795 | N22: 0.002549838471 | O22: 8.898533134e-05 | P22: 0.002126375461 | Q22: 2.400860215e-05 | R22: 0.0001235519288 | S22: 2.083974835e-05 | T22: 0.01575007033 | U22: 7988.138808 | V22: 5510.614735 | W22: 104.1015795 | X22: 2126.375461 | Y22: 20.83974835 | Z22: 15750.07033
A23: 2011 | B23: 1 | C23: 1 | D23: 21 | E23: 0.008684457546 | F23: 0.0001962547067 | G23: 0.007568820785 | H23: 0.005504679704 | I23: 0.0001412994329 | J23: 0.005291427699 | K23: 0.0005061248817 | L23: 0.0002773185 | M23: 0.0001041015795 | N23: 0.002803847348 | O23: 9.784983954e-05 | P23: 0.002338199954 | Q23: 2.400860215e-05 | R23: 0.0001235519288 | S23: 2.083974835e-05 | T23: 0.01532338977 | U23: 7568.820785 | V23: 5291.427699 | W23: 104.1015795 | X23: 2338.199954 | Y23: 20.83974835 | Z23: 15323.38977
A24: 2011 | B24: 1 | C24: 1 | D24: 22 | E24: 0.008321215269 | F24: 0.0001880460182 | G24: 0.007252241921 | H24: 0.00546248699 | I24: 0.0001402163896 | J24: 0.005250869536 | K24: 0.0005061248817 | L24: 0.0002773185 | M24: 0.0001041015795 | N24: 0.002678166201 | O24: 9.346376623e-05 | P24: 0.002233391234 | Q24: 2.400860215e-05 | R24: 0.0001235519288 | S24: 2.083974835e-05 | T24: 0.01486144402 | U24: 7252.241921 | V24: 5250.869536 | W24: 104.1015795 | X24: 2233.391234 | Y24: 20.83974835 | Z24: 14861.44402
A25: 2011 | B25: 1 | C25: 1 | D25: 23 | E25: 0.007800201043 | F25: 0.0001762719387 | G25: 0.006798159064 | H25: 0.005371136066 | I25: 0.0001378715059 | J25: 0.005163057559 | K25: 0.0005061248817 | L25: 0.0002773185 | M25: 0.0001041015795 | N25: 0.002738023493 | O25: 9.555269106e-05 | P25: 0.002283307759 | Q25: 2.400860215e-05 | R25: 0.0001235519288 | S25: 2.083974835e-05 | T25: 0.01436946571 | U25: 6798.159064 | V25: 5163.057559 | W25: 104.1015795 | X25: 2283.307759 | Y25: 20.83974835 | Z25: 14369.46571
A26: 2011 | B26: 1 | C26: 1 | D26: 24 | E26: 0.006652665239 | F26: 0.0001503394839 | G26: 0.005798039851 | H26: 0.005308131979 | I26: 0.0001362542562 | J26: 0.005102494258 | K26: 0.0005061248817 | L26: 0.0002773185 | M26: 0.0001041015795 | N26: 0.002813306659 | O26: 9.817995453e-05 | P26: 0.002346088315 | Q26: 2.400860215e-05 | R26: 0.0001235519288 | S26: 2.083974835e-05 | T26: 0.01337156375 | U26: 5798.039851 | V26: 5102.494258 | W26: 104.1015795 | X26: 2346.088315 | Y26: 20.83974835 | Z26: 13371.56375
A27: 2011 | B27: 1 | C27: 2 | D27: 1 | E27: 0.005948983584 | F27: 0.0001344374156 | G27: 0.005184755681 | H27: 0.004769568811 | I27: 0.0001224298968 | J27: 0.004584795097 | K27: 0.0005061248817 | L27: 0.0002773185 | M27: 0.0001041015795 | N27: 0.002337756203 | O27: 8.158399548e-05 | P27: 0.001949514638 | Q27: 2.400860215e-05 | R27: 0.0001235519288 | S27: 2.083974835e-05 | T27: 0.01184400674 | U27: 5184.755681 | V27: 4584.795097 | W27: 104.1015795 | X27: 1949.514638 | Y27: 20.83974835 | Z27: 11844.00674
A28: 2011 | B28: 1 | C28: 2 | D28: 2 | E28: 0.00536073415 | F28: 0.000121143929 | G28: 0.004672074893 | H28: 0.004695700297 | I28: 0.0001205337685 | J28: 0.004513788259 | K28: 0.0005061248817 | L28: 0.0002773185 | M28: 0.0001041015795 | N28: 0.002139061775 | O28: 7.464987406e-05 | P28: 0.001783818276 | Q28: 2.400860215e-05 | R28: 0.0001235519288 | S28: 2.083974835e-05 | T28: 0.01109462276 | U28: 4672.074893 | V28: 4513.788259 | W28: 104.1015795 | X28: 1783.818276 | Y28: 20.83974835 | Z28: 11094.62276
A29: 2011 | B29: 1 | C29: 2 | D29: 3 | E29: 0.004837699852 | F29: 0.0001093241991 | G29: 0.004216231468 | H29: 0.004638922312 | I29: 0.0001190763364 | J29: 0.00445920986 | K29: 0.0005061248817 | L29: 0.0002773185 | M29: 0.0001041015795 | N29: 0.002311026729 | O29: 8.065117908e-05 | P29: 0.001927224246 | Q29: 2.400860215e-05 | R29: 0.0001235519288 | S29: 2.083974835e-05 | T29: 0.0107276069 | U29: 4216.231468 | V29: 4459.20986 | W29: 104.1015795 | X29: 1927.224246 | Y29: 20.83974835 | Z29: 10727.6069
A30: 2011 | B30: 1 | C30: 2 | D30: 4 | E30: 0.004606465854 | F30: 0.0001040986844 | G30: 0.004014702624 | H30: 0.004699554936 | I30: 0.0001206327131 | J30: 0.004517493569 | K30: 0.0005061248817 | L30: 0.0002773185 | M30: 0.0001041015795 | N30: 0.002100635687 | O30: 7.330886437e-05 | P30: 0.00175177378 | Q30: 2.400860215e-05 | R30: 0.0001235519288 | S30: 2.083974835e-05 | T30: 0.0104089113 | U30: 4014.702624 | V30: 4517.493569 | W30: 104.1015795 | X30: 1751.77378 | Y30: 20.83974835 | Z30: 10408.9113
A31: 2011 | B31: 1 | C31: 2 | D31: 5 | E31: 0.004514890842 | F31: 0.0001020292371 | G31: 0.003934891668 | H31: 0.00461261006 | I31: 0.0001184009281 | J31: 0.004433916948 | K31: 0.0005061248817 | L31: 0.0002773185 | M31: 0.0001041015795 | N31: 0.00209975915 | O31: 7.327827459e-05 | P31: 0.001751042813 | Q31: 2.400860215e-05 | R31: 0.0001235519288 | S31: 2.083974835e-05 | T31: 0.01024479276 | U31: 3934.891668 | V31: 4433.916948 | W31: 104.1015795 | X31: 1751.042813 | Y31: 20.83974835 | Z31: 10244.79276
A32: 2011 | B32: 1 | C32: 2 | D32: 6 | E32: 0.004687591298 | F32: 0.0001059319883 | G32: 0.004085406401 | H32: 0.004706426051 | I32: 0.0001208090875 | J32: 0.004524098496 | K32: 0.0005061248817 | L32: 0.0002773185 | M32: 0.0001041015795 | N32: 0.001915241762 | O32: 6.683890948e-05 | P32: 0.001597169048 | Q32: 2.400860215e-05 | R32: 0.0001235519288 | S32: 2.083974835e-05 | T32: 0.01033161527 | U32: 4085.406401 | V32: 4524.098496 | W32: 104.1015795 | X32: 1597.169048 | Y32: 20.83974835 | Z32: 10331.61527
A33: 2011 | B33: 1 | C33: 2 | D33: 7 | E33: 0.004822130606 | F33: 0.0001089723593 | G33: 0.004202662303 | H33: 0.004768090427 | I33: 0.0001223919483 | J33: 0.004583373987 | K33: 0.0005061248817 | L33: 0.0002773185 | M33: 0.0001041015795 | N33: 0.002030205716 | O33: 7.085096971e-05 | P33: 0.001693040427 | Q33: 2.400860215e-05 | R33: 0.0001235519288 | S33: 2.083974835e-05 | T33: 0.01060401804 | U33: 4202.662303 | V33: 4583.373987 | W33: 104.1015795 | X33: 1693.040427 | Y33: 20.83974835 | Z33: 10604.01804
A34: 2011 | B34: 1 | C34: 2 | D34: 8 | E34: 0.005155625194 | F34: 0.000116508798 | G34: 0.004493314973 | H34: 0.005096820858 | I34: 0.0001308301183 | J34: 0.004899369358 | K34: 0.0005061248817 | L34: 0.0002773185 | M34: 0.0001041015795 | N34: 0.002327980032 | O34: 8.124282258e-05 | P34: 0.001941362039 | Q34: 2.400860215e-05 | R34: 0.0001235519288 | S34: 2.083974835e-05 | T34: 0.0114589877 | U34: 4493.314973 | V34: 4899.369358 | W34: 104.1015795 | X34: 1941.362039 | Y34: 20.83974835 | Z34: 11458.9877
A35: 2011 | B35: 1 | C35: 2 | D35: 9 | E35: 0.006161366192 | F35: 0.0001392369194 | G35: 0.005369854853 | H35: 0.004794349271 | I35: 0.0001230659856 | J35: 0.004608615559 | K35: 0.0005061248817 | L35: 0.0002773185 | M35: 0.0001041015795 | N35: 0.002850759647 | O35: 9.948700462e-05 | P35: 0.002377321319 | Q35: 2.400860215e-05 | R35: 0.0001235519288 | S35: 2.083974835e-05 | T35: 0.01248073306 | U35: 5369.854853 | V35: 4608.615559 | W35: 104.1015795 | X35: 2377.321319 | Y35: 20.83974835 | Z35: 12480.73306
A36: 2011 | B36: 1 | C36: 2 | D36: 10 | E36: 0.00703007717 | F36: 0.0001588683837 | G36: 0.006126968083 | H36: 0.004585304981 | I36: 0.0001177000349 | J36: 0.004407669672 | K36: 0 | L36: 0 | M36: 0 | N36: 0.003427333451 | O36: 0.0001196085188 | P36: 0.002858140948 | Q36: 2.400860215e-05 | R36: 0.0001235519288 | S36: 2.083974835e-05 | T36: 0.01341361845 | U36: 6126.968083 | V36: 4407.669672 | W36: 0 | X36: 2858.140948 | Y36: 20.83974835 | Z36: 13413.61845
A37: 2011 | B37: 1 | C37: 2 | D37: 11 | E37: 0.007079243879 | F37: 0.0001599794718 | G37: 0.006169818659 | H37: 0.004736809878 | I37: 0.0001215890089 | J37: 0.00455330525 | K37: 0 | L37: 0 | M37: 0 | N37: 0.003766997256 | O37: 0.0001314622486 | P37: 0.003141395276 | Q37: 2.400860215e-05 | R37: 0.0001235519288 | S37: 2.083974835e-05 | T37: 0.01388535893 | U37: 6169.818659 | V37: 4553.30525 | W37: 0 | X37: 3141.395276 | Y37: 20.83974835 | Z37: 13885.35893
A38: 2011 | B38: 1 | C38: 2 | D38: 12 | E38: 0.007768834539 | F38: 0.0001755631064 | G38: 0.006770822014 | H38: 0.004549326944 | I38: 0.000116776516 | J38: 0.004373085429 | K38: 0 | L38: 0 | M38: 0 | N38: 0.003680255791 | O38: 0.0001284351086 | P38: 0.003069059351 | Q38: 2.400860215e-05 | R38: 0.0001235519288 | S38: 2.083974835e-05 | T38: 0.01423380654 | U38: 6770.822014 | V38: 4373.085429 | W38: 0 | X38: 3069.059351 | Y38: 20.83974835 | Z38: 14233.80654
A39: 2011 | B39: 1 | C39: 2 | D39: 13 | E39: 0.007030723329 | F39: 0.0001588829858 | G39: 0.006127531234 | H39: 0.004585673632 | I39: 0.0001177094978 | J39: 0.004408024041 | K39: 0 | L39: 0 | M39: 0 | N39: 0.004655232509 | O39: 0.0001624602546 | P39: 0.003882117351 | Q39: 2.400860215e-05 | R39: 0.0001235519288 | S39: 2.083974835e-05 | T39: 0.01443851237 | U39: 6127.531234 | V39: 4408.024041 | W39: 0 | X39: 3882.117351 | Y39: 20.83974835 | Z39: 14438.51237
A40: 2011 | B40: 1 | C40: 2 | D40: 14 | E40: 0.007250563732 | F40: 0.0001638510237 | G40: 0.006319130146 | H40: 0.0043663086 | I40: 0.0001120786244 | J40: 0.004197157239 | K40: 0 | L40: 0 | M40: 0 | N40: 0.004298470633 | O40: 0.0001500098292 | P40: 0.003584604506 | Q40: 2.400860215e-05 | R40: 0.0001235519288 | S40: 2.083974835e-05 | T40: 0.01412173164 | U40: 6319.130146 | V40: 4197.157239 | W40: 0 | X40: 3584.604506 | Y40: 20.83974835 | Z40: 14121.73164
A41: 2011 | B41: 1 | C41: 2 | D41: 15 | E41: 0.00701862416 | F41: 0.0001586095641 | G41: 0.006116986368 | H41: 0.004297714803 | I41: 0.0001103178926 | J41: 0.004131220775 | K41: 0 | L41: 0 | M41: 0 | N41: 0.004406002307 | O41: 0.0001537625146 | P41: 0.003674277917 | Q41: 2.400860215e-05 | R41: 0.0001235519288 | S41: 2.083974835e-05 | T41: 0.01394332481 | U41: 6116.986368 | V41: 4131.220775 | W41: 0 | X41: 3674.277917 | Y41: 20.83974835 | Z41: 13943.32481
A42: 2011 | B42: 1 | C42: 2 | D42: 16 | E42: 0.007425940053 | F42: 0.0001678142451 | G42: 0.006471976991 | H42: 0.004116445219 | I42: 0.0001056648899 | J42: 0.003956973597 | K42: 0 | L42: 0 | M42: 0 | N42: 0.003785716694 | O42: 0.0001321155274 | P42: 0.003157005893 | Q42: 2.400860215e-05 | R42: 0.0001235519288 | S42: 2.083974835e-05 | T42: 0.01360679623 | U42: 6471.976991 | V42: 3956.973597 | W42: 0 | X42: 3157.005893 | Y42: 20.83974835 | Z42: 13606.79623
A43: 2011 | B43: 1 | C43: 2 | D43: 17 | E43: 0.007194638036 | F43: 0.0001625871933 | G43: 0.006270388866 | H43: 0.004124154471 | I43: 0.0001058627785 | J43: 0.003964384193 | K43: 0 | L43: 0 | M43: 0 | N43: 0.004474806362 | O43: 0.0001561636674 | P43: 0.003731655377 | Q43: 2.400860215e-05 | R43: 0.0001235519288 | S43: 2.083974835e-05 | T43: 0.01398726818 | U43: 6270.388866 | V43: 3964.384193 | W43: 0 | X43: 3731.655377 | Y43: 20.83974835 | Z43: 13987.26818
A44: 2011 | B44: 1 | C44: 2 | D44: 18 | E44: 0.008387716833 | F44: 0.0001895488461 | G44: 0.007310200455 | H44: 0.00443848295 | I44: 0.0001139312653 | J44: 0.004266535546 | K44: 0 | L44: 0 | M44: 0 | N44: 0.004557967891 | O44: 0.0001590658732 | P44: 0.003801005901 | Q44: 2.400860215e-05 | R44: 0.0001235519288 | S44: 2.083974835e-05 | T44: 0.01539858165 | U44: 7310.200455 | V44: 4266.535546 | W44: 0 | X44: 3801.005901 | Y44: 20.83974835 | Z44: 15398.58165
A45: 2011 | B45: 1 | C45: 2 | D45: 19 | E45: 0.008843241142 | F45: 0.0001998429594 | G45: 0.007707206467 | H45: 0.005110252725 | I45: 0.0001311749004 | J45: 0.004912280872 | K45: 0.0005061248817 | L45: 0.0002773185 | M45: 0.0001041015795 | N45: 0.00397549919 | O45: 0.0001387386364 | P45: 0.003315270366 | Q45: 2.400860215e-05 | R45: 0.0001235519288 | S45: 2.083974835e-05 | T45: 0.01605969903 | U45: 7707.206467 | V45: 4912.280872 | W45: 104.1015795 | X45: 3315.270366 | Y45: 20.83974835 | Z45: 16059.69903
A46: 2011 | B46: 1 | C46: 2 | D46: 20 | E46: 0.008823357743 | F46: 0.0001993936267 | G46: 0.007689877361 | H46: 0.005274516026 | I46: 0.0001353913694 | J46: 0.005070180591 | K46: 0.0005061248817 | L46: 0.0002773185 | M46: 0.0001041015795 | N46: 0.003166889283 | O46: 0.0001105194291 | P46: 0.002640949902 | Q46: 2.400860215e-05 | R46: 0.0001235519288 | S46: 2.083974835e-05 | T46: 0.01552594918 | U46: 7689.877361 | V46: 5070.180591 | W46: 104.1015795 | X46: 2640.949902 | Y46: 20.83974835 | Z46: 15525.94918
A47: 2011 | B47: 1 | C47: 2 | D47: 21 | E47: 0.008363173952 | F47: 0.0001889942167 | G47: 0.007288810441 | H47: 0.005135463901 | I47: 0.0001318220452 | J47: 0.004936515364 | K47: 0.0005061248817 | L47: 0.0002773185 | M47: 0.0001041015795 | N47: 0.003090437783 | O47: 0.0001078513926 | P47: 0.002577195041 | Q47: 2.400860215e-05 | R47: 0.0001235519288 | S47: 2.083974835e-05 | T47: 0.01492746217 | U47: 7288.810441 | V47: 4936.515364 | W47: 104.1015795 | X47: 2577.195041 | Y47: 20.83974835 | Z47: 14927.46217
A48: 2011 | B48: 1 | C48: 2 | D48: 22 | E48: 0.00789275197 | F48: 0.0001783634401 | G48: 0.006878820565 | H48: 0.005220393028 | I48: 0.000134002088 | J48: 0.005018154325 | K48: 0.0005061248817 | L48: 0.0002773185 | M48: 0.0001041015795 | N48: 0.003136477101 | O48: 0.000109458092 | P48: 0.002615588405 | Q48: 2.400860215e-05 | R48: 0.0001235519288 | S48: 2.083974835e-05 | T48: 0.01463750462 | U48: 6878.820565 | V48: 5018.154325 | W48: 104.1015795 | X48: 2615.588405 | Y48: 20.83974835 | Z48: 14637.50462
A49: 2011 | B49: 1 | C49: 2 | D49: 23 | E49: 0.007824971498 | F49: 0.0001768317109 | G49: 0.006819747416 | H49: 0.004877977292 | I49: 0.0001252126304 | J49: 0.00468900382 | K49: 0.0005061248817 | L49: 0.0002773185 | M49: 0.0001041015795 | N49: 0.002887815413 | O49: 0.0001007801923 | P49: 0.00240822307 | Q49: 2.400860215e-05 | R49: 0.0001235519288 | S49: 2.083974835e-05 | T49: 0.01404191563 | U49: 6819.747416 | V49: 4689.00382 | W49: 104.1015795 | X49: 2408.22307 | Y49: 20.83974835 | Z49: 14041.91563
A50: 2011 | B50: 1 | C50: 2 | D50: 24 | E50: 0.006887597364 | F50: 0.0001556485703 | G50: 0.006002791747 | H50: 0.004959341498 | I50: 0.0001273011654 | J50: 0.004767215966 | K50: 0.0005061248817 | L50: 0.0002773185 | M50: 0.0001041015795 | N50: 0.002407131139 | O50: 8.400507106e-05 | P50: 0.00200736817 | Q50: 2.400860215e-05 | R50: 0.0001235519288 | S50: 2.083974835e-05 | T50: 0.01290231721 | U50: 6002.791747 | V50: 4767.215966 | W50: 104.1015795 | X50: 2007.36817 | Y50: 20.83974835 | Z50: 12902.31721
A51: 2011 | B51: 1 | C51: 3 | D51: 1 | E51: 0.005715098895 | F51: 0.0001291519996 | G51: 0.004980916663 | H51: 0.005415362709 | I51: 0.0001390067581 | J51: 0.005205570856 | K51: 0.0005061248817 | L51: 0.0002773185 | M51: 0.0001041015795 | N51: 0.002298581668 | O51: 8.021686614e-05 | P51: 0.001916845992 | Q51: 2.400860215e-05 | R51: 0.0001235519288 | S51: 2.083974835e-05 | T51: 0.01222827484 | U51: 4980.916663 | V51: 5205.570856 | W51: 104.1015795 | X51: 1916.845992 | Y51: 20.83974835 | Z51: 12228.27484
A52: 2011 | B52: 1 | C52: 3 | D52: 2 | E52: 0.004898430954 | F52: 0.0001106966238 | G52: 0.004269160834 | H52: 0.005223131984 | I52: 0.0001340723942 | J52: 0.005020787174 | K52: 0.0005061248817 | L52: 0.0002773185 | M52: 0.0001041015795 | N52: 0.002514250115 | O52: 8.774335398e-05 | P52: 0.002096697421 | Q52: 2.400860215e-05 | R52: 0.0001235519288 | S52: 2.083974835e-05 | T52: 0.01151158676 | U52: 4269.160834 | V52: 5020.787174 | W52: 104.1015795 | X52: 2096.697421 | Y52: 20.83974835 | Z52: 11511.58676
A53: 2011 | B53: 1 | C53: 3 | D53: 3 | E53: 0.004680901937 | F53: 0.0001057808196 | G53: 0.004079576379 | H53: 0.005229650958 | I53: 0.0001342397295 | J53: 0.005027053602 | K53: 0.0005061248817 | L53: 0.0002773185 | M53: 0.0001041015795 | N53: 0.002494247772 | O53: 8.704530383e-05 | P53: 0.002080016957 | Q53: 2.400860215e-05 | R53: 0.0001235519288 | S53: 2.083974835e-05 | T53: 0.01131158827 | U53: 4079.576379 | V53: 5027.053602 | W53: 104.1015795 | X53: 2080.016957 | Y53: 20.83974835 | Z53: 11311.58827
A54: 2011 | B54: 1 | C54: 3 | D54: 4 | E54: 0.004543437538 | F54: 0.0001026743463 | G54: 0.003959771153 | H54: 0.005061971004 | I54: 0.0001299355586 | J54: 0.004865869591 | K54: 0.0005061248817 | L54: 0.0002773185 | M54: 0.0001041015795 | N54: 0.002514320376 | O54: 8.774580597e-05 | P54: 0.002096756014 | Q54: 2.400860215e-05 | R54: 0.0001235519288 | S54: 2.083974835e-05 | T54: 0.01104733809 | U54: 3959.771153 | V54: 4865.869591 | W54: 104.1015795 | X54: 2096.756014 | Y54: 20.83974835 | Z54: 11047.33809
A55: 2011 | B55: 1 | C55: 3 | D55: 5 | E55: 0.004617002691 | F55: 0.0001043367999 | G55: 0.004023885861 | H55: 0.005051661068 | I55: 0.0001296709132 | J55: 0.004855959064 | K55: 0.0005061248817 | L55: 0.0002773185 | M55: 0.0001041015795 | N55: 0.002224376626 | O55: 7.762722748e-05 | P55: 0.001854964511 | Q55: 2.400860215e-05 | R55: 0.0001235519288 | S55: 2.083974835e-05 | T55: 0.01085975076 | U55: 4023.885861 | V55: 4855.959064 | W55: 104.1015795 | X55: 1854.964511 | Y55: 20.83974835 | Z55: 10859.75076
A56: 2011 | B56: 1 | C56: 3 | D56: 6 | E56: 0.004752084787 | F56: 0.000107389437 | G56: 0.004141614824 | H56: 0.005088008785 | I56: 0.0001306039215 | J56: 0.004890898666 | K56: 0.0005061248817 | L56: 0.0002773185 | M56: 0.0001041015795 | N56: 0.002184850347 | O56: 7.624782286e-05 | P56: 0.001822002537 | Q56: 2.400860215e-05 | R56: 0.0001235519288 | S56: 2.083974835e-05 | T56: 0.01097945735 | U56: 4141.614824 | V56: 4890.898666 | W56: 104.1015795 | X56: 1822.002537 | Y56: 20.83974835 | Z56: 10979.45735
A57: 2011 | B57: 1 | C57: 3 | D57: 7 | E57: 0.00499130967 | F57: 0.0001127955327 | G57: 0.004350108014 | H57: 0.005110117394 | I57: 0.0001311714266 | J57: 0.004912150784 | K57: 0.0005061248817 | L57: 0.0002773185 | M57: 0.0001041015795 | N57: 0.002131825769 | O57: 7.439734891e-05 | P57: 0.001777783986 | Q57: 2.400860215e-05 | R57: 0.0001235519288 | S57: 2.083974835e-05 | T57: 0.01116498411 | U57: 4350.108014 | V57: 4912.150784 | W57: 104.1015795 | X57: 1777.783986 | Y57: 20.83974835 | Z57: 11164.98411
A58: 2011 | B58: 1 | C58: 3 | D58: 8 | E58: 0.005278195807 | F58: 0.0001192786958 | G58: 0.004600139723 | H58: 0.005267903101 | I58: 0.0001352216225 | J58: 0.005063823853 | K58: 0.0005061248817 | L58: 0.0002773185 | M58: 0.0001041015795 | N58: 0.002483266444 | O58: 8.666207284e-05 | P58: 0.002070859346 | Q58: 2.400860215e-05 | R58: 0.0001235519288 | S58: 2.083974835e-05 | T58: 0.01185976425 | U58: 4600.139723 | V58: 5063.823853 | W58: 104.1015795 | X58: 2070.859346 | Y58: 20.83974835 | Z58: 11859.76425
A59: 2011 | B59: 1 | C59: 3 | D59: 9 | E59: 0.00583849661 | F59: 0.0001319405886 | G59: 0.005088462262 | H59: 0.00476381311 | I59: 0.0001222821539 | J59: 0.004579262373 | K59: 0.0005061248817 | L59: 0.0002773185 | M59: 0.0001041015795 | N59: 0.003298849537 | O59: 0.0001151246333 | P59: 0.002750994929 | Q59: 2.400860215e-05 | R59: 0.0001235519288 | S59: 2.083974835e-05 | T59: 0.01254366089 | U59: 5088.462262 | V59: 4579.262373 | W59: 104.1015795 | X59: 2750.994929 | Y59: 20.83974835 | Z59: 12543.66089
A60: 2011 | B60: 1 | C60: 3 | D60: 10 | E60: 0.006764067545 | F60: 0.000152856996 | G60: 0.005895131014 | H60: 0.004194838882 | I60: 0.0001076771742 | J60: 0.00403233028 | K60: 0 | L60: 0 | M60: 0 | N60: 0.003796880408 | O60: 0.0001325051233 | P60: 0.003166315599 | Q60: 2.400860215e-05 | R60: 0.0001235519288 | S60: 2.083974835e-05 | T60: 0.01311461664 | U60: 5895.131014 | V60: 4032.33028 | W60: 0 | X60: 3166.315599 | Y60: 20.83974835 | Z60: 13114.61664
A61: 2011 | B61: 1 | C61: 3 | D61: 11 | E61: 0.007349523756 | F61: 0.0001660873603 | G61: 0.006405377407 | H61: 0.004249700702 | I61: 0.0001090854203 | J61: 0.004085066746 | K61: 0 | L61: 0 | M61: 0 | N61: 0.004185849382 | O61: 0.0001460795256 | P61: 0.003490686766 | Q61: 2.400860215e-05 | R61: 0.0001235519288 | S61: 2.083974835e-05 | T61: 0.01400197067 | U61: 6405.377407 | V61: 4085.066746 | W61: 0 | X61: 3490.686766 | Y61: 20.83974835 | Z61: 14001.97067
A62: 2011 | B62: 1 | C62: 3 | D62: 12 | E62: 0.007136816452 | F62: 0.0001612805189 | G62: 0.006219995252 | H62: 0.004261090949 | I62: 0.0001093777962 | J62: 0.004096015734 | K62: 0 | L62: 0 | M62: 0 | N62: 0.004895685008 | O62: 0.0001708516667 | P62: 0.004082636835 | Q62: 2.400860215e-05 | R62: 0.0001235519288 | S62: 2.083974835e-05 | T62: 0.01441948757 | U62: 6219.995252 | V62: 4096.015734 | W62: 0 | X62: 4082.636835 | Y62: 20.83974835 | Z62: 14419.48757
A63: 2011 | B63: 1 | C63: 3 | D63: 13 | E63: 0.006847388779 | F63: 0.0001547399212 | G63: 0.005967748502 | H63: 0.00437906986 | I63: 0.0001124061928 | J63: 0.004209424126 | K63: 0 | L63: 0 | M63: 0 | N63: 0.004838643469 | O63: 0.0001688610071 | P63: 0.004035068438 | Q63: 2.400860215e-05 | R63: 0.0001235519288 | S63: 2.083974835e-05 | T63: 0.01423308081 | U63: 5967.748502 | V63: 4209.424126 | W63: 0 | X63: 4035.068438 | Y63: 20.83974835 | Z63: 14233.08081
A64: 2011 | B64: 1 | C64: 3 | D64: 14 | E64: 0.006873890327 | F64: 0.0001553388134 | G64: 0.005990845566 | H64: 0.004356884812 | I64: 0.0001118367255 | J64: 0.00418809853 | K64: 0 | L64: 0 | M64: 0 | N64: 0.004438973017 | O64: 0.0001549131402 | P64: 0.003701773034 | Q64: 2.400860215e-05 | R64: 0.0001235519288 | S64: 2.083974835e-05 | T64: 0.01390155688 | U64: 5990.845566 | V64: 4188.09853 | W64: 0 | X64: 3701.773034 | Y64: 20.83974835 | Z64: 13901.55688
A65: 2011 | B65: 1 | C65: 3 | D65: 15 | E65: 0.006898403839 | F65: 0.0001558927791 | G65: 0.006012209983 | H65: 0.004162956361 | I65: 0.0001068587828 | J65: 0.004001682892 | K65: 0 | L65: 0 | M65: 0 | N65: 0.004305295769 | O65: 0.0001502480156 | P65: 0.003590296161 | Q65: 2.400860215e-05 | R65: 0.0001235519288 | S65: 2.083974835e-05 | T65: 0.01362502878 | U65: 6012.209983 | V65: 4001.682892 | W65: 0 | X65: 3590.296161 | Y65: 20.83974835 | Z65: 13625.02878
A66: 2011 | B66: 1 | C66: 3 | D66: 16 | E66: 0.006580109031 | F66: 0.0001486998308 | G66: 0.005734804475 | H66: 0.004166427934 | I66: 0.0001069478945 | J66: 0.004005019976 | K66: 0 | L66: 0 | M66: 0 | N66: 0.004464069408 | O66: 0.0001557889646 | P66: 0.003722701556 | Q66: 2.400860215e-05 | R66: 0.0001235519288 | S66: 2.083974835e-05 | T66: 0.01348336576 | U66: 5734.804475 | V66: 4005.019976 | W66: 0 | X66: 3722.701556 | Y66: 20.83974835 | Z66: 13483.36576
A67: 2011 | B67: 1 | C67: 3 | D67: 17 | E67: 0.007286717389 | F67: 0.0001646680379 | G67: 0.006350639373 | H67: 0.004080411722 | I67: 0.0001047399474 | J67: 0.003922336043 | K67: 0 | L67: 0 | M67: 0 | N67: 0.0041361163 | O67: 0.0001443439196 | P67: 0.003449213079 | Q67: 2.400860215e-05 | R67: 0.0001235519288 | S67: 2.083974835e-05 | T67: 0.01374302824 | U67: 6350.639373 | V67: 3922.336043 | W67: 0 | X67: 3449.213079 | Y67: 20.83974835 | Z67: 13743.02824
A68: 2011 | B68: 1 | C68: 3 | D68: 18 | E68: 0.00834471524 | F68: =E68/$E$8787 -> 0.0001885770796 | G68: =F68*$E$8788 -> 0.007272723002 | H68: 0.004558042501 | I68: =H68/$H$8787 -> 0.0001170002353 | J68: =I68*$H$8788 -> 0.004381463344 | K68: 0 | L68: =K68/$K$8787 -> 0 | M68: =L68*$K$8788 -> 0 | N68: 0.003657165778 | O68: =N68/$N$8787 -> 0.0001276293036 | P68: =O68*$N$8788 -> 0.003049803999 | Q68: 2.400860215e-05 | R68: =Q68/$Q$8787 -> 0.0001235519288 | S68: =R68*$Q$8788 -> 2.083974835e-05 | T68: =G68+J68+M68+P68+S68 -> 0.01472483009 | U68: =G68*1000000 -> 7272.723002 | V68: =J68*1000000 -> 4381.463344 | W68: =M68*1000000 -> 0 | X68: =P68*1000000 -> 3049.803999 | Y68: =S68*1000000 -> 20.83974835 | Z68: =SUM(U68:Y68) -> 14724.83009
A69: 2011 | B69: 1 | C69: 3 | D69: 19 | E69: 0.008420661303 | F69: 0.0001902933379 | G69: 0.007338912759 | H69: 0.005284393011 | I69: 0.0001356449014 | J69: 0.005079674941 | K69: 0.0005061248817 | L69: 0.0002773185 | M69: 0.0001041015795 | N69: 0.003767979976 | O69: 0.000131496544 | P69: 0.003142214791 | Q69: 2.400860215e-05 | R69: 0.0001235519288 | S69: 2.083974835e-05 | T69: 0.01568574382 | U69: 7338.912759 | V69: 5079.674941 | W69: 104.1015795 | X69: 3142.214791 | Y69: 20.83974835 | Z69: 15685.74382
A70: 2011 | B70: 1 | C70: 3 | D70: 20 | E70: 0.008182375933 | F70: 0.0001849084736 | G70: 0.007131238388 | H70: 0.005391374791 | I70: 0.000138391013 | J70: 0.005182512233 | K70: 0.0005061248817 | L70: 0.0002773185 | M70: 0.0001041015795 | N70: 0.003427525959 | O70: 0.000119615237 | P70: 0.002858301486 | Q70: 2.400860215e-05 | R70: 0.0001235519288 | S70: 2.083974835e-05 | T70: 0.01529699343 | U70: 7131.238388 | V70: 5182.512233 | W70: 104.1015795 | X70: 2858.301486 | Y70: 20.83974835 | Z70: 15296.99343
A71: 2011 | B71: 1 | C71: 3 | D71: 21 | E71: 0.007936694071 | F71: 0.0001793564605 | G71: 0.006917117704 | H71: 0.005297990383 | I71: 0.0001359939319 | J71: 0.005092745549 | K71: 0.0005061248817 | L71: 0.0002773185 | M71: 0.0001041015795 | N71: 0.003390339019 | O71: 0.0001183174716 | P71: 0.002827290346 | Q71: 2.400860215e-05 | R71: 0.0001235519288 | S71: 2.083974835e-05 | T71: 0.01496209493 | U71: 6917.117704 | V71: 5092.745549 | W71: 104.1015795 | X71: 2827.290346 | Y71: 20.83974835 | Z71: 14962.09493
A72: 2011 | B72: 1 | C72: 3 | D72: 22 | E72: 0.007555239344 | F72: 0.0001707362001 | G72: 0.006584666028 | H72: 0.005271096968 | I72: 0.0001353036057 | J72: 0.005066893989 | K72: 0.0005061248817 | L72: 0.0002773185 | M72: 0.0001041015795 | N72: 0.00349811901 | O72: 0.0001220788229 | P72: 0.002917170835 | Q72: 2.400860215e-05 | R72: 0.0001235519288 | S72: 2.083974835e-05 | T72: 0.01469367218 | U72: 6584.666028 | V72: 5066.893989 | W72: 104.1015795 | X72: 2917.170835 | Y72: 20.83974835 | Z72: 14693.67218
A73: 2011 | B73: 1 | C73: 3 | D73: 23 | E73: 0.007672030109 | F73: 0.0001733754827 | G73: 0.00668645343 | H73: 0.004977476918 | I73: 0.0001277666828 | J73: 0.004784648817 | K73: 0.0005061248817 | L73: 0.0002773185 | M73: 0.0001041015795 | N73: 0.002764590625 | O73: 9.647984196e-05 | P73: 0.002305462769 | Q73: 2.400860215e-05 | R73: 0.0001235519288 | S73: 2.083974835e-05 | T73: 0.01390150635 | U73: 6686.45343 | V73: 4784.648817 | W73: 104.1015795 | X73: 2305.462769 | Y73: 20.83974835 | Z73: 13901.50635
A74: 2011 | B74: 1 | C74: 3 | D74: 24 | E74: 0.007081794776 | F74: 0.000160037118 | G74: 0.006172041859 | H74: 0.004959249421 | I74: 0.0001272988018 | J74: 0.004767127456 | K74: 0.0005061248817 | L74: 0.0002773185 | M74: 0.0001041015795 | N74: 0.002467382495 | O74: 8.610774813e-05 | P74: 0.002057613315 | Q74: 2.400860215e-05 | R74: 0.0001235519288 | S74: 2.083974835e-05 | T74: 0.01312172396 | U74: 6172.041859 | V74: 4767.127456 | W74: 104.1015795 | X74: 2057.613315 | Y74: 20.83974835 | Z74: 13121.72396
A75: 2011 | B75: 1 | C75: 4 | D75: 1 | E75: 0.005139058173 | F75: 0.0001161344102 | G75: 0.004478876212 | H75: 0.005043900981 | I75: 0.0001294717198 | J75: 0.004848499603 | K75: 0.0005061248817 | L75: 0.0002773185 | M75: 0.0001041015795 | N75: 0.002032940145 | O75: 7.094639696e-05 | P75: 0.001695320737 | Q75: 2.400860215e-05 | R75: 0.0001235519288 | S75: 2.083974835e-05 | T75: 0.01114763788 | U75: 4478.876212 | V75: 4848.499603 | W75: 104.1015795 | X75: 1695.320737 | Y75: 20.83974835 | Z75: 11147.63788
A76: 2011 | B76: 1 | C76: 4 | D76: 2 | E76: 0.00478983928 | F76: 0.0001082426275 | G76: 0.004174519238 | H76: 0.004955867501 | I76: 0.0001272119915 | J76: 0.004763876552 | K76: 0.0005061248817 | L76: 0.0002773185 | M76: 0.0001041015795 | N76: 0.001702070581 | O76: 5.939957228e-05 | P76: 0.001419400153 | Q76: 2.400860215e-05 | R76: 0.0001235519288 | S76: 2.083974835e-05 | T76: 0.01048273727 | U76: 4174.519238 | V76: 4763.876552 | W76: 104.1015795 | X76: 1419.400153 | Y76: 20.83974835 | Z76: 10482.73727
A77: 2011 | B77: 1 | C77: 4 | D77: 3 | E77: 0.004193842689 | F77: 9.477406765e-05 | G77: 0.00365508652 | H77: 0.005203321009 | I77: 0.000133563867 | J77: 0.005001743679 | K77: 0.0005061248817 | L77: 0.0002773185 | M77: 0.0001041015795 | N77: 0.001489533452 | O77: 5.198236252e-05 | P77: 0.00124216001 | Q77: 2.400860215e-05 | R77: 0.0001235519288 | S77: 2.083974835e-05 | T77: 0.01002393154 | U77: 3655.08652 | V77: 5001.743679 | W77: 104.1015795 | X77: 1242.16001 | Y77: 20.83974835 | Z77: 10023.93154
A78: 2011 | B78: 1 | C78: 4 | D78: 4 | E78: 0.004195209887 | F78: 9.480496412e-05 | G78: 0.003656278083 | H78: 0.005113743056 | I78: 0.0001312644936 | J78: 0.004915635987 | K78: 0.0005061248817 | L78: 0.0002773185 | M78: 0.0001041015795 | N78: 0.001394982589 | O78: 4.868268687e-05 | P78: 0.001163311629 | Q78: 2.400860215e-05 | R78: 0.0001235519288 | S78: 2.083974835e-05 | T78: 0.009860167027 | U78: 3656.278083 | V78: 4915.635987 | W78: 104.1015795 | X78: 1163.311629 | Y78: 20.83974835 | Z78: 9860.167027
A79: 2011 | B79: 1 | C79: 4 | D79: 5 | E79: 0.004028395861 | F79: 9.103523669e-05 | G79: 0.003510893589 | H79: 0.004929524052 | I79: 0.0001265357824 | J79: 0.004738553651 | K79: 0.0005061248817 | L79: 0.0002773185 | M79: 0.0001041015795 | N79: 0.001519286768 | O79: 5.30207062e-05 | P79: 0.00126697206 | Q79: 2.400860215e-05 | R79: 0.0001235519288 | S79: 2.083974835e-05 | T79: 0.009641360628 | U79: 3510.893589 | V79: 4738.553651 | W79: 104.1015795 | X79: 1266.97206 | Y79: 20.83974835 | Z79: 9641.360628
A80: 2011 | B80: 1 | C80: 4 | D80: 6 | E80: 0.004223511373 | F80: 9.544453197e-05 | G80: 0.003680943858 | H80: 0.004948481093 | I80: 0.00012702239 | J80: 0.004756776294 | K80: 0.0005061248817 | L80: 0.0002773185 | M80: 0.0001041015795 | N80: 0.001229419687 | O80: 4.290480337e-05 | P80: 0.001025244495 | Q80: 2.400860215e-05 | R80: 0.0001235519288 | S80: 2.083974835e-05 | T80: 0.009587905975 | U80: 3680.943858 | V80: 4756.776294 | W80: 104.1015795 | X80: 1025.244495 | Y80: 20.83974835 | Z80: 9587.905975
A81: 2011 | B81: 1 | C81: 4 | D81: 7 | E81: 0.004349412909 | F81: 9.828970323e-05 | G81: 0.003790671628 | H81: 0.00485565219 | I81: 0.0001246395681 | J81: 0.004667543595 | K81: 0.0005061248817 | L81: 0.0002773185 | M81: 0.0001041015795 | N81: 0.001374842597 | O81: 4.797983299e-05 | P81: 0.001146516375 | Q81: 2.400860215e-05 | R81: 0.0001235519288 | S81: 2.083974835e-05 | T81: 0.009729672926 | U81: 3790.671628 | V81: 4667.543595 | W81: 104.1015795 | X81: 1146.516375 | Y81: 20.83974835 | Z81: 9729.672926
A82: 2011 | B82: 1 | C82: 4 | D82: 8 | E82: 0.004832693307 | F82: 0.0001092110593 | G82: 0.004211868082 | H82: 0.00491096472 | I82: 0.0001260593835 | J82: 0.004720713311 | K82: 0.0005061248817 | L82: 0.0002773185 | M82: 0.0001041015795 | N82: 0.001358283338 | O82: 4.740194103e-05 | P82: 0.001132707186 | Q82: 2.400860215e-05 | R82: 0.0001235519288 | S82: 2.083974835e-05 | T82: 0.01019022991 | U82: 4211.868082 | V82: 4720.713311 | W82: 104.1015795 | X82: 1132.707186 | Y82: 20.83974835 | Z82: 10190.22991
A83: 2011 | B83: 1 | C83: 4 | D83: 9 | E83: 0.005247403023 | F83: 0.0001185828287 | G83: 0.004573302691 | H83: 0.004441332358 | I83: 0.0001140044067 | J83: 0.004269274567 | K83: 0.0005061248817 | L83: 0.0002773185 | M83: 0.0001041015795 | N83: 0.00209896968 | O83: 7.325072336e-05 | P83: 0.001750384454 | Q83: 2.400860215e-05 | R83: 0.0001235519288 | S83: 2.083974835e-05 | T83: 0.01071790304 | U83: 4573.302691 | V83: 4269.274567 | W83: 104.1015795 | X83: 1750.384454 | Y83: 20.83974835 | Z83: 10717.90304
A84: 2011 | B84: 1 | C84: 4 | D84: 10 | E84: 0.006065402889 | F84: 0.0001370683038 | G84: 0.005286219342 | H84: 0.003797723883 | I84: 9.748364298e-05 | J84: 0.003650599567 | K84: 0 | L84: 0 | M84: 0 | N84: 0.00313484373 | O84: 0.00010940109 | P84: 0.002614226296 | Q84: 2.400860215e-05 | R84: 0.0001235519288 | S84: 2.083974835e-05 | T84: 0.01157188495 | U84: 5286.219342 | V84: 3650.599567 | W84: 0 | X84: 2614.226296 | Y84: 20.83974835 | Z84: 11571.88495
A85: 2011 | B85: 1 | C85: 4 | D85: 11 | E85: 0.006095249527 | F85: 0.0001377427896 | G85: 0.005312231773 | H85: 0.003933566527 | I85: 0.0001009705831 | J85: 0.00378117965 | K85: 0 | L85: 0 | M85: 0 | N85: 0.003494797857 | O85: 0.0001219629199 | P85: 0.00291440124 | Q85: 2.400860215e-05 | R85: 0.0001235519288 | S85: 2.083974835e-05 | T85: 0.01202865241 | U85: 5312.231773 | V85: 3781.17965 | W85: 0 | X85: 2914.40124 | Y85: 20.83974835 | Z85: 12028.65241
A86: 2011 | B86: 1 | C86: 4 | D86: 12 | E86: 0.006129126567 | F86: 0.0001385083559 | G86: 0.005341756846 | H86: 0.004076813889 | I86: 0.0001046475947 | J86: 0.003918877591 | K86: 0 | L86: 0 | M86: 0 | N86: 0.00388498726 | O86: 0.0001355799132 | P86: 0.003239790155 | Q86: 2.400860215e-05 | R86: 0.0001235519288 | S86: 2.083974835e-05 | T86: 0.01252126434 | U86: 5341.756846 | V86: 3918.877591 | W86: 0 | X86: 3239.790155 | Y86: 20.83974835 | Z86: 12521.26434
A87: 2011 | B87: 1 | C87: 4 | D87: 13 | E87: 0.006249073673 | F87: 0.0001412189667 | G87: 0.005446295114 | H87: 0.004149379944 | I87: 0.0001065102903 | J87: 0.003988632428 | K87: 0 | L87: 0 | M87: 0 | N87: 0.004018951483 | O87: 0.0001402550528 | P87: 0.003351506343 | Q87: 2.400860215e-05 | R87: 0.0001235519288 | S87: 2.083974835e-05 | T87: 0.01280727363 | U87: 5446.295114 | V87: 3988.632428 | W87: 0 | X87: 3351.506343 | Y87: 20.83974835 | Z87: 12807.27363
A88: 2011 | B88: 1 | C88: 4 | D88: 14 | E88: 0.005639032236 | F88: 0.000127433016 | G88: 0.004914621802 | H88: 0.004429575551 | I88: 0.0001137026216 | J88: 0.004257973221 | K88: 0 | L88: 0 | M88: 0 | N88: 0.004450513363 | O88: 0.0001553158801 | P88: 0.003711396824 | Q88: 2.400860215e-05 | R88: 0.0001235519288 | S88: 2.083974835e-05 | T88: 0.01290483159 | U88: 4914.621802 | V88: 4257.973221 | W88: 0 | X88: 3711.396824 | Y88: 20.83974835 | Z88: 12904.83159
A89: 2011 | B89: 1 | C89: 4 | D89: 15 | E89: 0.005568140965 | F89: 0.0001258309879 | G89: 0.004852837479 | H89: 0.004321331949 | I89: 0.0001109241203 | J89: 0.004153922989 | K89: 0 | L89: 0 | M89: 0 | N89: 0.004453449645 | O89: 0.0001554183517 | P89: 0.003713845464 | Q89: 2.400860215e-05 | R89: 0.0001235519288 | S89: 2.083974835e-05 | T89: 0.01274144568 | U89: 4852.837479 | V89: 4153.922989 | W89: 0 | X89: 3713.845464 | Y89: 20.83974835 | Z89: 12741.44568
A90: 2011 | B90: 1 | C90: 4 | D90: 16 | E90: 0.006036324213 | F90: 0.0001364111727 | G90: 0.005260876217 | H90: 0.004158858291 | I90: 0.0001067535896 | J90: 0.003997743582 | K90: 0 | L90: 0 | M90: 0 | N90: 0.00408671024 | O90: 0.0001426197263 | P90: 0.003408012103 | Q90: 2.400860215e-05 | R90: 0.0001235519288 | S90: 2.083974835e-05 | T90: 0.01268747165 | U90: 5260.876217 | V90: 3997.743582 | W90: 0 | X90: 3408.012103 | Y90: 20.83974835 | Z90: 12687.47165
A91: 2011 | B91: 1 | C91: 4 | D91: 17 | E91: 0.007127268016 | F91: 0.0001610647397 | G91: 0.006211673442 | H91: 0.003935030299 | I91: 0.0001010081566 | J91: 0.003782586715 | K91: 0 | L91: 0 | M91: 0 | N91: 0.003627772914 | O91: 0.0001266035392 | P91: 0.003025292539 | Q91: 2.400860215e-05 | R91: 0.0001235519288 | S91: 2.083974835e-05 | T91: 0.01304039244 | U91: 6211.673442 | V91: 3782.586715 | W91: 0 | X91: 3025.292539 | Y91: 20.83974835 | Z91: 13040.39244
A92: 2011 | B92: 1 | C92: 4 | D92: 18 | E92: 0.00762053708 | F92: 0.0001722118234 | G92: 0.006641575381 | H92: 0.004583043087 | I92: 0.0001176419745 | J92: 0.004405495404 | K92: 0 | L92: 0 | M92: 0 | N92: 0.003712006426 | O92: 0.0001295431556 | P92: 0.003095537017 | Q92: 2.400860215e-05 | R92: 0.0001235519288 | S92: 2.083974835e-05 | T92: 0.01416344755 | U92: 6641.575381 | V92: 4405.495404 | W92: 0 | X92: 3095.537017 | Y92: 20.83974835 | Z92: 14163.44755
A93: 2011 | B93: 1 | C93: 4 | D93: 19 | E93: 0.008221256673 | F93: 0.0001857871155 | G93: 0.007165124367 | H93: 0.005165711313 | I93: 0.000132598465 | J93: 0.004965590988 | K93: 0.0005061248817 | L93: 0.0002773185 | M93: 0.0001041015795 | N93: 0.003159418977 | O93: 0.0001102587272 | P93: 0.002634720222 | Q93: 2.400860215e-05 | R93: 0.0001235519288 | S93: 2.083974835e-05 | T93: 0.0148903769 | U93: 7165.124367 | V93: 4965.590988 | W93: 104.1015795 | X93: 2634.720222 | Y93: 20.83974835 | Z93: 14890.3769
A94: 2011 | B94: 1 | C94: 4 | D94: 20 | E94: 0.007776851034 | F94: 0.0001757442662 | G94: 0.006777808681 | H94: 0.005530455392 | I94: 0.0001419610682 | J94: 0.005316204834 | K94: 0.0005061248817 | L94: 0.0002773185 | M94: 0.0001041015795 | N94: 0.002787918865 | O94: 9.729396068e-05 | P94: 0.002324916785 | Q94: 2.400860215e-05 | R94: 0.0001235519288 | S94: 2.083974835e-05 | T94: 0.01454387163 | U94: 6777.808681 | V94: 5316.204834 | W94: 104.1015795 | X94: 2324.916785 | Y94: 20.83974835 | Z94: 14543.87163
A95: 2011 | B95: 1 | C95: 4 | D95: 21 | E95: 0.007572605806 | F95: 0.0001711286541 | G95: 0.006599801532 | H95: 0.005283335952 | I95: 0.0001356177678 | J95: 0.005078658833 | K95: 0.0005061248817 | L95: 0.0002773185 | M95: 0.0001041015795 | N95: 0.002862606242 | O95: 9.990043204e-05 | P95: 0.002387200497 | Q95: 2.400860215e-05 | R95: 0.0001235519288 | S95: 2.083974835e-05 | T95: 0.01419060219 | U95: 6599.801532 | V95: 5078.658833 | W95: 104.1015795 | X95: 2387.200497 | Y95: 20.83974835 | Z95: 14190.60219
A96: 2011 | B96: 1 | C96: 4 | D96: 22 | E96: 0.00764684508 | F96: 0.0001728063418 | G96: 0.006664503761 | H96: 0.005169799641 | I96: 0.0001327034081 | J96: 0.004969520933 | K96: 0.0005061248817 | L96: 0.0002773185 | M96: 0.0001041015795 | N96: 0.002347714607 | O96: 8.193152802e-05 | P96: 0.001957819205 | Q96: 2.400860215e-05 | R96: 0.0001235519288 | S96: 2.083974835e-05 | T96: 0.01371678523 | U96: 6664.503761 | V96: 4969.520933 | W96: 104.1015795 | X96: 1957.819205 | Y96: 20.83974835 | Z96: 13716.78523
A97: 2011 | B97: 1 | C97: 4 | D97: 23 | E97: 0.007190654841 | F97: 0.0001624971795 | G97: 0.006266917366 | H97: 0.00508778618 | I97: 0.0001305982075 | J97: 0.004890684684 | K97: 0.0005061248817 | L97: 0.0002773185 | M97: 0.0001041015795 | N97: 0.002425896774 | O97: 8.465996207e-05 | P97: 0.002023017313 | Q97: 2.400860215e-05 | R97: 0.0001235519288 | S97: 2.083974835e-05 | T97: 0.01330556069 | U97: 6266.917366 | V97: 4890.684684 | W97: 104.1015795 | X97: 2023.017313 | Y97: 20.83974835 | Z97: 13305.56069
A98: 2011 | B98: 1 | C98: 4 | D98: 24 | E98: 0.005961678933 | F98: 0.00013472431 | G98: 0.00519582014 | H98: 0.004999638682 | I98: 0.0001283355524 | J98: 0.004805952032 | K98: 0.0005061248817 | L98: 0.0002773185 | M98: 0.0001041015795 | N98: 0.002377069127 | O98: 8.295595438e-05 | P98: 0.00198229869 | Q98: 2.400860215e-05 | R98: 0.0001235519288 | S98: 2.083974835e-05 | T98: 0.01210901219 | U98: 5195.82014 | V98: 4805.952032 | W98: 104.1015795 | X98: 1982.29869 | Y98: 20.83974835 | Z98: 12109.01219
A99: 2011 | B99: 1 | C99: 5 | D99: 1 | E99: 0.005654078739 | F99: 0.0001277730427 | G99: 0.004927735377 | H99: 0.004974893152 | I99: 0.0001277003602 | J99: 0.004782165147 | K99: 0.0005061248817 | L99: 0.0002773185 | M99: 0.0001041015795 | N99: 0.002994426182 | O99: 0.0001045007396 | P99: 0.002497128514 | Q99: 2.400860215e-05 | R99: 0.0001235519288 | S99: 2.083974835e-05 | T99: 0.01233197037 | U99: 4927.735377 | V99: 4782.165147 | W99: 104.1015795 | X99: 2497.128514 | Y99: 20.83974835 | Z99: 12331.97037
A100: 2011 | B100: 1 | C100: 5 | D100: 2 | E100: 0.005230649918 | F100: 0.0001182042356 | G100: 0.00455870175 | H100: 0.004977251541 | I100: 0.0001277608976 | J100: 0.004784432171 | K100: 0.0005061248817 | L100: 0.0002773185 | M100: 0.0001041015795 | N100: 0.002528108904 | O100: 8.82270038e-05 | P100: 0.00210825462 | Q100: 2.400860215e-05 | R100: 0.0001235519288 | S100: 2.083974835e-05 | T100: 0.01157632987 | U100: 4558.70175 | V100: 4784.432171 | W100: 104.1015795 | X100: 2108.25462 | Y100: 20.83974835 | Z100: 11576.32987
A101: 2011 | B101: 1 | C101: 5 | D101: 3 | E101: 0.004746196627 | F101: 0.0001072563741 | G101: 0.004136483077 | H101: 0.005041453547 | I101: 0.0001294088967 | J101: 0.004846146983 | K101: 0.0005061248817 | L101: 0.0002773185 | M101: 0.0001041015795 | N101: 0.002735465302 | O101: 9.546341424e-05 | P101: 0.002281174418 | Q101: 2.400860215e-05 | R101: 0.0001235519288 | S101: 2.083974835e-05 | T101: 0.01138874581 | U101: 4136.483077 | V101: 4846.146983 | W101: 104.1015795 | X101: 2281.174418 | Y101: 20.83974835 | Z101: 11388.74581
A102: 2011 | B102: 1 | C102: 5 | D102: 4 | E102: 0.004781039304 | F102: 0.0001080437622 | G102: 0.004166849738 | H102: 0.004897208009 | I102: 0.000125706263 | J102: 0.004707489536 | K102: 0.0005061248817 | L102: 0.0002773185 | M102: 0.0001041015795 | N102: 0.002640826245 | O102: 9.216066078e-05 | P102: 0.00220225249 | Q102: 2.400860215e-05 | R102: 0.0001235519288 | S102: 2.083974835e-05 | T102: 0.01120153309 | U102: 4166.849738 | V102: 4707.489536 | W102: 104.1015795 | X102: 2202.25249 | Y102: 20.83974835 | Z102: 11201.53309
A103: 2011 | B103: 1 | C103: 5 | D103: 5 | E103: 0.004814387996 | F103: 0.0001087973888 | G103: 0.004195914337 | H103: 0.004939544998 | I103: 0.0001267930097 | J103: 0.004748186385 | K103: 0.0005061248817 | L103: 0.0002773185 | M103: 0.0001041015795 | N103: 0.002491994472 | O103: 8.696666723e-05 | P103: 0.002078137872 | Q103: 2.400860215e-05 | R103: 0.0001235519288 | S103: 2.083974835e-05 | T103: 0.01114717992 | U103: 4195.914337 | V103: 4748.186385 | W103: 104.1015795 | X103: 2078.137872 | Y103: 20.83974835 | Z103: 11147.17992
A104: 2011 | B104: 1 | C104: 5 | D104: 6 | E104: 0.00505722989 | F104: 0.0001142852232 | G104: 0.004407559885 | H104: 0.004946006838 | I104: 0.0001269588784 | J104: 0.004754397892 | K104: 0.0005061248817 | L104: 0.0002773185 | M104: 0.0001041015795 | N104: 0.002403997464 | O104: 8.389571076e-05 | P104: 0.002004754918 | Q104: 2.400860215e-05 | R104: 0.0001235519288 | S104: 2.083974835e-05 | T104: 0.01129165402 | U104: 4407.559885 | V104: 4754.397892 | W104: 104.1015795 | X104: 2004.754918 | Y104: 20.83974835 | Z104: 11291.65402
A105: 2011 | B105: 1 | C105: 5 | D105: 7 | E105: 0.005596828916 | F105: 0.0001264792892 | G105: 0.004877840072 | H105: 0.005064841384 | I105: 0.0001300092383 | J105: 0.004868628773 | K105: 0.0005061248817 | L105: 0.0002773185 | M105: 0.0001041015795 | N105: 0.002343444696 | O105: 8.178251489e-05 | P105: 0.001954258418 | Q105: 2.400860215e-05 | R105: 0.0001235519288 | S105: 2.083974835e-05 | T105: 0.01182566859 | U105: 4877.840072 | V105: 4868.628773 | W105: 104.1015795 | X105: 1954.258418 | Y105: 20.83974835 | Z105: 11825.66859
A106: 2011 | B106: 1 | C106: 5 | D106: 8 | E106: 0.005944222425 | F106: 0.0001343298211 | G106: 0.005180606158 | H106: 0.005411322219 | I106: 0.0001389030429 | J106: 0.005201686895 | K106: 0.0005061248817 | L106: 0.0002773185 | M106: 0.0001041015795 | N106: 0.002812990301 | O106: 9.816891416e-05 | P106: 0.002345824497 | Q106: 2.400860215e-05 | R106: 0.0001235519288 | S106: 2.083974835e-05 | T106: 0.01285305888 | U106: 5180.606158 | V106: 5201.686895 | W106: 104.1015795 | X106: 2345.824497 | Y106: 20.83974835 | Z106: 12853.05888
A107: 2011 | B107: 1 | C107: 5 | D107: 9 | E107: 0.006927882179 | F107: 0.000156558942 | G107: 0.006037901429 | H107: 0.005311497671 | I107: 0.00013634065 | J107: 0.005105729563 | K107: 0.0005061248817 | L107: 0.0002773185 | M107: 0.0001041015795 | N107: 0.003867160881 | O107: 0.0001349578007 | P107: 0.003224924282 | Q107: 2.400860215e-05 | R107: 0.0001235519288 | S107: 2.083974835e-05 | T107: 0.0144934966 | U107: 6037.901429 | V107: 5105.729563 | W107: 104.1015795 | X107: 3224.924282 | Y107: 20.83974835 | Z107: 14493.4966
A108: 2011 | B108: 1 | C108: 5 | D108: 10 | E108: 0.007225313318 | F108: 0.0001632804051 | G108: 0.006297123491 | H108: 0.004821687233 | I108: 0.0001237677228 | J108: 0.004634894445 | K108: 0 | L108: 0 | M108: 0 | N108: 0.005093479184 | O108: 0.0001777543707 | P108: 0.004247582453 | Q108: 2.400860215e-05 | R108: 0.0001235519288 | S108: 2.083974835e-05 | T108: 0.01520044014 | U108: 6297.123491 | V108: 4634.894445 | W108: 0 | X108: 4247.582453 | Y108: 20.83974835 | Z108: 15200.44014
A109: 2011 | B109: 1 | C109: 5 | D109: 11 | E109: 0.007311981929 | F109: 0.0001652389757 | G109: 0.006372658339 | H109: 0.004842709224 | I109: 0.0001243073356 | J109: 0.004655102041 | K109: 0 | L109: 0 | M109: 0 | N109: 0.005309942827 | O109: 0.0001853086096 | P109: 0.004428097016 | Q109: 2.400860215e-05 | R109: 0.0001235519288 | S109: 2.083974835e-05 | T109: 0.01547669714 | U109: 6372.658339 | V109: 4655.102041 | W109: 0 | X109: 4428.097016 | Y109: 20.83974835 | Z109: 15476.69714
A110: 2011 | B110: 1 | C110: 5 | D110: 12 | E110: 0.007127979913 | F110: 0.0001610808274 | G110: 0.006212293887 | H110: 0.005029953725 | I110: 0.0001291137082 | J110: 0.004835092666 | K110: 0 | L110: 0 | M110: 0 | N110: 0.005151167752 | O110: 0.0001797676105 | P110: 0.004295690424 | Q110: 2.400860215e-05 | R110: 0.0001235519288 | S110: 2.083974835e-05 | T110: 0.01536391672 | U110: 6212.293887 | V110: 4835.092666 | W110: 0 | X110: 4295.690424 | Y110: 20.83974835 | Z110: 15363.91672
A111: 2011 | B111: 1 | C111: 5 | D111: 13 | E111: 0.006415778284 | F111: 0.0001449862215 | G111: 0.005591584249 | H111: 0.005192839678 | I111: 0.0001332948221 | J111: 0.004991668396 | K111: 0 | L111: 0 | M111: 0 | N111: 0.005611937193 | O111: 0.0001958477355 | P111: 0.004679937835 | Q111: 2.400860215e-05 | R111: 0.0001235519288 | S111: 2.083974835e-05 | T111: 0.01528403023 | U111: 5591.584249 | V111: 4991.668396 | W111: 0 | X111: 4679.937835 | Y111: 20.83974835 | Z111: 15284.03023
A112: 2011 | B112: 1 | C112: 5 | D112: 14 | E112: 0.00634079366 | F112: 0.0001432916902 | G112: 0.005526232421 | H112: 0.005145163386 | I112: 0.000132071021 | J112: 0.00494583909 | K112: 0 | L112: 0 | M112: 0 | N112: 0.005413521665 | O112: 0.0001889233473 | P112: 0.004514474056 | Q112: 2.400860215e-05 | R112: 0.0001235519288 | S112: 2.083974835e-05 | T112: 0.01500738532 | U112: 5526.232421 | V112: 4945.83909 | W112: 0 | X112: 4514.474056 | Y112: 20.83974835 | Z112: 15007.38532
A113: 2011 | B113: 1 | C113: 5 | D113: 15 | E113: 0.006437243634 | F113: 0.0001454713037 | G113: 0.005610292082 | H113: 0.004847501428 | I113: 0.0001244303465 | J113: 0.004659708594 | K113: 0 | L113: 0 | M113: 0 | N113: 0.005170463518 | O113: 0.0001804410023 | P113: 0.004311781656 | Q113: 2.400860215e-05 | R113: 0.0001235519288 | S113: 2.083974835e-05 | T113: 0.01460262208 | U113: 5610.292082 | V113: 4659.708594 | W113: 0 | X113: 4311.781656 | Y113: 20.83974835 | Z113: 14602.62208
A114: 2011 | B114: 1 | C114: 5 | D114: 16 | E114: 0.007022456391 | F114: 0.0001586961664 | G114: 0.006120326297 | H114: 0.004513258301 | I114: 0.0001158506712 | J114: 0.004338414089 | K114: 0 | L114: 0 | M114: 0 | N114: 0.004721225416 | O114: 0.0001647633027 | P114: 0.003937150523 | Q114: 2.400860215e-05 | R114: 0.0001235519288 | S114: 2.083974835e-05 | T114: 0.01441673066 | U114: 6120.326297 | V114: 4338.414089 | W114: 0 | X114: 3937.150523 | Y114: 20.83974835 | Z114: 14416.73066
A115: 2011 | B115: 1 | C115: 5 | D115: 17 | E115: 0.007657995152 | F115: 0.0001730583154 | G115: 0.006674221455 | H115: 0.004421036027 | I115: 0.0001134834209 | J115: 0.004249764519 | K115: 0 | L115: 0 | M115: 0 | N115: 0.004686474823 | O115: 0.000163550562 | P115: 0.003908171115 | Q115: 2.400860215e-05 | R115: 0.0001235519288 | S115: 2.083974835e-05 | T115: 0.01485299684 | U115: 6674.221455 | V115: 4249.764519 | W115: 0 | X115: 3908.171115 | Y115: 20.83974835 | Z115: 14852.99684
A116: 2011 | B116: 1 | C116: 5 | D116: 18 | E116: 0.008080417063 | F116: 0.0001826043679 | G116: 0.007042377522 | H116: 0.00506130488 | I116: 0.0001299184599 | J116: 0.004865229273 | K116: 0 | L116: 0 | M116: 0 | N116: 0.004995094012 | O116: 0.0001743208837 | P116: 0.004165536543 | Q116: 2.400860215e-05 | R116: 0.0001235519288 | S116: 2.083974835e-05 | T116: 0.01609398309 | U116: 7042.377522 | V116: 4865.229273 | W116: 0 | X116: 4165.536543 | Y116: 20.83974835 | Z116: 16093.98309
A117: 2011 | B117: 1 | C117: 5 | D117: 19 | E117: 0.008812353247 | F117: 0.0001991449429 | G117: 0.007680286542 | H117: 0.005548774019 | I117: 0.0001424312884 | J117: 0.005333813794 | K117: 0.0005061248817 | L117: 0.0002773185 | M117: 0.0001041015795 | N117: 0.004413349124 | O117: 0.0001540189069 | P117: 0.003680404615 | Q117: 2.400860215e-05 | R117: 0.0001235519288 | S117: 2.083974835e-05 | T117: 0.01681944628 | U117: 7680.286542 | V117: 5333.813794 | W117: 104.1015795 | X117: 3680.404615 | Y117: 20.83974835 | Z117: 16819.44628
A118: 2011 | B118: 1 | C118: 5 | D118: 20 | E118: 0.008388751659 | F118: 0.0001895722315 | G118: 0.007311102343 | H118: 0.00558396612 | I118: 0.0001433346332 | J118: 0.005367642549 | K118: 0.0005061248817 | L118: 0.0002773185 | M118: 0.0001041015795 | N118: 0.004357102994 | O118: 0.0001520560059 | P118: 0.00363349953 | Q118: 2.400860215e-05 | R118: 0.0001235519288 | S118: 2.083974835e-05 | T118: 0.01643718575 | U118: 7311.102343 | V118: 5367.642549 | W118: 104.1015795 | X118: 3633.49953 | Y118: 20.83974835 | Z118: 16437.18575
A119: 2011 | B119: 1 | C119: 5 | D119: 21 | E119: 0.008590785138 | F119: 0.0001941378617 | G119: 0.007487181873 | H119: 0.005635278132 | I119: 0.0001446517595 | J119: 0.005416966727 | K119: 0.0005061248817 | L119: 0.0002773185 | M119: 0.0001041015795 | N119: 0.00366179753 | O119: 0.0001277909445 | P119: 0.003053666535 | Q119: 2.400860215e-05 | R119: 0.0001235519288 | S119: 2.083974835e-05 | T119: 0.01608275646 | U119: 7487.181873 | V119: 5416.966727 | W119: 104.1015795 | X119: 3053.666535 | Y119: 20.83974835 | Z119: 16082.75646
A120: 2011 | B120: 1 | C120: 5 | D120: 22 | E120: 0.008049209574 | F120: 0.0001818991291 | G120: 0.00701517906 | H120: 0.005452282779 | I120: 0.000139954458 | J120: 0.005241060637 | K120: 0.0005061248817 | L120: 0.0002773185 | M120: 0.0001041015795 | N120: 0.003849701471 | O120: 0.0001343484949 | P120: 0.003210364434 | Q120: 2.400860215e-05 | R120: 0.0001235519288 | S120: 2.083974835e-05 | T120: 0.01559154546 | U120: 7015.17906 | V120: 5241.060637 | W120: 104.1015795 | X120: 3210.364434 | Y120: 20.83974835 | Z120: 15591.54546
A121: 2011 | B121: 1 | C121: 5 | D121: 23 | E121: 0.007522273827 | F121: 0.0001699912327 | G121: 0.006555935381 | H121: 0.005376419287 | I121: 0.0001380071207 | J121: 0.005168136107 | K121: 0.0005061248817 | L121: 0.0002773185 | M121: 0.0001041015795 | N121: 0.003643650381 | O121: 0.0001271576376 | P121: 0.003038533164 | Q121: 2.400860215e-05 | R121: 0.0001235519288 | S121: 2.083974835e-05 | T121: 0.01488754598 | U121: 6555.935381 | V121: 5168.136107 | W121: 104.1015795 | X121: 3038.533164 | Y121: 20.83974835 | Z121: 14887.54598
A122: 2011 | B122: 1 | C122: 5 | D122: 24 | E122: 0.006599719084 | F122: 0.0001491429864 | G122: 0.00575189535 | H122: 0.005237015863 | I122: 0.000134428779 | J122: 0.00503413319 | K122: 0.0005061248817 | L122: 0.0002773185 | M122: 0.0001041015795 | N122: 0.003309659307 | O122: 0.0001155018772 | P122: 0.002760009473 | Q122: 2.400860215e-05 | R122: 0.0001235519288 | S122: 2.083974835e-05 | T122: 0.01367097934 | U122: 5751.89535 | V122: 5034.13319 | W122: 104.1015795 | X122: 2760.009473 | Y122: 20.83974835 | Z122: 13670.97934
A123: 2011 | B123: 1 | C123: 6 | D123: 1 | E123: 0.006109725051 | F123: 0.000138069913 | G123: 0.005324847719 | H123: 0.005184888969 | I123: 0.0001330907356 | J123: 0.004984025699 | K123: 0.0005061248817 | L123: 0.0002773185 | M123: 0.0001041015795 | N123: 0.003371893536 | O123: 0.0001176737534 | P123: 0.002811908186 | Q123: 2.400860215e-05 | R123: 0.0001235519288 | S123: 2.083974835e-05 | T123: 0.01324572293 | U123: 5324.847719 | V123: 4984.025699 | W123: 104.1015795 | X123: 2811.908186 | Y123: 20.83974835 | Z123: 13245.72293
A124: 2011 | B124: 1 | C124: 6 | D124: 2 | E124: 0.005559082806 | F124: 0.0001256262881 | G124: 0.004844942964 | H124: 0.00511722188 | I124: 0.0001313537914 | J124: 0.004918980042 | K124: 0.0005061248817 | L124: 0.0002773185 | M124: 0.0001041015795 | N124: 0.003270542132 | O124: 0.0001141367497 | P124: 0.002727388661 | Q124: 2.400860215e-05 | R124: 0.0001235519288 | S124: 2.083974835e-05 | T124: 0.01261625299 | U124: 4844.942964 | V124: 4918.980042 | W124: 104.1015795 | X124: 2727.388661 | Y124: 20.83974835 | Z124: 12616.25299
A125: 2011 | B125: 1 | C125: 6 | D125: 3 | E125: 0.00531895926 | F125: 0.000120199884 | G125: 0.004635666555 | H125: 0.005194235483 | I125: 0.0001333306509 | J125: 0.004993010128 | K125: 0.0005061248817 | L125: 0.0002773185 | M125: 0.0001041015795 | N125: 0.003210859754 | O125: 0.000112053929 | P125: 0.002677618001 | Q125: 2.400860215e-05 | R125: 0.0001235519288 | S125: 2.083974835e-05 | T125: 0.01243123601 | U125: 4635.666555 | V125: 4993.010128 | W125: 104.1015795 | X125: 2677.618001 | Y125: 20.83974835 | Z125: 12431.23601
A126: 2011 | B126: 1 | C126: 6 | D126: 4 | E126: 0.005390266137 | F126: 0.0001218113042 | G126: 0.004697813094 | H126: 0.005130315319 | I126: 0.0001316898865 | J126: 0.004931566239 | K126: 0.0005061248817 | L126: 0.0002773185 | M126: 0.0001041015795 | N126: 0.003009534625 | O126: 0.0001050280003 | P126: 0.00250972783 | Q126: 2.400860215e-05 | R126: 0.0001235519288 | S126: 2.083974835e-05 | T126: 0.01226404849 | U126: 4697.813094 | V126: 4931.566239 | W126: 104.1015795 | X126: 2509.72783 | Y126: 20.83974835 | Z126: 12264.04849
A127: 2011 | B127: 1 | C127: 6 | D127: 5 | E127: 0.005475460923 | F127: 0.0001237365687 | G127: 0.00477206345 | H127: 0.005019854656 | I127: 0.0001288544755 | J127: 0.004825384836 | K127: 0.0005061248817 | L127: 0.0002773185 | M127: 0.0001041015795 | N127: 0.002929415212 | O127: 0.0001022319595 | P127: 0.002442914205 | Q127: 2.400860215e-05 | R127: 0.0001235519288 | S127: 2.083974835e-05 | T127: 0.01216530382 | U127: 4772.06345 | V127: 4825.384836 | W127: 104.1015795 | X127: 2442.914205 | Y127: 20.83974835 | Z127: 12165.30382
A128: 2011 | B128: 1 | C128: 6 | D128: 6 | E128: 0.005755655624 | F128: 0.0001300685161 | G128: 0.005016263328 | H128: 0.005050035031 | I128: 0.0001296291745 | J128: 0.004854396019 | K128: 0.0005061248817 | L128: 0.0002773185 | M128: 0.0001041015795 | N128: 0.002777718756 | O128: 9.6937993e-05 | P128: 0.002316410654 | Q128: 2.400860215e-05 | R128: 0.0001235519288 | S128: 2.083974835e-05 | T128: 0.01231201133 | U128: 5016.263328 | V128: 4854.396019 | W128: 104.1015795 | X128: 2316.410654 | Y128: 20.83974835 | Z128: 12312.01133
A129: 2011 | B129: 1 | C129: 6 | D129: 7 | E129: 0.006374831695 | F129: 0.0001440608948 | G129: 0.005555897807 | H129: 0.00517995886 | I129: 0.0001329641848 | J129: 0.004979286583 | K129: 0.0005061248817 | L129: 0.0002773185 | M129: 0.0001041015795 | N129: 0.00264730327 | O129: 9.238669873e-05 | P129: 0.002207653848 | Q129: 2.400860215e-05 | R129: 0.0001235519288 | S129: 2.083974835e-05 | T129: 0.01286777956 | U129: 5555.897807 | V129: 4979.286583 | W129: 104.1015795 | X129: 2207.653848 | Y129: 20.83974835 | Z129: 12867.77956
A130: 2011 | B130: 1 | C130: 6 | D130: 8 | E130: 0.006467902603 | F130: 0.0001461641469 | G130: 0.00563701249 | H130: 0.005536498687 | I130: 0.0001421161933 | J130: 0.005322014011 | K130: 0.0005061248817 | L130: 0.0002773185 | M130: 0.0001041015795 | N130: 0.00331485083 | O130: 0.0001156830532 | P130: 0.002764338816 | Q130: 2.400860215e-05 | R130: 0.0001235519288 | S130: 2.083974835e-05 | T130: 0.01384830664 | U130: 5637.01249 | V130: 5322.014011 | W130: 104.1015795 | X130: 2764.338816 | Y130: 20.83974835 | Z130: 13848.30664
A131: 2011 | B131: 1 | C131: 6 | D131: 9 | E131: 0.007243442231 | F131: 0.0001636900892 | G131: 0.006312923498 | H131: 0.005345420504 | I131: 0.000137211414 | J131: 0.005138338221 | K131: 0.0005061248817 | L131: 0.0002773185 | M131: 0.0001041015795 | N131: 0.004529543123 | O131: 0.0001580738938 | P131: 0.00377730176 | Q131: 2.400860215e-05 | R131: 0.0001235519288 | S131: 2.083974835e-05 | T131: 0.01535350481 | U131: 6312.923498 | V131: 5138.338221 | W131: 104.1015795 | X131: 3777.30176 | Y131: 20.83974835 | Z131: 15353.50481
A132: 2011 | B132: 1 | C132: 6 | D132: 10 | E132: 0.007506434257 | F132: =E132/$E$8787 -> 0.000169633284 | G132: =F132*$E$8788 -> 0.006542130619 | H132: 0.005018886617 | I132: =H132/$H$8787 -> 0.000128829627 | J132: =I132*$H$8788 -> 0.004824454299 | K132: 0 | L132: =K132/$K$8787 -> 0 | M132: =L132*$K$8788 -> 0 | N132: 0.005358465307 | O132: =N132/$N$8787 -> 0.0001870019675 | P132: =O132*$N$8788 -> 0.004468561152 | Q132: 2.400860215e-05 | R132: =Q132/$Q$8787 -> 0.0001235519288 | S132: =R132*$Q$8788 -> 2.083974835e-05 | T132: =G132+J132+M132+P132+S132 -> 0.01585598582 | U132: =G132*1000000 -> 6542.130619 | V132: =J132*1000000 -> 4824.454299 | W132: =M132*1000000 -> 0 | X132: =P132*1000000 -> 4468.561152 | Y132: =S132*1000000 -> 20.83974835 | Z132: =SUM(U132:Y132) -> 15855.98582
A133: 2011 | B133: 1 | C133: 6 | D133: 11 | E133: 0.007160524779 | F133: 0.0001618162888 | G133: 0.006240657922 | H133: 0.00510661759 | I133: 0.0001310815903 | J133: 0.004908786563 | K133: 0 | L133: 0 | M133: 0 | N133: 0.005958843765 | O133: 0.0002079542264 | P133: 0.004969232091 | Q133: 2.400860215e-05 | R133: 0.0001235519288 | S133: 2.083974835e-05 | T133: 0.01613951632 | U133: 6240.657922 | V133: 4908.786563 | W133: 0 | X133: 4969.232091 | Y133: 20.83974835 | Z133: 16139.51632
A134: 2011 | B134: 1 | C134: 6 | D134: 12 | E134: 0.00679332855 | F134: 0.0001535182474 | G134: 0.005920633045 | H134: 0.005084977524 | I134: 0.0001305261122 | J134: 0.004887984836 | K134: 0 | L134: 0 | M134: 0 | N134: 0.005894083946 | O134: 0.0002056942111 | P134: 0.004915227223 | Q134: 2.400860215e-05 | R134: 0.0001235519288 | S134: 2.083974835e-05 | T134: 0.01574468485 | U134: 5920.633045 | V134: 4887.984836 | W134: 0 | X134: 4915.227223 | Y134: 20.83974835 | Z134: 15744.68485
A135: 2011 | B135: 1 | C135: 6 | D135: 13 | E135: 0.006634213808 | F135: 0.0001499225114 | G135: 0.005781958757 | H135: 0.004951639452 | I135: 0.0001271034618 | J135: 0.004759812298 | K135: 0 | L135: 0 | M135: 0 | N135: 0.00573815137 | O135: 0.0002002524107 | P135: 0.004785191062 | Q135: 2.400860215e-05 | R135: 0.0001235519288 | S135: 2.083974835e-05 | T135: 0.01534780187 | U135: 5781.958757 | V135: 4759.812298 | W135: 0 | X135: 4785.191062 | Y135: 20.83974835 | Z135: 15347.80187
A136: 2011 | B136: 1 | C136: 6 | D136: 14 | E136: 0.006643187764 | F136: 0.0001501253083 | G136: 0.005789779886 | H136: 0.004933930134 | I136: 0.0001266488819 | J136: 0.004742789041 | K136: 0 | L136: 0 | M136: 0 | N136: 0.005510472487 | O136: 0.0001923067777 | P136: 0.004595323824 | Q136: 2.400860215e-05 | R136: 0.0001235519288 | S136: 2.083974835e-05 | T136: 0.0151487325 | U136: 5789.779886 | V136: 4742.789041 | W136: 0 | X136: 4595.323824 | Y136: 20.83974835 | Z136: 15148.7325
A137: 2011 | B137: 1 | C137: 6 | D137: 15 | E137: 0.006377577336 | F137: 0.0001441229418 | G137: 0.005558290732 | H137: 0.004868335067 | I137: 0.0001249651244 | J137: 0.004679735136 | K137: 0 | L137: 0 | M137: 0 | N137: 0.005505088366 | O137: 0.0001921188804 | P137: 0.004590833868 | Q137: 2.400860215e-05 | R137: 0.0001235519288 | S137: 2.083974835e-05 | T137: 0.01484969949 | U137: 5558.290732 | V137: 4679.735136 | W137: 0 | X137: 4590.833868 | Y137: 20.83974835 | Z137: 14849.69949
A138: 2011 | B138: 1 | C138: 6 | D138: 16 | E138: 0.006653132009 | F138: 0.0001503500321 | G138: 0.005798446657 | H138: 0.004724600108 | I138: 0.0001212755967 | J138: 0.004541568488 | K138: 0 | L138: 0 | M138: 0 | N138: 0.005279902464 | O138: 0.0001842602484 | P138: 0.00440304559 | Q138: 2.400860215e-05 | R138: 0.0001235519288 | S138: 2.083974835e-05 | T138: 0.01476390048 | U138: 5798.446657 | V138: 4541.568488 | W138: 0 | X138: 4403.04559 | Y138: 20.83974835 | Z138: 14763.90048
A139: 2011 | B139: 1 | C139: 6 | D139: 17 | E139: 0.007545351301 | F139: 0.0001705127463 | G139: 0.006576048239 | H139: 0.004483567017 | I139: 0.0001150885267 | J139: 0.00430987305 | K139: 0 | L139: 0 | M139: 0 | N139: 0.004868737606 | O139: 0.0001699112449 | P139: 0.004060164707 | Q139: 2.400860215e-05 | R139: 0.0001235519288 | S139: 2.083974835e-05 | T139: 0.01496692574 | U139: 6576.048239 | V139: 4309.87305 | W139: 0 | X139: 4060.164707 | Y139: 20.83974835 | Z139: 14966.92574
A140: 2011 | B140: 1 | C140: 6 | D140: 18 | E140: 0.008387047766 | F140: 0.0001895337263 | G140: 0.007309617338 | H140: 0.004810752689 | I140: 0.0001234870444 | J140: 0.004624383507 | K140: 0 | L140: 0 | M140: 0 | N140: 0.004808199503 | O140: 0.0001677985609 | P140: 0.004009680436 | Q140: 2.400860215e-05 | R140: 0.0001235519288 | S140: 2.083974835e-05 | T140: 0.01596452103 | U140: 7309.617338 | V140: 4624.383507 | W140: 0 | X140: 4009.680436 | Y140: 20.83974835 | Z140: 15964.52103
A141: 2011 | B141: 1 | C141: 6 | D141: 19 | E141: 0.008305640827 | F141: 0.000187694061 | G141: 0.007238668228 | H141: 0.005633616649 | I141: 0.0001446091109 | J141: 0.00541536961 | K141: 0.0005061248817 | L141: 0.0002773185 | M141: 0.0001041015795 | N141: 0.004985114747 | O141: 0.0001739726232 | P141: 0.004157214579 | Q141: 2.400860215e-05 | R141: 0.0001235519288 | S141: 2.083974835e-05 | T141: 0.01693619375 | U141: 7238.668228 | V141: 5415.36961 | W141: 104.1015795 | X141: 4157.214579 | Y141: 20.83974835 | Z141: 16936.19375
A142: 2011 | B142: 1 | C142: 6 | D142: 20 | E142: 0.009158777477 | F142: 0.0002069735707 | G142: 0.007982207865 | H142: 0.005602520756 | I142: 0.0001438109115 | J142: 0.005385478376 | K142: 0.0005061248817 | L142: 0.0002773185 | M142: 0.0001041015795 | N142: 0.003763574914 | O142: 0.0001313428143 | P142: 0.003138541297 | Q142: 2.400860215e-05 | R142: 0.0001235519288 | S142: 2.083974835e-05 | T142: 0.01663116887 | U142: 7982.207865 | V142: 5385.478376 | W142: 104.1015795 | X142: 3138.541297 | Y142: 20.83974835 | Z142: 16631.16887
A143: 2011 | B143: 1 | C143: 6 | D143: 21 | E143: 0.008280458359 | F143: 0.0001871249779 | G143: 0.007216720791 | H143: 0.005690322161 | I143: 0.0001460646827 | J143: 0.005469878343 | K143: 0.0005061248817 | L143: 0.0002773185 | M143: 0.0001041015795 | N143: 0.004210288818 | O143: 0.0001469324233 | P143: 0.003511067437 | Q143: 2.400860215e-05 | R143: 0.0001235519288 | S143: 2.083974835e-05 | T143: 0.0163226079 | U143: 7216.720791 | V143: 5469.878343 | W143: 104.1015795 | X143: 3511.067437 | Y143: 20.83974835 | Z143: 16322.6079
A144: 2011 | B144: 1 | C144: 6 | D144: 22 | E144: 0.008496998542 | F144: 0.0001920184362 | G144: 0.007405443441 | H144: 0.005751806145 | I144: 0.000147642913 | J144: 0.00552898043 | K144: 0.0005061248817 | L144: 0.0002773185 | M144: 0.0001041015795 | N144: 0.003682628096 | O144: 0.0001285178983 | P144: 0.003071037677 | Q144: 2.400860215e-05 | R144: 0.0001235519288 | S144: 2.083974835e-05 | T144: 0.01613040288 | U144: 7405.443441 | V144: 5528.98043 | W144: 104.1015795 | X144: 3071.037677 | Y144: 20.83974835 | Z144: 16130.40288
A145: 2011 | B145: 1 | C145: 6 | D145: 23 | E145: 0.008156141733 | F145: 0.0001843156231 | G145: 0.007108374327 | H145: 0.005324111832 | I145: 0.0001366644425 | J145: 0.00511785505 | K145: 0.0005061248817 | L145: 0.0002773185 | M145: 0.0001041015795 | N145: 0.003486286416 | O145: 0.0001216658841 | P145: 0.002907303332 | Q145: 2.400860215e-05 | R145: 0.0001235519288 | S145: 2.083974835e-05 | T145: 0.01525847404 | U145: 7108.374327 | V145: 5117.85505 | W145: 104.1015795 | X145: 2907.303332 | Y145: 20.83974835 | Z145: 15258.47404
A146: 2011 | B146: 1 | C146: 6 | D146: 24 | E146: 0.00729454333 | F146: 0.0001648448915 | G146: 0.006357459965 | H146: 0.00525957415 | I146: 0.0001350078269 | J146: 0.005055817566 | K146: 0.0005061248817 | L146: 0.0002773185 | M146: 0.0001041015795 | N146: 0.003330524807 | O146: 0.0001162300502 | P146: 0.002777409746 | Q146: 2.400860215e-05 | R146: 0.0001235519288 | S146: 2.083974835e-05 | T146: 0.01431562861 | U146: 6357.459965 | V146: 5055.817566 | W146: 104.1015795 | X146: 2777.409746 | Y146: 20.83974835 | Z146: 14315.62861
A147: 2011 | B147: 1 | C147: 7 | D147: 1 | E147: 0.006154437287 | F147: 0.0001390803373 | G147: 0.00536381606 | H147: 0.005198038772 | I147: 0.0001334282774 | J147: 0.004996666076 | K147: 0.0005061248817 | L147: 0.0002773185 | M147: 0.0001041015795 | N147: 0.003392266669 | O147: 0.0001183847436 | P147: 0.002828897863 | Q147: 2.400860215e-05 | R147: 0.0001235519288 | S147: 2.083974835e-05 | T147: 0.01331432133 | U147: 5363.81606 | V147: 4996.666076 | W147: 104.1015795 | X147: 2828.897863 | Y147: 20.83974835 | Z147: 13314.32133
A148: 2011 | B148: 1 | C148: 7 | D148: 2 | E148: 0.005577337921 | F148: 0.0001260388242 | G148: 0.004860852961 | H148: 0.005115896828 | I148: 0.0001313197787 | J148: 0.004917706322 | K148: 0.0005061248817 | L148: 0.0002773185 | M148: 0.0001041015795 | N148: 0.003216101728 | O148: 0.0001122368656 | P148: 0.002681989417 | Q148: 2.400860215e-05 | R148: 0.0001235519288 | S148: 2.083974835e-05 | T148: 0.01258549003 | U148: 4860.852961 | V148: 4917.706322 | W148: 104.1015795 | X148: 2681.989417 | Y148: 20.83974835 | Z148: 12585.49003
A149: 2011 | B149: 1 | C149: 7 | D149: 3 | E149: 0.005343517956 | F149: 0.0001207548709 | G149: 0.004657070353 | H149: 0.005195359683 | I149: 0.000133359508 | J149: 0.004994090776 | K149: 0.0005061248817 | L149: 0.0002773185 | M149: 0.0001041015795 | N149: 0.003169155525 | O149: 0.0001105985174 | P149: 0.002642839778 | Q149: 2.400860215e-05 | R149: 0.0001235519288 | S149: 2.083974835e-05 | T149: 0.01241894223 | U149: 4657.070353 | V149: 4994.090776 | W149: 104.1015795 | X149: 2642.839778 | Y149: 20.83974835 | Z149: 12418.94223
A150: 2011 | B150: 1 | C150: 7 | D150: 4 | E150: 0.005414257285 | F150: 0.0001223534654 | G150: 0.004718722252 | H150: 0.005129822047 | I150: 0.0001316772247 | J150: 0.004931092076 | K150: 0.0005061248817 | L150: 0.0002773185 | M150: 0.0001041015795 | N150: 0.002959429942 | O150: 0.0001032794261 | P150: 0.002467944255 | Q150: 2.400860215e-05 | R150: 0.0001235519288 | S150: 2.083974835e-05 | T150: 0.01224269991 | U150: 4718.722252 | V150: 4931.092076 | W150: 104.1015795 | X150: 2467.944255 | Y150: 20.83974835 | Z150: 12242.69991
A151: 2011 | B151: 1 | C151: 7 | D151: 5 | E151: 0.005507706874 | F151: 0.0001244652751 | G151: 0.004800166969 | H151: 0.005023816151 | I151: 0.000128956163 | J151: 0.004829192863 | K151: 0.0005061248817 | L151: 0.0002773185 | M151: 0.0001041015795 | N151: 0.002902737174 | O151: 0.0001013009381 | P151: 0.002420666707 | Q151: 2.400860215e-05 | R151: 0.0001235519288 | S151: 2.083974835e-05 | T151: 0.01217496787 | U151: 4800.166969 | V151: 4829.192863 | W151: 104.1015795 | X151: 2420.666707 | Y151: 20.83974835 | Z151: 12174.96787
A152: 2011 | B152: 1 | C152: 7 | D152: 6 | E152: 0.005791544559 | F152: 0.0001308795481 | G152: 0.005047541841 | H152: 0.005054599012 | I152: 0.0001297463272 | J152: 0.004858783192 | K152: 0.0005061248817 | L152: 0.0002773185 | M152: 0.0001041015795 | N152: 0.002751575688 | O152: 9.602564124e-05 | P152: 0.002294609281 | Q152: 2.400860215e-05 | R152: 0.0001235519288 | S152: 2.083974835e-05 | T152: 0.01232587564 | U152: 5047.541841 | V152: 4858.783192 | W152: 104.1015795 | X152: 2294.609281 | Y152: 20.83974835 | Z152: 12325.87564
A153: 2011 | B153: 1 | C153: 7 | D153: 7 | E153: 0.006396688822 | F153: 0.0001445548305 | G153: 0.005574947088 | H153: 0.005170477109 | I153: 0.0001327207981 | J153: 0.004970172156 | K153: 0.0005061248817 | L153: 0.0002773185 | M153: 0.0001041015795 | N153: 0.002543876115 | O153: 8.877725454e-05 | P153: 0.0021214033 | Q153: 2.400860215e-05 | R153: 0.0001235519288 | S153: 2.083974835e-05 | T153: 0.01279146387 | U153: 5574.947088 | V153: 4970.172156 | W153: 104.1015795 | X153: 2121.4033 | Y153: 20.83974835 | Z153: 12791.46387
A154: 2011 | B154: 1 | C154: 7 | D154: 8 | E154: 0.006492116163 | F154: 0.0001467113342 | G154: 0.005658115488 | H154: 0.005532168605 | I154: 0.0001420050446 | J154: 0.005317851676 | K154: 0.0005061248817 | L154: 0.0002773185 | M154: 0.0001041015795 | N154: 0.003232171838 | O154: 0.0001127976871 | P154: 0.002695390692 | Q154: 2.400860215e-05 | R154: 0.0001235519288 | S154: 2.083974835e-05 | T154: 0.01379629918 | U154: 5658.115488 | V154: 5317.851676 | W154: 104.1015795 | X154: 2695.390692 | Y154: 20.83974835 | Z154: 13796.29918
A155: 2011 | B155: 1 | C155: 7 | D155: 9 | E155: 0.007274374645 | F155: 0.0001643891118 | G155: 0.006339882223 | H155: 0.005346978873 | I155: 0.0001372514157 | J155: 0.005139836218 | K155: 0.0005061248817 | L155: 0.0002773185 | M155: 0.0001041015795 | N155: 0.004474609035 | O155: 0.0001561567809 | P155: 0.00373149082 | Q155: 2.400860215e-05 | R155: 0.0001235519288 | S155: 2.083974835e-05 | T155: 0.01533615059 | U155: 6339.882223 | V155: 5139.836218 | W155: 104.1015795 | X155: 3731.49082 | Y155: 20.83974835 | Z155: 15336.15059
A156: 2011 | B156: 1 | C156: 7 | D156: 10 | E156: 0.00754070742 | F156: 0.0001704078021 | G156: 0.006572000928 | H156: 0.005025644983 | I156: 0.0001290031072 | J156: 0.004830950846 | K156: 0 | L156: 0 | M156: 0 | N156: 0.005331651619 | O156: 0.0001860662121 | P156: 0.004446200533 | Q156: 2.400860215e-05 | R156: 0.0001235519288 | S156: 2.083974835e-05 | T156: 0.01586999205 | U156: 6572.000928 | V156: 4830.950846 | W156: 0 | X156: 4446.200533 | Y156: 20.83974835 | Z156: 15869.99205
A157: 2011 | B157: 1 | C157: 7 | D157: 11 | E157: 0.007148468884 | F157: 0.0001615438451 | G157: 0.00623015077 | H157: 0.005084913759 | I157: 0.0001305244754 | J157: 0.004887923541 | K157: 0 | L157: 0 | M157: 0 | N157: 0.005783792505 | O157: 0.0002018452142 | P157: 0.004823252371 | Q157: 2.400860215e-05 | R157: 0.0001235519288 | S157: 2.083974835e-05 | T157: 0.01596216643 | U157: 6230.15077 | V157: 4887.923541 | W157: 0 | X157: 4823.252371 | Y157: 20.83974835 | Z157: 15962.16643
A158: 2011 | B158: 1 | C158: 7 | D158: 12 | E158: 0.006827861731 | F158: 0.0001542986415 | G158: 0.005950729969 | H158: 0.00509496912 | I158: 0.0001307825861 | J158: 0.004897589357 | K158: 0 | L158: 0 | M158: 0 | N158: 0.005883780588 | O158: 0.0002053346402 | P158: 0.004906634989 | Q158: 2.400860215e-05 | R158: 0.0001235519288 | S158: 2.083974835e-05 | T158: 0.01577579406 | U158: 5950.729969 | V158: 4897.589357 | W158: 0 | X158: 4906.634989 | Y158: 20.83974835 | Z158: 15775.79406
A159: 2011 | B159: 1 | C159: 7 | D159: 13 | E159: 0.006738408512 | F159: 0.0001522771433 | G159: 0.005872768234 | H159: 0.005007019609 | I159: 0.0001285250131 | J159: 0.00481304702 | K159: 0 | L159: 0 | M159: 0 | N159: 0.005964960215 | O159: 0.0002081676808 | P159: 0.004974332754 | Q159: 2.400860215e-05 | R159: 0.0001235519288 | S159: 2.083974835e-05 | T159: 0.01568098776 | U159: 5872.768234 | V159: 4813.04702 | W159: 0 | X159: 4974.332754 | Y159: 20.83974835 | Z159: 15680.98776
A160: 2011 | B160: 1 | C160: 7 | D160: 14 | E160: 0.006716049912 | F160: 0.0001517718751 | G160: 0.0058532819 | H160: 0.004971752502 | I160: 0.000127619743 | J160: 0.004779146166 | K160: 0 | L160: 0 | M160: 0 | N160: 0.005646148697 | O160: 0.0001970416629 | P160: 0.004708467683 | Q160: 2.400860215e-05 | R160: 0.0001235519288 | S160: 2.083974835e-05 | T160: 0.0153617355 | U160: 5853.2819 | V160: 4779.146166 | W160: 0 | X160: 4708.467683 | Y160: 20.83974835 | Z160: 15361.7355
A161: 2011 | B161: 1 | C161: 7 | D161: 15 | E161: 0.006437887479 | F161: 0.0001454858536 | G161: 0.005610853217 | H161: 0.004899070787 | I161: 0.0001257540786 | J161: 0.00470928015 | K161: 0 | L161: 0 | M161: 0 | N161: 0.005605258167 | O161: 0.0001956146481 | P161: 0.004674368024 | Q161: 2.400860215e-05 | R161: 0.0001235519288 | S161: 2.083974835e-05 | T161: 0.01501534114 | U161: 5610.853217 | V161: 4709.28015 | W161: 0 | X161: 4674.368024 | Y161: 20.83974835 | Z161: 15015.34114
A162: 2011 | B162: 1 | C162: 7 | D162: 16 | E162: 0.006708768151 | F162: 0.000151607319 | G162: 0.00584693558 | H162: 0.00474996009 | I162: 0.0001219265613 | J162: 0.004565946021 | K162: 0 | L162: 0 | M162: 0 | N162: 0.005353446842 | O162: 0.000186826831 | P162: 0.004464376126 | Q162: 2.400860215e-05 | R162: 0.0001235519288 | S162: 2.083974835e-05 | T162: 0.01489809748 | U162: 5846.93558 | V162: 4565.946021 | W162: 0 | X162: 4464.376126 | Y162: 20.83974835 | Z162: 14898.09748
A163: 2011 | B163: 1 | C163: 7 | D163: 17 | E163: 0.007615013689 | F163: 0.0001720870037 | G163: 0.006636761546 | H163: 0.004513440317 | I163: 0.0001158553434 | J163: 0.004338589054 | K163: 0 | L163: 0 | M163: 0 | N163: 0.004968364266 | O163: 0.0001733880579 | P163: 0.004143245925 | Q163: 2.400860215e-05 | R163: 0.0001235519288 | S163: 2.083974835e-05 | T163: 0.01513943627 | U163: 6636.761546 | V163: 4338.589054 | W163: 0 | X163: 4143.245925 | Y163: 20.83974835 | Z163: 15139.43627
A164: 2011 | B164: 1 | C164: 7 | D164: 18 | E164: 0.008464807031 | F164: 0.00019129096 | G164: 0.007377387368 | H164: 0.004844850959 | I164: 0.0001243623117 | J164: 0.004657160805 | K164: 0 | L164: 0 | M164: 0 | N164: 0.004929755601 | O164: 0.0001720406765 | P164: 0.004111049173 | Q164: 2.400860215e-05 | R164: 0.0001235519288 | S164: 2.083974835e-05 | T164: 0.01616643709 | U164: 7377.387368 | V164: 4657.160805 | W164: 0 | X164: 4111.049173 | Y164: 20.83974835 | Z164: 16166.43709
A165: 2011 | B165: 1 | C165: 7 | D165: 19 | E165: 0.008387541186 | F165: 0.0001895448768 | G165: 0.007310047372 | H165: 0.00566969105 | I165: 0.0001455351035 | J165: 0.005450046485 | K165: 0.0005061248817 | L165: 0.0002773185 | M165: 0.0001041015795 | N165: 0.005114165091 | O165: 0.0001784762761 | P165: 0.004264832959 | Q165: 2.400860215e-05 | R165: 0.0001235519288 | S165: 2.083974835e-05 | T165: 0.01714986814 | U165: 7310.047372 | V165: 5450.046485 | W165: 104.1015795 | X165: 4264.832959 | Y165: 20.83974835 | Z165: 17149.86814
A166: 2011 | B166: 1 | C166: 7 | D166: 20 | E166: 0.00923865179 | F166: 0.0002087786011 | G166: 0.008051821236 | H166: 0.005632217913 | I166: 0.0001445732068 | J166: 0.005414025061 | K166: 0.0005061248817 | L166: 0.0002773185 | M166: 0.0001041015795 | N166: 0.003858869057 | O166: 0.0001346684292 | P166: 0.003218009518 | Q166: 2.400860215e-05 | R166: 0.0001235519288 | S166: 2.083974835e-05 | T166: 0.01680879714 | U166: 8051.821236 | V166: 5414.025061 | W166: 104.1015795 | X166: 3218.009518 | Y166: 20.83974835 | Z166: 16808.79714
A167: 2011 | B167: 1 | C167: 7 | D167: 21 | E167: 0.008348407248 | F167: 0.000188660513 | G167: 0.007275940721 | H167: 0.005715776883 | I167: 0.0001467180791 | J167: 0.005494346946 | K167: 0.0005061248817 | L167: 0.0002773185 | M167: 0.0001041015795 | N167: 0.004284287113 | O167: 0.0001495148468 | P167: 0.003572776506 | Q167: 2.400860215e-05 | R167: 0.0001235519288 | S167: 2.083974835e-05 | T167: 0.0164680055 | U167: 7275.940721 | V167: 5494.346946 | W167: 104.1015795 | X167: 3572.776506 | Y167: 20.83974835 | Z167: 16468.0055
A168: 2011 | B168: 1 | C168: 7 | D168: 22 | E168: 0.008548576877 | F168: 0.0001931840232 | G168: 0.007450395836 | H168: 0.005766100605 | I168: 0.000148009837 | J168: 0.005542721121 | K168: 0.0005061248817 | L168: 0.0002773185 | M168: 0.0001041015795 | N168: 0.00370003292 | O168: 0.0001291252991 | P168: 0.003085552005 | Q168: 2.400860215e-05 | R168: 0.0001235519288 | S168: 2.083974835e-05 | T168: 0.01620361029 | U168: 7450.395836 | V168: 5542.721121 | W168: 104.1015795 | X168: 3085.552005 | Y168: 20.83974835 | Z168: 16203.61029
A169: 2011 | B169: 1 | C169: 7 | D169: 23 | E169: 0.008199010867 | F169: 0.0001852843962 | G169: 0.007145736338 | H169: 0.005332826857 | I169: 0.0001368881481 | J169: 0.005126232454 | K169: 0.0005061248817 | L169: 0.0002773185 | M169: 0.0001041015795 | N169: 0.003479981359 | O169: 0.0001214458476 | P169: 0.002902045384 | Q169: 2.400860215e-05 | R169: 0.0001235519288 | S169: 2.083974835e-05 | T169: 0.0152989555 | U169: 7145.736338 | V169: 5126.232454 | W169: 104.1015795 | X169: 2902.045384 | Y169: 20.83974835 | Z169: 15298.9555
A170: 2011 | B170: 1 | C170: 7 | D170: 24 | E170: 0.007337977483 | F170: 0.0001658264332 | G170: 0.00639531441 | H170: 0.005270207859 | I170: 0.0001352807832 | J170: 0.005066039324 | K170: 0.0005061248817 | L170: 0.0002773185 | M170: 0.0001041015795 | N170: 0.003336325591 | O170: 0.0001164324884 | P170: 0.002782247168 | Q170: 2.400860215e-05 | R170: 0.0001235519288 | S170: 2.083974835e-05 | T170: 0.01436854223 | U170: 6395.31441 | V170: 5066.039324 | W170: 104.1015795 | X170: 2782.247168 | Y170: 20.83974835 | Z170: 14368.54223
A171: 2011 | B171: 1 | C171: 8 | D171: 1 | E171: 0.006136930491 | F171: 0.000138684712 | G171: 0.00534855825 | H171: 0.005193057381 | I171: 0.0001333004103 | J171: 0.004991877666 | K171: 0.0005061248817 | L171: 0.0002773185 | M171: 0.0001041015795 | N171: 0.003385682936 | O171: 0.0001181549817 | P171: 0.00282340752 | Q171: 2.400860215e-05 | R171: 0.0001235519288 | S171: 2.083974835e-05 | T171: 0.01328878476 | U171: 5348.55825 | V171: 4991.877666 | W171: 104.1015795 | X171: 2823.40752 | Y171: 20.83974835 | Z171: 13288.78476
A172: 2011 | B172: 1 | C172: 8 | D172: 2 | E172: 0.005561397273 | F172: 0.0001256785913 | G172: 0.004846960106 | H172: 0.005110949263 | I172: 0.0001311927798 | J172: 0.004912950427 | K172: 0.0005061248817 | L172: 0.0002773185 | M172: 0.0001041015795 | N172: 0.003209508555 | O172: 0.0001120067743 | P172: 0.002676491201 | Q172: 2.400860215e-05 | R172: 0.0001235519288 | S172: 2.083974835e-05 | T172: 0.01256134306 | U172: 4846.960106 | V172: 4912.950427 | W172: 104.1015795 | X172: 2676.491201 | Y172: 20.83974835 | Z172: 12561.34306
A173: 2011 | B173: 1 | C173: 8 | D173: 3 | E173: 0.005326863355 | F173: 0.0001203785038 | G173: 0.004642555262 | H173: 0.005190588948 | I173: 0.0001332370482 | J173: 0.00498950486 | K173: 0.0005061248817 | L173: 0.0002773185 | M173: 0.0001041015795 | N173: 0.003163482433 | O173: 0.0001104005354 | P173: 0.002638108842 | Q173: 2.400860215e-05 | R173: 0.0001235519288 | S173: 2.083974835e-05 | T173: 0.01239511029 | U173: 4642.555262 | V173: 4989.50486 | W173: 104.1015795 | X173: 2638.108842 | Y173: 20.83974835 | Z173: 12395.11029
A174: 2011 | B174: 1 | C174: 8 | D174: 4 | E174: 0.005397049739 | F174: 0.0001219646026 | G174: 0.00470372525 | H174: 0.005125203987 | I174: 0.0001315586839 | J174: 0.00492665292 | K174: 0.0005061248817 | L174: 0.0002773185 | M174: 0.0001041015795 | N174: 0.002954546167 | O174: 0.0001031089901 | P174: 0.002463871551 | Q174: 2.400860215e-05 | R174: 0.0001235519288 | S174: 2.083974835e-05 | T174: 0.01221919105 | U174: 4703.72525 | V174: 4926.65292 | W174: 104.1015795 | X174: 2463.871551 | Y174: 20.83974835 | Z174: 12219.19105
A175: 2011 | B175: 1 | C175: 8 | D175: 5 | E175: 0.005490139522 | F175: 0.0001240682813 | G175: 0.004784856383 | H175: 0.005019294314 | I175: 0.0001288400921 | J175: 0.004824846202 | K175: 0.0005061248817 | L175: 0.0002773185 | M175: 0.0001041015795 | N175: 0.002898249306 | O175: 0.0001011443186 | P175: 0.00241692416 | Q175: 2.400860215e-05 | R175: 0.0001235519288 | S175: 2.083974835e-05 | T175: 0.01215156807 | U175: 4784.856383 | V175: 4824.846202 | W175: 104.1015795 | X175: 2416.92416 | Y175: 20.83974835 | Z175: 12151.56807
A176: 2011 | B176: 1 | C176: 8 | D176: 6 | E176: 0.005772836387 | F176: 0.0001304567736 | G176: 0.005031236989 | H176: 0.005050042197 | I176: 0.0001296293585 | J176: 0.004854402908 | K176: 0.0005061248817 | L176: 0.0002773185 | M176: 0.0001041015795 | N176: 0.00274795176 | O176: 9.589917189e-05 | P176: 0.002291587195 | Q176: 2.400860215e-05 | R176: 0.0001235519288 | S176: 2.083974835e-05 | T176: 0.01230216842 | U176: 5031.236989 | V176: 4854.402908 | W176: 104.1015795 | X176: 2291.587195 | Y176: 20.83974835 | Z176: 12302.16842
A177: 2011 | B177: 1 | C177: 8 | D177: 7 | E177: 0.006374871753 | F177: 0.0001440618 | G177: 0.005555932719 | H177: 0.005165989008 | I177: 0.0001326055932 | J177: 0.004965857925 | K177: 0.0005061248817 | L177: 0.0002773185 | M177: 0.0001041015795 | N177: 0.002542316135 | O177: 8.87228137e-05 | P177: 0.002120102393 | Q177: 2.400860215e-05 | R177: 0.0001235519288 | S177: 2.083974835e-05 | T177: 0.01276683436 | U177: 5555.932719 | V177: 4965.857925 | W177: 104.1015795 | X177: 2120.102393 | Y177: 20.83974835 | Z177: 12766.83436
A178: 2011 | B178: 1 | C178: 8 | D178: 8 | E178: 0.00647120579 | F178: 0.0001462387936 | G178: 0.005639891338 | H178: 0.005526790276 | I178: 0.0001418669884 | J178: 0.005312681705 | K178: 0.0005061248817 | L178: 0.0002773185 | M178: 0.0001041015795 | N178: 0.003228413993 | O178: 0.0001126665442 | P178: 0.002692256929 | Q178: 2.400860215e-05 | R178: 0.0001235519288 | S178: 2.083974835e-05 | T178: 0.0137697713 | U178: 5639.891338 | V178: 5312.681705 | W178: 104.1015795 | X178: 2692.256929 | Y178: 20.83974835 | Z178: 13769.7713
A179: 2011 | B179: 1 | C179: 8 | D179: 9 | E179: 0.007253331855 | F179: 0.0001639135788 | G179: 0.006321542665 | H179: 0.005340870629 | I179: 0.0001370946234 | J179: 0.005133964608 | K179: 0.0005061248817 | L179: 0.0002773185 | M179: 0.0001041015795 | N179: 0.00446821348 | O179: 0.0001559335862 | P179: 0.003726157404 | Q179: 2.400860215e-05 | R179: 0.0001235519288 | S179: 2.083974835e-05 | T179: 0.01530660601 | U179: 6321.542665 | V179: 5133.964608 | W179: 104.1015795 | X179: 3726.157404 | Y179: 20.83974835 | Z179: 15306.60601
A180: 2011 | B180: 1 | C180: 8 | D180: 10 | E180: 0.007521184699 | F180: 0.0001699666202 | G180: 0.006554986167 | H180: 0.005019270962 | I180: 0.0001288394927 | J180: 0.004824823755 | K180: 0 | L180: 0 | M180: 0 | N180: 0.005323439164 | O180: 0.0001857796104 | P180: 0.004439351956 | Q180: 2.400860215e-05 | R180: 0.0001235519288 | S180: 2.083974835e-05 | T180: 0.01584000163 | U180: 6554.986167 | V180: 4824.823755 | W180: 0 | X180: 4439.351956 | Y180: 20.83974835 | Z180: 15840.00163
A181: 2011 | B181: 1 | C181: 8 | D181: 11 | E181: 0.00712942754 | F181: 0.0001611135415 | G181: 0.006213555546 | H181: 0.005078410482 | I181: 0.000130357543 | J181: 0.004881672202 | K181: 0 | L181: 0 | M181: 0 | N181: 0.005775000037 | O181: 0.000201538371 | P181: 0.004815920107 | Q181: 2.400860215e-05 | R181: 0.0001235519288 | S181: 2.083974835e-05 | T181: 0.0159319876 | U181: 6213.555546 | V181: 4881.672202 | W181: 0 | X181: 4815.920107 | Y181: 20.83974835 | Z181: 15931.9876
A182: 2011 | B182: 1 | C182: 8 | D182: 12 | E182: 0.006809894248 | F182: 0.0001538926054 | G182: 0.005935070654 | H182: 0.005088352476 | I182: 0.0001306127437 | J182: 0.004891229042 | K182: 0 | L182: 0 | M182: 0 | N182: 0.005874428964 | O182: 0.0002050082833 | P182: 0.004898836431 | Q182: 2.400860215e-05 | R182: 0.0001235519288 | S182: 2.083974835e-05 | T182: 0.01574597588 | U182: 5935.070654 | V182: 4891.229042 | W182: 0 | X182: 4898.836431 | Y182: 20.83974835 | Z182: 15745.97588
A183: 2011 | B183: 1 | C183: 8 | D183: 13 | E183: 0.006721050681 | F183: 0.0001518848844 | G183: 0.005857640252 | H183: 0.005000404411 | I183: 0.0001283552079 | J183: 0.004806688096 | K183: 0 | L183: 0 | M183: 0 | N183: 0.00595518162 | O183: 0.0002078264234 | P183: 0.004966178135 | Q183: 2.400860215e-05 | R183: 0.0001235519288 | S183: 2.083974835e-05 | T183: 0.01565134623 | U183: 5857.640252 | V183: 4806.688096 | W183: 0 | X183: 4966.178135 | Y183: 20.83974835 | Z183: 15651.34623
A184: 2011 | B184: 1 | C184: 8 | D184: 14 | E184: 0.006700071861 | F184: 0.000151410797 | G184: 0.005839356447 | H184: 0.004965041517 | I184: 0.000127447479 | J184: 0.004772695166 | K184: 0 | L184: 0 | M184: 0 | N184: 0.005635802981 | O184: 0.0001966806138 | P184: 0.004699840125 | Q184: 2.400860215e-05 | R184: 0.0001235519288 | S184: 2.083974835e-05 | T184: 0.01533273149 | U184: 5839.356447 | V184: 4772.695166 | W184: 0 | X184: 4699.840125 | Y184: 20.83974835 | Z184: 15332.73149
A185: 2011 | B185: 1 | C185: 8 | D185: 15 | E185: 0.006422631656 | F185: 0.0001451410967 | G185: 0.005597557212 | H185: 0.004892450933 | I185: 0.0001255841538 | J185: 0.00470291675 | K185: 0 | L185: 0 | M185: 0 | N185: 0.005594843874 | O185: 0.0001952512057 | P185: 0.004665683279 | Q185: 2.400860215e-05 | R185: 0.0001235519288 | S185: 2.083974835e-05 | T185: 0.01498699699 | U185: 5597.557212 | V185: 4702.91675 | W185: 0 | X185: 4665.683279 | Y185: 20.83974835 | Z185: 14986.99699
A186: 2011 | B186: 1 | C186: 8 | D186: 16 | E186: 0.006692463883 | F186: 0.0001512388689 | G186: 0.005832725818 | H186: 0.004743635429 | I186: 0.0001217642137 | J186: 0.004559866377 | K186: 0 | L186: 0 | M186: 0 | N186: 0.005344032991 | O186: 0.0001864983024 | P186: 0.004456525675 | Q186: 2.400860215e-05 | R186: 0.0001235519288 | S186: 2.083974835e-05 | T186: 0.01486995762 | U186: 5832.725818 | V186: 4559.866377 | W186: 0 | X186: 4456.525675 | Y186: 20.83974835 | Z186: 14869.95762
A187: 2011 | B187: 1 | C187: 8 | D187: 17 | E187: 0.007596579734 | F187: 0.0001716704261 | G187: 0.006620695683 | H187: 0.004507541062 | I187: 0.0001157039156 | J187: 0.004332918337 | K187: 0 | L187: 0 | M187: 0 | N187: 0.004960111386 | O187: 0.0001731000454 | P187: 0.004136363638 | Q187: 2.400860215e-05 | R187: 0.0001235519288 | S187: 2.083974835e-05 | T187: 0.01511081741 | U187: 6620.695683 | V187: 4332.918337 | W187: 0 | X187: 4136.363638 | Y187: 20.83974835 | Z187: 15110.81741
A188: 2011 | B188: 1 | C188: 8 | D188: 18 | E188: 0.00844545825 | F188: 0.0001908537088 | G188: 0.007360524201 | H188: 0.00483874599 | I188: 0.0001242056034 | J188: 0.004651292343 | K188: 0 | L188: 0 | M188: 0 | N188: 0.004920449791 | O188: 0.0001717159184 | P188: 0.00410328882 | Q188: 2.400860215e-05 | R188: 0.0001235519288 | S188: 2.083974835e-05 | T188: 0.01613594511 | U188: 7360.524201 | V188: 4651.292343 | W188: 0 | X188: 4103.28882 | Y188: 20.83974835 | Z188: 16135.94511
A189: 2011 | B189: 1 | C189: 8 | D189: 19 | E189: 0.008367078879 | F189: 0.0001890824617 | G189: 0.007292213727 | H189: 0.005663143592 | I189: 0.000145367037 | J189: 0.005443752676 | K189: 0.0005061248817 | L189: 0.0002773185 | M189: 0.0001041015795 | N189: 0.005103677724 | O189: 0.0001781102836 | P189: 0.004256087275 | Q189: 2.400860215e-05 | R189: 0.0001235519288 | S189: 2.083974835e-05 | T189: 0.01711699501 | U189: 7292.213727 | V189: 5443.752676 | W189: 104.1015795 | X189: 4256.087275 | Y189: 20.83974835 | Z189: 17116.99501
A190: 2011 | B190: 1 | C190: 8 | D190: 20 | E190: 0.009215750149 | F190: 0.000208261061 | G190: 0.008031861622 | H190: 0.005626161174 | I190: 0.0001444177366 | J190: 0.005408202961 | K190: 0.0005061248817 | L190: 0.0002773185 | M190: 0.0001041015795 | N190: 0.003851171574 | O190: 0.0001343997992 | P190: 0.00321159039 | Q190: 2.400860215e-05 | R190: 0.0001235519288 | S190: 2.083974835e-05 | T190: 0.0167765963 | U190: 8031.861622 | V190: 5408.202961 | W190: 104.1015795 | X190: 3211.59039 | Y190: 20.83974835 | Z190: 16776.5963
A191: 2011 | B191: 1 | C191: 8 | D191: 21 | E191: 0.008327407997 | F191: 0.0001881859639 | G191: 0.00725763911 | H191: 0.00570957991 | I191: 0.0001465590092 | J191: 0.005488390044 | K191: 0.0005061248817 | L191: 0.0002773185 | M191: 0.0001041015795 | N191: 0.00427555296 | O191: 0.0001492100386 | P191: 0.003565492873 | Q191: 2.400860215e-05 | R191: 0.0001235519288 | S191: 2.083974835e-05 | T191: 0.01643646335 | U191: 7257.63911 | V191: 5488.390044 | W191: 104.1015795 | X191: 3565.492873 | Y191: 20.83974835 | Z191: 16436.46335
A192: 2011 | B192: 1 | C192: 8 | D192: 22 | E192: 0.008527460162 | F192: 0.0001927068196 | G192: 0.007431991852 | H192: 0.005760118797 | I192: 0.0001478562902 | J192: 0.005536971049 | K192: 0.0005061248817 | L192: 0.0002773185 | M192: 0.0001041015795 | N192: 0.003691835694 | O192: 0.0001288392289 | P192: 0.003078716128 | Q192: 2.400860215e-05 | R192: 0.0001235519288 | S192: 2.083974835e-05 | T192: 0.01617262036 | U192: 7431.991852 | V192: 5536.971049 | W192: 104.1015795 | X192: 3078.716128 | Y192: 20.83974835 | Z192: 16172.62036
A193: 2011 | B193: 1 | C193: 8 | D193: 23 | E193: 0.008178697834 | F193: 0.0001848253545 | G193: 0.00712803279 | H193: 0.005327367383 | I193: 0.0001367480091 | J193: 0.00512098448 | K193: 0.0005061248817 | L193: 0.0002773185 | M193: 0.0001041015795 | N193: 0.003472366824 | O193: 0.0001211801123 | P193: 0.002895695429 | Q193: 2.400860215e-05 | R193: 0.0001235519288 | S193: 2.083974835e-05 | T193: 0.01526965403 | U193: 7128.03279 | V193: 5120.98448 | W193: 104.1015795 | X193: 2895.695429 | Y193: 20.83974835 | Z193: 15269.65403
A194: 2011 | B194: 1 | C194: 8 | D194: 24 | E194: 0.007319032012 | F194: 0.0001653982961 | G194: 0.006378802743 | H194: 0.005264993619 | I194: 0.0001351469391 | J194: 0.005061027084 | K194: 0.0005061248817 | L194: 0.0002773185 | M194: 0.0001041015795 | N194: 0.003329129528 | O194: 0.0001161813571 | P194: 0.002776246187 | Q194: 2.400860215e-05 | R194: 0.0001235519288 | S194: 2.083974835e-05 | T194: 0.01434101734 | U194: 6378.802743 | V194: 5061.027084 | W194: 104.1015795 | X194: 2776.246187 | Y194: 20.83974835 | Z194: 14341.01734
A195: 2011 | B195: 1 | C195: 9 | D195: 1 | E195: 0.005775617133 | F195: 0.000130519614 | G195: 0.00503366051 | H195: 0.005077751546 | I195: 0.0001303406288 | J195: 0.004881038793 | K195: 0.0005061248817 | L195: 0.0002773185 | M195: 0.0001041015795 | N195: 0.003057426925 | O195: 0.0001066993659 | P195: 0.002549666444 | Q195: 2.400860215e-05 | R195: 0.0001235519288 | S195: 2.083974835e-05 | T195: 0.01258930707 | U195: 5033.66051 | V195: 4881.038793 | W195: 104.1015795 | X195: 2549.666444 | Y195: 20.83974835 | Z195: 12589.30707
A196: 2011 | B196: 1 | C196: 9 | D196: 2 | E196: 0.005174086397 | F196: =E196/$E$8787 -> 0.0001169259914 | G196: =F196*$E$8788 -> 0.004509404584 | H196: 0.005028426125 | I196: =H196/$H$8787 -> 0.0001290744963 | J196: =I196*$H$8788 -> 0.004833624246 | K196: 0.0005061248817 | L196: =K196/$K$8787 -> 0.0002773185 | M196: =L196*$K$8788 -> 0.0001041015795 | N196: 0.002988036075 | O196: =N196/$N$8787 -> 0.0001042777349 | P196: =O196*$N$8788 -> 0.00249179964 | Q196: 2.400860215e-05 | R196: =Q196/$Q$8787 -> 0.0001235519288 | S196: =R196*$Q$8788 -> 2.083974835e-05 | T196: =G196+J196+M196+P196+S196 -> 0.0119597698 | U196: =G196*1000000 -> 4509.404584 | V196: =J196*1000000 -> 4833.624246 | W196: =M196*1000000 -> 104.1015795 | X196: =P196*1000000 -> 2491.79964 | Y196: =S196*1000000 -> 20.83974835 | Z196: =SUM(U196:Y196) -> 11959.7698
A197: 2011 | B197: 1 | C197: 9 | D197: 3 | E197: 0.004979920502 | F197: 0.000112538156 | G197: 0.00434018194 | H197: 0.004929149765 | I197: 0.0001265261748 | J197: 0.004738193864 | K197: 0.0005061248817 | L197: 0.0002773185 | M197: 0.0001041015795 | N197: 0.002824692193 | O197: 9.857729167e-05 | P197: 0.002355583003 | Q197: 2.400860215e-05 | R197: 0.0001235519288 | S197: 2.083974835e-05 | T197: 0.01155890014 | U197: 4340.18194 | V197: 4738.193864 | W197: 104.1015795 | X197: 2355.583003 | Y197: 20.83974835 | Z197: 11558.90014
A198: 2011 | B198: 1 | C198: 9 | D198: 4 | E198: 0.004848767083 | F198: 0.0001095743006 | G198: 0.004225876963 | H198: 0.004970677474 | I198: 0.0001275921481 | J198: 0.004778112784 | K198: 0.0005061248817 | L198: 0.0002773185 | M198: 0.0001041015795 | N198: 0.002688008883 | O198: 9.380726025e-05 | P198: 0.002241599298 | Q198: 2.400860215e-05 | R198: 0.0001235519288 | S198: 2.083974835e-05 | T198: 0.01137053037 | U198: 4225.876963 | V198: 4778.112784 | W198: 104.1015795 | X198: 2241.599298 | Y198: 20.83974835 | Z198: 11370.53037
A199: 2011 | B199: 1 | C199: 9 | D199: 5 | E199: 0.00507256608 | F199: 0.0001146317963 | G199: 0.004420925933 | H199: 0.004853888954 | I199: 0.0001245943077 | J199: 0.004665848667 | K199: 0.0005061248817 | L199: 0.0002773185 | M199: 0.0001041015795 | N199: 0.002504424866 | O199: 8.740046831e-05 | P199: 0.002088503895 | Q199: 2.400860215e-05 | R199: 0.0001235519288 | S199: 2.083974835e-05 | T199: 0.01130021982 | U199: 4420.925933 | V199: 4665.848667 | W199: 104.1015795 | X199: 2088.503895 | Y199: 20.83974835 | Z199: 11300.21982
A200: 2011 | B200: 1 | C200: 9 | D200: 6 | E200: 0.005440485999 | F200: 0.0001229461919 | G200: 0.004741581531 | H200: 0.004919175205 | I200: 0.0001262701382 | J200: 0.00472860572 | K200: 0.0005061248817 | L200: 0.0002773185 | M200: 0.0001041015795 | N200: 0.002238770386 | O200: 7.812954698e-05 | P200: 0.001866967836 | Q200: 2.400860215e-05 | R200: 0.0001235519288 | S200: 2.083974835e-05 | T200: 0.01146209641 | U200: 4741.581531 | V200: 4728.60572 | W200: 104.1015795 | X200: 1866.967836 | Y200: 20.83974835 | Z200: 11462.09641
... 2047 more rows

Sheet SNC Hourly Load Shapes by Class
A1: ALL UNITS IN GWh
A2: Year | B2: Month | C2: Day | D2: Hour (EST) | E2: Residential | F2: ='TB Hourly load shapes by class'!H2 -> GS<50 kW | G2: ='TB Hourly load shapes by class'!F2 -> GS>50 to 999 kW | H2: ='TB Hourly load shapes by class'!J2 -> GS 1000 to 4999 kW | I2: ='TB Hourly load shapes by class'!G2 -> Street Lighting | J2: ='TB Hourly load shapes by class'!K2 -> Sentinel Lighting | K2: ='TB Hourly load shapes by class'!I2 -> USL | L2: Total
A3: ='TB Hourly load shapes by class'!A3 -> 2004 | B3: ='TB Hourly load shapes by class'!B3 -> 1 | C3: ='TB Hourly load shapes by class'!C3 -> 1 | D3: ='TB Hourly load shapes by class'!D3 -> 1 | E3: ='TB Hourly load shapes by class'!N3+'KN Hourly load shapes by class'!U3 -> 44403.44741 | F3: ='TB Hourly load shapes by class'!Q3+'KN Hourly load shapes by class'!X3 -> 15689.03526 | G3: ='TB Hourly load shapes by class'!O3+'KN Hourly load shapes by class'!V3 -> 42774.8013 | H3: ='TB Hourly load shapes by class'!S3 -> 11671.98237 | I3: ='TB Hourly load shapes by class'!P3+'KN Hourly load shapes by class'!W3 -> 1393.51786 | J3: ='TB Hourly load shapes by class'!T3 -> 23.75188942 | K3: ='TB Hourly load shapes by class'!R3+'KN Hourly load shapes by class'!Y3 -> 260.5041662 | L3: =SUM(E3:K3) -> 116217.0403
A4: ='TB Hourly load shapes by class'!A4 -> 2004 | B4: ='TB Hourly load shapes by class'!B4 -> 1 | C4: ='TB Hourly load shapes by class'!C4 -> 1 | D4: ='TB Hourly load shapes by class'!D4 -> 2 | E4: ='TB Hourly load shapes by class'!N4+'KN Hourly load shapes by class'!U4 -> 41000.48084 | F4: ='TB Hourly load shapes by class'!Q4+'KN Hourly load shapes by class'!X4 -> 13916.02136 | G4: ='TB Hourly load shapes by class'!O4+'KN Hourly load shapes by class'!V4 -> 41689.46461 | H4: ='TB Hourly load shapes by class'!S4 -> 11649.26624 | I4: ='TB Hourly load shapes by class'!P4+'KN Hourly load shapes by class'!W4 -> 1393.51786 | J4: ='TB Hourly load shapes by class'!T4 -> 23.75188942 | K4: ='TB Hourly load shapes by class'!R4+'KN Hourly load shapes by class'!Y4 -> 260.5041662 | L4: =SUM(E4:K4) -> 109933.007
A5: ='TB Hourly load shapes by class'!A5 -> 2004 | B5: ='TB Hourly load shapes by class'!B5 -> 1 | C5: ='TB Hourly load shapes by class'!C5 -> 1 | D5: ='TB Hourly load shapes by class'!D5 -> 3 | E5: ='TB Hourly load shapes by class'!N5+'KN Hourly load shapes by class'!U5 -> 35425.86055 | F5: ='TB Hourly load shapes by class'!Q5+'KN Hourly load shapes by class'!X5 -> 13271.99911 | G5: ='TB Hourly load shapes by class'!O5+'KN Hourly load shapes by class'!V5 -> 44594.94682 | H5: ='TB Hourly load shapes by class'!S5 -> 11506.68729 | I5: ='TB Hourly load shapes by class'!P5+'KN Hourly load shapes by class'!W5 -> 1393.51786 | J5: ='TB Hourly load shapes by class'!T5 -> 23.75188942 | K5: ='TB Hourly load shapes by class'!R5+'KN Hourly load shapes by class'!Y5 -> 260.5041662 | L5: 106477.2677
A6: ='TB Hourly load shapes by class'!A6 -> 2004 | B6: ='TB Hourly load shapes by class'!B6 -> 1 | C6: ='TB Hourly load shapes by class'!C6 -> 1 | D6: ='TB Hourly load shapes by class'!D6 -> 4 | E6: ='TB Hourly load shapes by class'!N6+'KN Hourly load shapes by class'!U6 -> 34611.77438 | F6: ='TB Hourly load shapes by class'!Q6+'KN Hourly load shapes by class'!X6 -> 12619.6218 | G6: ='TB Hourly load shapes by class'!O6+'KN Hourly load shapes by class'!V6 -> 43725.5403 | H6: ='TB Hourly load shapes by class'!S6 -> 11574.63964 | I6: ='TB Hourly load shapes by class'!P6+'KN Hourly load shapes by class'!W6 -> 1393.51786 | J6: ='TB Hourly load shapes by class'!T6 -> 23.75188942 | K6: ='TB Hourly load shapes by class'!R6+'KN Hourly load shapes by class'!Y6 -> 260.5041662 | L6: 104209.35
A7: ='TB Hourly load shapes by class'!A7 -> 2004 | B7: ='TB Hourly load shapes by class'!B7 -> 1 | C7: ='TB Hourly load shapes by class'!C7 -> 1 | D7: ='TB Hourly load shapes by class'!D7 -> 5 | E7: ='TB Hourly load shapes by class'!N7+'KN Hourly load shapes by class'!U7 -> 34774.70686 | F7: ='TB Hourly load shapes by class'!Q7+'KN Hourly load shapes by class'!X7 -> 13603.27476 | G7: ='TB Hourly load shapes by class'!O7+'KN Hourly load shapes by class'!V7 -> 42212.94466 | H7: ='TB Hourly load shapes by class'!S7 -> 11507.33726 | I7: ='TB Hourly load shapes by class'!P7+'KN Hourly load shapes by class'!W7 -> 1393.51786 | J7: ='TB Hourly load shapes by class'!T7 -> 23.75188942 | K7: ='TB Hourly load shapes by class'!R7+'KN Hourly load shapes by class'!Y7 -> 260.5041662 | L7: 103776.0375
A8: ='TB Hourly load shapes by class'!A8 -> 2004 | B8: ='TB Hourly load shapes by class'!B8 -> 1 | C8: ='TB Hourly load shapes by class'!C8 -> 1 | D8: ='TB Hourly load shapes by class'!D8 -> 6 | E8: ='TB Hourly load shapes by class'!N8+'KN Hourly load shapes by class'!U8 -> 36802.56743 | F8: ='TB Hourly load shapes by class'!Q8+'KN Hourly load shapes by class'!X8 -> 12558.09552 | G8: ='TB Hourly load shapes by class'!O8+'KN Hourly load shapes by class'!V8 -> 42512.64559 | H8: ='TB Hourly load shapes by class'!S8 -> 11532.62545 | I8: ='TB Hourly load shapes by class'!P8+'KN Hourly load shapes by class'!W8 -> 1393.51786 | J8: ='TB Hourly load shapes by class'!T8 -> 23.75188942 | K8: ='TB Hourly load shapes by class'!R8+'KN Hourly load shapes by class'!Y8 -> 260.5041662 | L8: 105083.7079
A9: ='TB Hourly load shapes by class'!A9 -> 2004 | B9: ='TB Hourly load shapes by class'!B9 -> 1 | C9: ='TB Hourly load shapes by class'!C9 -> 1 | D9: ='TB Hourly load shapes by class'!D9 -> 7 | E9: ='TB Hourly load shapes by class'!N9+'KN Hourly load shapes by class'!U9 -> 39049.48835 | F9: ='TB Hourly load shapes by class'!Q9+'KN Hourly load shapes by class'!X9 -> 15452.34415 | G9: ='TB Hourly load shapes by class'!O9+'KN Hourly load shapes by class'!V9 -> 42698.09535 | H9: ='TB Hourly load shapes by class'!S9 -> 11834.91863 | I9: ='TB Hourly load shapes by class'!P9+'KN Hourly load shapes by class'!W9 -> 1393.51786 | J9: ='TB Hourly load shapes by class'!T9 -> 23.75188942 | K9: ='TB Hourly load shapes by class'!R9+'KN Hourly load shapes by class'!Y9 -> 260.5041662 | L9: 110712.6204
A10: ='TB Hourly load shapes by class'!A10 -> 2004 | B10: ='TB Hourly load shapes by class'!B10 -> 1 | C10: ='TB Hourly load shapes by class'!C10 -> 1 | D10: ='TB Hourly load shapes by class'!D10 -> 8 | E10: ='TB Hourly load shapes by class'!N10+'KN Hourly load shapes by class'!U10 -> 43882.67741 | F10: ='TB Hourly load shapes by class'!Q10+'KN Hourly load shapes by class'!X10 -> 18228.00514 | G10: ='TB Hourly load shapes by class'!O10+'KN Hourly load shapes by class'!V10 -> 44925.95115 | H10: ='TB Hourly load shapes by class'!S10 -> 11890.05907 | I10: ='TB Hourly load shapes by class'!P10+'KN Hourly load shapes by class'!W10 -> 1071.164045 | J10: ='TB Hourly load shapes by class'!T10 -> 17.81392177 | K10: ='TB Hourly load shapes by class'!R10+'KN Hourly load shapes by class'!Y10 -> 251.4573326 | L10: 120267.1281
A11: ='TB Hourly load shapes by class'!A11 -> 2004 | B11: ='TB Hourly load shapes by class'!B11 -> 1 | C11: ='TB Hourly load shapes by class'!C11 -> 1 | D11: ='TB Hourly load shapes by class'!D11 -> 9 | E11: ='TB Hourly load shapes by class'!N11+'KN Hourly load shapes by class'!U11 -> 53142.29381 | F11: ='TB Hourly load shapes by class'!Q11+'KN Hourly load shapes by class'!X11 -> 22651.14126 | G11: ='TB Hourly load shapes by class'!O11+'KN Hourly load shapes by class'!V11 -> 40945.96758 | H11: ='TB Hourly load shapes by class'!S11 -> 12278.09832 | I11: ='TB Hourly load shapes by class'!P11+'KN Hourly load shapes by class'!W11 -> 104.1015795 | J11: ='TB Hourly load shapes by class'!T11 -> 0 | K11: ='TB Hourly load shapes by class'!R11+'KN Hourly load shapes by class'!Y11 -> 224.3168031 | L11: 129345.9194
A12: ='TB Hourly load shapes by class'!A12 -> 2004 | B12: ='TB Hourly load shapes by class'!B12 -> 1 | C12: ='TB Hourly load shapes by class'!C12 -> 1 | D12: ='TB Hourly load shapes by class'!D12 -> 10 | E12: ='TB Hourly load shapes by class'!N12+'KN Hourly load shapes by class'!U12 -> 63944.68542 | F12: ='TB Hourly load shapes by class'!Q12+'KN Hourly load shapes by class'!X12 -> 26619.87114 | G12: ='TB Hourly load shapes by class'!O12+'KN Hourly load shapes by class'!V12 -> 33535.68348 | H12: ='TB Hourly load shapes by class'!S12 -> 12112.53596 | I12: ='TB Hourly load shapes by class'!P12+'KN Hourly load shapes by class'!W12 -> 0 | J12: ='TB Hourly load shapes by class'!T12 -> 0 | K12: ='TB Hourly load shapes by class'!R12+'KN Hourly load shapes by class'!Y12 -> 224.3168031 | L12: 136437.0928
A13: ='TB Hourly load shapes by class'!A13 -> 2004 | B13: ='TB Hourly load shapes by class'!B13 -> 1 | C13: ='TB Hourly load shapes by class'!C13 -> 1 | D13: ='TB Hourly load shapes by class'!D13 -> 11 | E13: ='TB Hourly load shapes by class'!N13+'KN Hourly load shapes by class'!U13 -> 63162.91848 | F13: ='TB Hourly load shapes by class'!Q13+'KN Hourly load shapes by class'!X13 -> 29545.36019 | G13: ='TB Hourly load shapes by class'!O13+'KN Hourly load shapes by class'!V13 -> 35466.53205 | H13: ='TB Hourly load shapes by class'!S13 -> 11969.15963 | I13: ='TB Hourly load shapes by class'!P13+'KN Hourly load shapes by class'!W13 -> 0 | J13: ='TB Hourly load shapes by class'!T13 -> 0 | K13: ='TB Hourly load shapes by class'!R13+'KN Hourly load shapes by class'!Y13 -> 224.3168031 | L13: 140368.2872
A14: ='TB Hourly load shapes by class'!A14 -> 2004 | B14: ='TB Hourly load shapes by class'!B14 -> 1 | C14: ='TB Hourly load shapes by class'!C14 -> 1 | D14: ='TB Hourly load shapes by class'!D14 -> 12 | E14: ='TB Hourly load shapes by class'!N14+'KN Hourly load shapes by class'!U14 -> 65690.72504 | F14: ='TB Hourly load shapes by class'!Q14+'KN Hourly load shapes by class'!X14 -> 29691.90008 | G14: ='TB Hourly load shapes by class'!O14+'KN Hourly load shapes by class'!V14 -> 36167.34036 | H14: ='TB Hourly load shapes by class'!S14 -> 12011.9471 | I14: ='TB Hourly load shapes by class'!P14+'KN Hourly load shapes by class'!W14 -> 0 | J14: ='TB Hourly load shapes by class'!T14 -> 0 | K14: ='TB Hourly load shapes by class'!R14+'KN Hourly load shapes by class'!Y14 -> 224.3168031 | L14: 143786.2294
A15: ='TB Hourly load shapes by class'!A15 -> 2004 | B15: ='TB Hourly load shapes by class'!B15 -> 1 | C15: ='TB Hourly load shapes by class'!C15 -> 1 | D15: ='TB Hourly load shapes by class'!D15 -> 13 | E15: ='TB Hourly load shapes by class'!N15+'KN Hourly load shapes by class'!U15 -> 62541.18249 | F15: ='TB Hourly load shapes by class'!Q15+'KN Hourly load shapes by class'!X15 -> 30630.39817 | G15: ='TB Hourly load shapes by class'!O15+'KN Hourly load shapes by class'!V15 -> 36980.85053 | H15: ='TB Hourly load shapes by class'!S15 -> 11938.88882 | I15: ='TB Hourly load shapes by class'!P15+'KN Hourly load shapes by class'!W15 -> 0 | J15: ='TB Hourly load shapes by class'!T15 -> 0 | K15: ='TB Hourly load shapes by class'!R15+'KN Hourly load shapes by class'!Y15 -> 224.3168031 | L15: 142315.6368
A16: ='TB Hourly load shapes by class'!A16 -> 2004 | B16: ='TB Hourly load shapes by class'!B16 -> 1 | C16: ='TB Hourly load shapes by class'!C16 -> 1 | D16: ='TB Hourly load shapes by class'!D16 -> 14 | E16: ='TB Hourly load shapes by class'!N16+'KN Hourly load shapes by class'!U16 -> 59279.07283 | F16: ='TB Hourly load shapes by class'!Q16+'KN Hourly load shapes by class'!X16 -> 29466.89863 | G16: ='TB Hourly load shapes by class'!O16+'KN Hourly load shapes by class'!V16 -> 38505.83849 | H16: ='TB Hourly load shapes by class'!S16 -> 12098.0994 | I16: ='TB Hourly load shapes by class'!P16+'KN Hourly load shapes by class'!W16 -> 0 | J16: ='TB Hourly load shapes by class'!T16 -> 0 | K16: ='TB Hourly load shapes by class'!R16+'KN Hourly load shapes by class'!Y16 -> 224.3168031 | L16: 139574.2262
A17: ='TB Hourly load shapes by class'!A17 -> 2004 | B17: ='TB Hourly load shapes by class'!B17 -> 1 | C17: ='TB Hourly load shapes by class'!C17 -> 1 | D17: ='TB Hourly load shapes by class'!D17 -> 15 | E17: ='TB Hourly load shapes by class'!N17+'KN Hourly load shapes by class'!U17 -> 60835.07428 | F17: ='TB Hourly load shapes by class'!Q17+'KN Hourly load shapes by class'!X17 -> 28435.86506 | G17: ='TB Hourly load shapes by class'!O17+'KN Hourly load shapes by class'!V17 -> 36904.12501 | H17: ='TB Hourly load shapes by class'!S17 -> 12223.74859 | I17: ='TB Hourly load shapes by class'!P17+'KN Hourly load shapes by class'!W17 -> 0 | J17: ='TB Hourly load shapes by class'!T17 -> 0 | K17: ='TB Hourly load shapes by class'!R17+'KN Hourly load shapes by class'!Y17 -> 224.3168031 | L17: 138623.1297
A18: ='TB Hourly load shapes by class'!A18 -> 2004 | B18: ='TB Hourly load shapes by class'!B18 -> 1 | C18: ='TB Hourly load shapes by class'!C18 -> 1 | D18: ='TB Hourly load shapes by class'!D18 -> 16 | E18: ='TB Hourly load shapes by class'!N18+'KN Hourly load shapes by class'!U18 -> 62238.93995 | F18: ='TB Hourly load shapes by class'!Q18+'KN Hourly load shapes by class'!X18 -> 27191.50244 | G18: ='TB Hourly load shapes by class'!O18+'KN Hourly load shapes by class'!V18 -> 35443.15138 | H18: ='TB Hourly load shapes by class'!S18 -> 12305.50941 | I18: ='TB Hourly load shapes by class'!P18+'KN Hourly load shapes by class'!W18 -> 0 | J18: ='TB Hourly load shapes by class'!T18 -> 0 | K18: ='TB Hourly load shapes by class'!R18+'KN Hourly load shapes by class'!Y18 -> 224.3168031 | L18: 137403.42
A19: ='TB Hourly load shapes by class'!A19 -> 2004 | B19: ='TB Hourly load shapes by class'!B19 -> 1 | C19: ='TB Hourly load shapes by class'!C19 -> 1 | D19: ='TB Hourly load shapes by class'!D19 -> 17 | E19: ='TB Hourly load shapes by class'!N19+'KN Hourly load shapes by class'!U19 -> 67067.86627 | F19: ='TB Hourly load shapes by class'!Q19+'KN Hourly load shapes by class'!X19 -> 27670.62356 | G19: ='TB Hourly load shapes by class'!O19+'KN Hourly load shapes by class'!V19 -> 34089.25593 | H19: ='TB Hourly load shapes by class'!S19 -> 12180.03775 | I19: ='TB Hourly load shapes by class'!P19+'KN Hourly load shapes by class'!W19 -> 322.3540701 | J19: ='TB Hourly load shapes by class'!T19 -> 5.937972356 | K19: ='TB Hourly load shapes by class'!R19+'KN Hourly load shapes by class'!Y19 -> 233.3636439 | L19: 141569.4392
A20: ='TB Hourly load shapes by class'!A20 -> 2004 | B20: ='TB Hourly load shapes by class'!B20 -> 1 | C20: ='TB Hourly load shapes by class'!C20 -> 1 | D20: ='TB Hourly load shapes by class'!D20 -> 18 | E20: ='TB Hourly load shapes by class'!N20+'KN Hourly load shapes by class'!U20 -> 71655.7735 | F20: ='TB Hourly load shapes by class'!Q20+'KN Hourly load shapes by class'!X20 -> 26754.95023 | G20: ='TB Hourly load shapes by class'!O20+'KN Hourly load shapes by class'!V20 -> 39854.86517 | H20: ='TB Hourly load shapes by class'!S20 -> 12090.76023 | I20: ='TB Hourly load shapes by class'!P20+'KN Hourly load shapes by class'!W20 -> 1289.41628 | J20: ='TB Hourly load shapes by class'!T20 -> 23.75188942 | K20: ='TB Hourly load shapes by class'!R20+'KN Hourly load shapes by class'!Y20 -> 260.5041662 | L20: 151930.0215
A21: ='TB Hourly load shapes by class'!A21 -> 2004 | B21: ='TB Hourly load shapes by class'!B21 -> 1 | C21: ='TB Hourly load shapes by class'!C21 -> 1 | D21: ='TB Hourly load shapes by class'!D21 -> 19 | E21: ='TB Hourly load shapes by class'!N21+'KN Hourly load shapes by class'!U21 -> 73945.49766 | F21: ='TB Hourly load shapes by class'!Q21+'KN Hourly load shapes by class'!X21 -> 21104.2392 | G21: ='TB Hourly load shapes by class'!O21+'KN Hourly load shapes by class'!V21 -> 44477.32939 | H21: ='TB Hourly load shapes by class'!S21 -> 12036.51845 | I21: ='TB Hourly load shapes by class'!P21+'KN Hourly load shapes by class'!W21 -> 1393.51786 | J21: ='TB Hourly load shapes by class'!T21 -> 23.75188942 | K21: ='TB Hourly load shapes by class'!R21+'KN Hourly load shapes by class'!Y21 -> 260.5041662 | L21: 153241.3586
A22: ='TB Hourly load shapes by class'!A22 -> 2004 | B22: ='TB Hourly load shapes by class'!B22 -> 1 | C22: ='TB Hourly load shapes by class'!C22 -> 1 | D22: ='TB Hourly load shapes by class'!D22 -> 20 | E22: ='TB Hourly load shapes by class'!N22+'KN Hourly load shapes by class'!U22 -> 72563.32851 | F22: ='TB Hourly load shapes by class'!Q22+'KN Hourly load shapes by class'!X22 -> 16323.06581 | G22: ='TB Hourly load shapes by class'!O22+'KN Hourly load shapes by class'!V22 -> 46818.22337 | H22: ='TB Hourly load shapes by class'!S22 -> 12019.20186 | I22: ='TB Hourly load shapes by class'!P22+'KN Hourly load shapes by class'!W22 -> 1393.51786 | J22: ='TB Hourly load shapes by class'!T22 -> 23.75188942 | K22: ='TB Hourly load shapes by class'!R22+'KN Hourly load shapes by class'!Y22 -> 260.5041662 | L22: 149401.5935
A23: ='TB Hourly load shapes by class'!A23 -> 2004 | B23: ='TB Hourly load shapes by class'!B23 -> 1 | C23: ='TB Hourly load shapes by class'!C23 -> 1 | D23: ='TB Hourly load shapes by class'!D23 -> 21 | E23: ='TB Hourly load shapes by class'!N23+'KN Hourly load shapes by class'!U23 -> 70192.55873 | F23: ='TB Hourly load shapes by class'!Q23+'KN Hourly load shapes by class'!X23 -> 18590.99486 | G23: ='TB Hourly load shapes by class'!O23+'KN Hourly load shapes by class'!V23 -> 45045.61462 | H23: ='TB Hourly load shapes by class'!S23 -> 11998.60117 | I23: ='TB Hourly load shapes by class'!P23+'KN Hourly load shapes by class'!W23 -> 1393.51786 | J23: ='TB Hourly load shapes by class'!T23 -> 23.75188942 | K23: ='TB Hourly load shapes by class'!R23+'KN Hourly load shapes by class'!Y23 -> 260.5041662 | L23: 147505.5433
A24: ='TB Hourly load shapes by class'!A24 -> 2004 | B24: ='TB Hourly load shapes by class'!B24 -> 1 | C24: ='TB Hourly load shapes by class'!C24 -> 1 | D24: ='TB Hourly load shapes by class'!D24 -> 22 | E24: ='TB Hourly load shapes by class'!N24+'KN Hourly load shapes by class'!U24 -> 67681.71448 | F24: ='TB Hourly load shapes by class'!Q24+'KN Hourly load shapes by class'!X24 -> 18067.54654 | G24: ='TB Hourly load shapes by class'!O24+'KN Hourly load shapes by class'!V24 -> 44615.80416 | H24: ='TB Hourly load shapes by class'!S24 -> 11864.73617 | I24: ='TB Hourly load shapes by class'!P24+'KN Hourly load shapes by class'!W24 -> 1393.51786 | J24: ='TB Hourly load shapes by class'!T24 -> 23.75188942 | K24: ='TB Hourly load shapes by class'!R24+'KN Hourly load shapes by class'!Y24 -> 260.5041662 | L24: 143907.5753
A25: ='TB Hourly load shapes by class'!A25 -> 2004 | B25: ='TB Hourly load shapes by class'!B25 -> 1 | C25: ='TB Hourly load shapes by class'!C25 -> 1 | D25: ='TB Hourly load shapes by class'!D25 -> 23 | E25: ='TB Hourly load shapes by class'!N25+'KN Hourly load shapes by class'!U25 -> 61072.03006 | F25: ='TB Hourly load shapes by class'!Q25+'KN Hourly load shapes by class'!X25 -> 15435.18951 | G25: ='TB Hourly load shapes by class'!O25+'KN Hourly load shapes by class'!V25 -> 42780.22311 | H25: ='TB Hourly load shapes by class'!S25 -> 11576.0247 | I25: ='TB Hourly load shapes by class'!P25+'KN Hourly load shapes by class'!W25 -> 1393.51786 | J25: ='TB Hourly load shapes by class'!T25 -> 23.75188942 | K25: ='TB Hourly load shapes by class'!R25+'KN Hourly load shapes by class'!Y25 -> 260.5041662 | L25: 132541.2413
A26: ='TB Hourly load shapes by class'!A26 -> 2004 | B26: ='TB Hourly load shapes by class'!B26 -> 1 | C26: ='TB Hourly load shapes by class'!C26 -> 1 | D26: ='TB Hourly load shapes by class'!D26 -> 24 | E26: ='TB Hourly load shapes by class'!N26+'KN Hourly load shapes by class'!U26 -> 52324.6041 | F26: ='TB Hourly load shapes by class'!Q26+'KN Hourly load shapes by class'!X26 -> 16805.17038 | G26: ='TB Hourly load shapes by class'!O26+'KN Hourly load shapes by class'!V26 -> 42887.37204 | H26: ='TB Hourly load shapes by class'!S26 -> 11166.02125 | I26: ='TB Hourly load shapes by class'!P26+'KN Hourly load shapes by class'!W26 -> 1393.51786 | J26: ='TB Hourly load shapes by class'!T26 -> 23.75188942 | K26: ='TB Hourly load shapes by class'!R26+'KN Hourly load shapes by class'!Y26 -> 260.5041662 | L26: 124860.9417
A27: ='TB Hourly load shapes by class'!A27 -> 2004 | B27: ='TB Hourly load shapes by class'!B27 -> 1 | C27: ='TB Hourly load shapes by class'!C27 -> 2 | D27: ='TB Hourly load shapes by class'!D27 -> 1 | E27: ='TB Hourly load shapes by class'!N27+'KN Hourly load shapes by class'!U27 -> 47150.16228 | F27: ='TB Hourly load shapes by class'!Q27+'KN Hourly load shapes by class'!X27 -> 15173.11094 | G27: ='TB Hourly load shapes by class'!O27+'KN Hourly load shapes by class'!V27 -> 38293.95782 | H27: ='TB Hourly load shapes by class'!S27 -> 11112.78194 | I27: ='TB Hourly load shapes by class'!P27+'KN Hourly load shapes by class'!W27 -> 1393.51786 | J27: ='TB Hourly load shapes by class'!T27 -> 23.75188942 | K27: ='TB Hourly load shapes by class'!R27+'KN Hourly load shapes by class'!Y27 -> 260.5041662 | L27: 113407.7869
A28: ='TB Hourly load shapes by class'!A28 -> 2004 | B28: ='TB Hourly load shapes by class'!B28 -> 1 | C28: ='TB Hourly load shapes by class'!C28 -> 2 | D28: ='TB Hourly load shapes by class'!D28 -> 2 | E28: ='TB Hourly load shapes by class'!N28+'KN Hourly load shapes by class'!U28 -> 42404.30368 | F28: ='TB Hourly load shapes by class'!Q28+'KN Hourly load shapes by class'!X28 -> 14671.01896 | G28: ='TB Hourly load shapes by class'!O28+'KN Hourly load shapes by class'!V28 -> 37632.33919 | H28: ='TB Hourly load shapes by class'!S28 -> 10867.73662 | I28: ='TB Hourly load shapes by class'!P28+'KN Hourly load shapes by class'!W28 -> 1393.51786 | J28: ='TB Hourly load shapes by class'!T28 -> 23.75188942 | K28: ='TB Hourly load shapes by class'!R28+'KN Hourly load shapes by class'!Y28 -> 260.5041662 | L28: 107253.1724
A29: ='TB Hourly load shapes by class'!A29 -> 2004 | B29: ='TB Hourly load shapes by class'!B29 -> 1 | C29: ='TB Hourly load shapes by class'!C29 -> 2 | D29: ='TB Hourly load shapes by class'!D29 -> 3 | E29: ='TB Hourly load shapes by class'!N29+'KN Hourly load shapes by class'!U29 -> 38647.92273 | F29: ='TB Hourly load shapes by class'!Q29+'KN Hourly load shapes by class'!X29 -> 15859.02593 | G29: ='TB Hourly load shapes by class'!O29+'KN Hourly load shapes by class'!V29 -> 37445.87715 | H29: ='TB Hourly load shapes by class'!S29 -> 10833.39707 | I29: ='TB Hourly load shapes by class'!P29+'KN Hourly load shapes by class'!W29 -> 1393.51786 | J29: ='TB Hourly load shapes by class'!T29 -> 23.75188942 | K29: ='TB Hourly load shapes by class'!R29+'KN Hourly load shapes by class'!Y29 -> 260.5041662 | L29: 104463.9968
A30: ='TB Hourly load shapes by class'!A30 -> 2004 | B30: ='TB Hourly load shapes by class'!B30 -> 1 | C30: ='TB Hourly load shapes by class'!C30 -> 2 | D30: ='TB Hourly load shapes by class'!D30 -> 4 | E30: ='TB Hourly load shapes by class'!N30+'KN Hourly load shapes by class'!U30 -> 36420.46918 | F30: ='TB Hourly load shapes by class'!Q30+'KN Hourly load shapes by class'!X30 -> 15118.68109 | G30: ='TB Hourly load shapes by class'!O30+'KN Hourly load shapes by class'!V30 -> 37927.10679 | H30: ='TB Hourly load shapes by class'!S30 -> 10787.2603 | I30: ='TB Hourly load shapes by class'!P30+'KN Hourly load shapes by class'!W30 -> 1393.51786 | J30: ='TB Hourly load shapes by class'!T30 -> 23.75188942 | K30: ='TB Hourly load shapes by class'!R30+'KN Hourly load shapes by class'!Y30 -> 260.5041662 | L30: 101931.2913
A31: ='TB Hourly load shapes by class'!A31 -> 2004 | B31: ='TB Hourly load shapes by class'!B31 -> 1 | C31: ='TB Hourly load shapes by class'!C31 -> 2 | D31: ='TB Hourly load shapes by class'!D31 -> 5 | E31: ='TB Hourly load shapes by class'!N31+'KN Hourly load shapes by class'!U31 -> 35819.50181 | F31: ='TB Hourly load shapes by class'!Q31+'KN Hourly load shapes by class'!X31 -> 15524.23599 | G31: ='TB Hourly load shapes by class'!O31+'KN Hourly load shapes by class'!V31 -> 37443.94714 | H31: ='TB Hourly load shapes by class'!S31 -> 10857.99618 | I31: ='TB Hourly load shapes by class'!P31+'KN Hourly load shapes by class'!W31 -> 1393.51786 | J31: ='TB Hourly load shapes by class'!T31 -> 23.75188942 | K31: ='TB Hourly load shapes by class'!R31+'KN Hourly load shapes by class'!Y31 -> 260.5041662 | L31: 101323.455
A32: ='TB Hourly load shapes by class'!A32 -> 2004 | B32: ='TB Hourly load shapes by class'!B32 -> 1 | C32: ='TB Hourly load shapes by class'!C32 -> 2 | D32: ='TB Hourly load shapes by class'!D32 -> 6 | E32: ='TB Hourly load shapes by class'!N32+'KN Hourly load shapes by class'!U32 -> 37179.19096 | F32: ='TB Hourly load shapes by class'!Q32+'KN Hourly load shapes by class'!X32 -> 14852.07001 | G32: ='TB Hourly load shapes by class'!O32+'KN Hourly load shapes by class'!V32 -> 38337.75057 | H32: ='TB Hourly load shapes by class'!S32 -> 10704.97632 | I32: ='TB Hourly load shapes by class'!P32+'KN Hourly load shapes by class'!W32 -> 1393.51786 | J32: ='TB Hourly load shapes by class'!T32 -> 23.75188942 | K32: ='TB Hourly load shapes by class'!R32+'KN Hourly load shapes by class'!Y32 -> 260.5041662 | L32: 102751.7618
A33: ='TB Hourly load shapes by class'!A33 -> 2004 | B33: ='TB Hourly load shapes by class'!B33 -> 1 | C33: ='TB Hourly load shapes by class'!C33 -> 2 | D33: ='TB Hourly load shapes by class'!D33 -> 7 | E33: ='TB Hourly load shapes by class'!N33+'KN Hourly load shapes by class'!U33 -> 38822.69078 | F33: ='TB Hourly load shapes by class'!Q33+'KN Hourly load shapes by class'!X33 -> 16022.72819 | G33: ='TB Hourly load shapes by class'!O33+'KN Hourly load shapes by class'!V33 -> 39658.12289 | H33: ='TB Hourly load shapes by class'!S33 -> 11693.65543 | I33: ='TB Hourly load shapes by class'!P33+'KN Hourly load shapes by class'!W33 -> 1393.51786 | J33: ='TB Hourly load shapes by class'!T33 -> 23.75188942 | K33: ='TB Hourly load shapes by class'!R33+'KN Hourly load shapes by class'!Y33 -> 260.5041662 | L33: 107874.9712
A34: ='TB Hourly load shapes by class'!A34 -> 2004 | B34: ='TB Hourly load shapes by class'!B34 -> 1 | C34: ='TB Hourly load shapes by class'!C34 -> 2 | D34: ='TB Hourly load shapes by class'!D34 -> 8 | E34: ='TB Hourly load shapes by class'!N34+'KN Hourly load shapes by class'!U34 -> 41376.89314 | F34: ='TB Hourly load shapes by class'!Q34+'KN Hourly load shapes by class'!X34 -> 16890.84282 | G34: ='TB Hourly load shapes by class'!O34+'KN Hourly load shapes by class'!V34 -> 43001.10115 | H34: ='TB Hourly load shapes by class'!S34 -> 13820.95012 | I34: ='TB Hourly load shapes by class'!P34+'KN Hourly load shapes by class'!W34 -> 1071.164045 | J34: ='TB Hourly load shapes by class'!T34 -> 17.81392177 | K34: ='TB Hourly load shapes by class'!R34+'KN Hourly load shapes by class'!Y34 -> 251.4573326 | L34: 116430.2225
A35: ='TB Hourly load shapes by class'!A35 -> 2004 | B35: ='TB Hourly load shapes by class'!B35 -> 1 | C35: ='TB Hourly load shapes by class'!C35 -> 2 | D35: ='TB Hourly load shapes by class'!D35 -> 9 | E35: ='TB Hourly load shapes by class'!N35+'KN Hourly load shapes by class'!U35 -> 49101.22174 | F35: ='TB Hourly load shapes by class'!Q35+'KN Hourly load shapes by class'!X35 -> 18678.44543 | G35: ='TB Hourly load shapes by class'!O35+'KN Hourly load shapes by class'!V35 -> 39968.74013 | H35: ='TB Hourly load shapes by class'!S35 -> 16685.76633 | I35: ='TB Hourly load shapes by class'!P35+'KN Hourly load shapes by class'!W35 -> 104.1015795 | J35: ='TB Hourly load shapes by class'!T35 -> 0 | K35: ='TB Hourly load shapes by class'!R35+'KN Hourly load shapes by class'!Y35 -> 224.3168031 | L35: 124762.592
A36: ='TB Hourly load shapes by class'!A36 -> 2004 | B36: ='TB Hourly load shapes by class'!B36 -> 1 | C36: ='TB Hourly load shapes by class'!C36 -> 2 | D36: ='TB Hourly load shapes by class'!D36 -> 10 | E36: ='TB Hourly load shapes by class'!N36+'KN Hourly load shapes by class'!U36 -> 55610.84899 | F36: ='TB Hourly load shapes by class'!Q36+'KN Hourly load shapes by class'!X36 -> 20816.13595 | G36: ='TB Hourly load shapes by class'!O36+'KN Hourly load shapes by class'!V36 -> 37562.15496 | H36: ='TB Hourly load shapes by class'!S36 -> 16628.59948 | I36: ='TB Hourly load shapes by class'!P36+'KN Hourly load shapes by class'!W36 -> 0 | J36: ='TB Hourly load shapes by class'!T36 -> 0 | K36: ='TB Hourly load shapes by class'!R36+'KN Hourly load shapes by class'!Y36 -> 224.3168031 | L36: 130842.0562
A37: ='TB Hourly load shapes by class'!A37 -> 2004 | B37: ='TB Hourly load shapes by class'!B37 -> 1 | C37: ='TB Hourly load shapes by class'!C37 -> 2 | D37: ='TB Hourly load shapes by class'!D37 -> 11 | E37: ='TB Hourly load shapes by class'!N37+'KN Hourly load shapes by class'!U37 -> 56407.40963 | F37: ='TB Hourly load shapes by class'!Q37+'KN Hourly load shapes by class'!X37 -> 22086.31246 | G37: ='TB Hourly load shapes by class'!O37+'KN Hourly load shapes by class'!V37 -> 39103.79186 | H37: ='TB Hourly load shapes by class'!S37 -> 16818.35118 | I37: ='TB Hourly load shapes by class'!P37+'KN Hourly load shapes by class'!W37 -> 0 | J37: ='TB Hourly load shapes by class'!T37 -> 0 | K37: ='TB Hourly load shapes by class'!R37+'KN Hourly load shapes by class'!Y37 -> 224.3168031 | L37: 134640.1819
A38: ='TB Hourly load shapes by class'!A38 -> 2004 | B38: ='TB Hourly load shapes by class'!B38 -> 1 | C38: ='TB Hourly load shapes by class'!C38 -> 2 | D38: ='TB Hourly load shapes by class'!D38 -> 12 | E38: ='TB Hourly load shapes by class'!N38+'KN Hourly load shapes by class'!U38 -> 62610.62769 | F38: ='TB Hourly load shapes by class'!Q38+'KN Hourly load shapes by class'!X38 -> 22041.67877 | G38: ='TB Hourly load shapes by class'!O38+'KN Hourly load shapes by class'!V38 -> 37272.11676 | H38: ='TB Hourly load shapes by class'!S38 -> 16389.46497 | I38: ='TB Hourly load shapes by class'!P38+'KN Hourly load shapes by class'!W38 -> 0 | J38: ='TB Hourly load shapes by class'!T38 -> 0 | K38: ='TB Hourly load shapes by class'!R38+'KN Hourly load shapes by class'!Y38 -> 224.3168031 | L38: 138538.205
A39: ='TB Hourly load shapes by class'!A39 -> 2004 | B39: ='TB Hourly load shapes by class'!B39 -> 1 | C39: ='TB Hourly load shapes by class'!C39 -> 2 | D39: ='TB Hourly load shapes by class'!D39 -> 13 | E39: ='TB Hourly load shapes by class'!N39+'KN Hourly load shapes by class'!U39 -> 57571.989 | F39: ='TB Hourly load shapes by class'!Q39+'KN Hourly load shapes by class'!X39 -> 25649.39138 | G39: ='TB Hourly load shapes by class'!O39+'KN Hourly load shapes by class'!V39 -> 37381.51051 | H39: ='TB Hourly load shapes by class'!S39 -> 16473.60216 | I39: ='TB Hourly load shapes by class'!P39+'KN Hourly load shapes by class'!W39 -> 0 | J39: ='TB Hourly load shapes by class'!T39 -> 0 | K39: ='TB Hourly load shapes by class'!R39+'KN Hourly load shapes by class'!Y39 -> 224.3168031 | L39: 137300.8099
A40: ='TB Hourly load shapes by class'!A40 -> 2004 | B40: ='TB Hourly load shapes by class'!B40 -> 1 | C40: ='TB Hourly load shapes by class'!C40 -> 2 | D40: ='TB Hourly load shapes by class'!D40 -> 14 | E40: ='TB Hourly load shapes by class'!N40+'KN Hourly load shapes by class'!U40 -> 59090.74092 | F40: ='TB Hourly load shapes by class'!Q40+'KN Hourly load shapes by class'!X40 -> 24681.19484 | G40: ='TB Hourly load shapes by class'!O40+'KN Hourly load shapes by class'!V40 -> 35588.83733 | H40: ='TB Hourly load shapes by class'!S40 -> 15753.59475 | I40: ='TB Hourly load shapes by class'!P40+'KN Hourly load shapes by class'!W40 -> 0 | J40: ='TB Hourly load shapes by class'!T40 -> 0 | K40: ='TB Hourly load shapes by class'!R40+'KN Hourly load shapes by class'!Y40 -> 224.3168031 | L40: 135338.6846
A41: ='TB Hourly load shapes by class'!A41 -> 2004 | B41: ='TB Hourly load shapes by class'!B41 -> 1 | C41: ='TB Hourly load shapes by class'!C41 -> 2 | D41: ='TB Hourly load shapes by class'!D41 -> 15 | E41: ='TB Hourly load shapes by class'!N41+'KN Hourly load shapes by class'!U41 -> 57476.10939 | F41: ='TB Hourly load shapes by class'!Q41+'KN Hourly load shapes by class'!X41 -> 25934.20395 | G41: ='TB Hourly load shapes by class'!O41+'KN Hourly load shapes by class'!V41 -> 35382.76734 | H41: ='TB Hourly load shapes by class'!S41 -> 15348.76978 | I41: ='TB Hourly load shapes by class'!P41+'KN Hourly load shapes by class'!W41 -> 0 | J41: ='TB Hourly load shapes by class'!T41 -> 0 | K41: ='TB Hourly load shapes by class'!R41+'KN Hourly load shapes by class'!Y41 -> 224.3168031 | L41: 134366.1673
A42: ='TB Hourly load shapes by class'!A42 -> 2004 | B42: ='TB Hourly load shapes by class'!B42 -> 1 | C42: ='TB Hourly load shapes by class'!C42 -> 2 | D42: ='TB Hourly load shapes by class'!D42 -> 16 | E42: ='TB Hourly load shapes by class'!N42+'KN Hourly load shapes by class'!U42 -> 61176.82154 | F42: ='TB Hourly load shapes by class'!Q42+'KN Hourly load shapes by class'!X42 -> 23777.0505 | G42: ='TB Hourly load shapes by class'!O42+'KN Hourly load shapes by class'!V42 -> 33546.82815 | H42: ='TB Hourly load shapes by class'!S42 -> 14592.7049 | I42: ='TB Hourly load shapes by class'!P42+'KN Hourly load shapes by class'!W42 -> 0 | J42: ='TB Hourly load shapes by class'!T42 -> 0 | K42: ='TB Hourly load shapes by class'!R42+'KN Hourly load shapes by class'!Y42 -> 224.3168031 | L42: 133317.7219
A43: ='TB Hourly load shapes by class'!A43 -> 2004 | B43: ='TB Hourly load shapes by class'!B43 -> 1 | C43: ='TB Hourly load shapes by class'!C43 -> 2 | D43: ='TB Hourly load shapes by class'!D43 -> 17 | E43: ='TB Hourly load shapes by class'!N43+'KN Hourly load shapes by class'!U43 -> 61612.047 | F43: ='TB Hourly load shapes by class'!Q43+'KN Hourly load shapes by class'!X43 -> 28115.3417 | G43: ='TB Hourly load shapes by class'!O43+'KN Hourly load shapes by class'!V43 -> 34105.1429 | H43: ='TB Hourly load shapes by class'!S43 -> 13448.5663 | I43: ='TB Hourly load shapes by class'!P43+'KN Hourly load shapes by class'!W43 -> 322.3540701 | J43: ='TB Hourly load shapes by class'!T43 -> 5.937972356 | K43: ='TB Hourly load shapes by class'!R43+'KN Hourly load shapes by class'!Y43 -> 233.3636439 | L43: 137842.7536
A44: ='TB Hourly load shapes by class'!A44 -> 2004 | B44: ='TB Hourly load shapes by class'!B44 -> 1 | C44: ='TB Hourly load shapes by class'!C44 -> 2 | D44: ='TB Hourly load shapes by class'!D44 -> 18 | E44: ='TB Hourly load shapes by class'!N44+'KN Hourly load shapes by class'!U44 -> 69824.02533 | F44: ='TB Hourly load shapes by class'!Q44+'KN Hourly load shapes by class'!X44 -> 26363.60392 | G44: ='TB Hourly load shapes by class'!O44+'KN Hourly load shapes by class'!V44 -> 35901.1806 | H44: ='TB Hourly load shapes by class'!S44 -> 14577.37804 | I44: ='TB Hourly load shapes by class'!P44+'KN Hourly load shapes by class'!W44 -> 1289.41628 | J44: ='TB Hourly load shapes by class'!T44 -> 23.75188942 | K44: ='TB Hourly load shapes by class'!R44+'KN Hourly load shapes by class'!Y44 -> 260.5041662 | L44: 148239.8602
A45: ='TB Hourly load shapes by class'!A45 -> 2004 | B45: ='TB Hourly load shapes by class'!B45 -> 1 | C45: ='TB Hourly load shapes by class'!C45 -> 2 | D45: ='TB Hourly load shapes by class'!D45 -> 19 | E45: ='TB Hourly load shapes by class'!N45+'KN Hourly load shapes by class'!U45 -> 70389.11885 | F45: ='TB Hourly load shapes by class'!Q45+'KN Hourly load shapes by class'!X45 -> 20430.95266 | G45: ='TB Hourly load shapes by class'!O45+'KN Hourly load shapes by class'!V45 -> 40983.78034 | H45: ='TB Hourly load shapes by class'!S45 -> 15387.95002 | I45: ='TB Hourly load shapes by class'!P45+'KN Hourly load shapes by class'!W45 -> 1393.51786 | J45: ='TB Hourly load shapes by class'!T45 -> 23.75188942 | K45: ='TB Hourly load shapes by class'!R45+'KN Hourly load shapes by class'!Y45 -> 260.5041662 | L45: 148869.5758
A46: ='TB Hourly load shapes by class'!A46 -> 2004 | B46: ='TB Hourly load shapes by class'!B46 -> 1 | C46: ='TB Hourly load shapes by class'!C46 -> 2 | D46: ='TB Hourly load shapes by class'!D46 -> 20 | E46: ='TB Hourly load shapes by class'!N46+'KN Hourly load shapes by class'!U46 -> 68616.82245 | F46: ='TB Hourly load shapes by class'!Q46+'KN Hourly load shapes by class'!X46 -> 16325.59355 | G46: ='TB Hourly load shapes by class'!O46+'KN Hourly load shapes by class'!V46 -> 42187.46307 | H46: ='TB Hourly load shapes by class'!S46 -> 16107.80886 | I46: ='TB Hourly load shapes by class'!P46+'KN Hourly load shapes by class'!W46 -> 1393.51786 | J46: ='TB Hourly load shapes by class'!T46 -> 23.75188942 | K46: ='TB Hourly load shapes by class'!R46+'KN Hourly load shapes by class'!Y46 -> 260.5041662 | L46: 144915.4618
A47: ='TB Hourly load shapes by class'!A47 -> 2004 | B47: ='TB Hourly load shapes by class'!B47 -> 1 | C47: ='TB Hourly load shapes by class'!C47 -> 2 | D47: ='TB Hourly load shapes by class'!D47 -> 21 | E47: ='TB Hourly load shapes by class'!N47+'KN Hourly load shapes by class'!U47 -> 66174.5735 | F47: ='TB Hourly load shapes by class'!Q47+'KN Hourly load shapes by class'!X47 -> 17174.0064 | G47: ='TB Hourly load shapes by class'!O47+'KN Hourly load shapes by class'!V47 -> 41206.12272 | H47: ='TB Hourly load shapes by class'!S47 -> 16383.60136 | I47: ='TB Hourly load shapes by class'!P47+'KN Hourly load shapes by class'!W47 -> 1393.51786 | J47: ='TB Hourly load shapes by class'!T47 -> 23.75188942 | K47: ='TB Hourly load shapes by class'!R47+'KN Hourly load shapes by class'!Y47 -> 260.5041662 | L47: 142616.0779
A48: ='TB Hourly load shapes by class'!A48 -> 2004 | B48: ='TB Hourly load shapes by class'!B48 -> 1 | C48: ='TB Hourly load shapes by class'!C48 -> 2 | D48: ='TB Hourly load shapes by class'!D48 -> 22 | E48: ='TB Hourly load shapes by class'!N48+'KN Hourly load shapes by class'!U48 -> 62430.13927 | F48: ='TB Hourly load shapes by class'!Q48+'KN Hourly load shapes by class'!X48 -> 16998.24624 | G48: ='TB Hourly load shapes by class'!O48+'KN Hourly load shapes by class'!V48 -> 41783.46398 | H48: ='TB Hourly load shapes by class'!S48 -> 16229.70874 | I48: ='TB Hourly load shapes by class'!P48+'KN Hourly load shapes by class'!W48 -> 1393.51786 | J48: ='TB Hourly load shapes by class'!T48 -> 23.75188942 | K48: ='TB Hourly load shapes by class'!R48+'KN Hourly load shapes by class'!Y48 -> 260.5041662 | L48: 139119.3322
A49: ='TB Hourly load shapes by class'!A49 -> 2004 | B49: ='TB Hourly load shapes by class'!B49 -> 1 | C49: ='TB Hourly load shapes by class'!C49 -> 2 | D49: ='TB Hourly load shapes by class'!D49 -> 23 | E49: ='TB Hourly load shapes by class'!N49+'KN Hourly load shapes by class'!U49 -> 59498.22536 | F49: ='TB Hourly load shapes by class'!Q49+'KN Hourly load shapes by class'!X49 -> 13031.00496 | G49: ='TB Hourly load shapes by class'!O49+'KN Hourly load shapes by class'!V49 -> 37174.22522 | H49: ='TB Hourly load shapes by class'!S49 -> 16655.19244 | I49: ='TB Hourly load shapes by class'!P49+'KN Hourly load shapes by class'!W49 -> 1393.51786 | J49: ='TB Hourly load shapes by class'!T49 -> 23.75188942 | K49: ='TB Hourly load shapes by class'!R49+'KN Hourly load shapes by class'!Y49 -> 260.5041662 | L49: 128036.4219
A50: ='TB Hourly load shapes by class'!A50 -> 2004 | B50: ='TB Hourly load shapes by class'!B50 -> 1 | C50: ='TB Hourly load shapes by class'!C50 -> 2 | D50: ='TB Hourly load shapes by class'!D50 -> 24 | E50: ='TB Hourly load shapes by class'!N50+'KN Hourly load shapes by class'!U50 -> 52419.86864 | F50: ='TB Hourly load shapes by class'!Q50+'KN Hourly load shapes by class'!X50 -> 11997.20356 | G50: ='TB Hourly load shapes by class'!O50+'KN Hourly load shapes by class'!V50 -> 38175.35047 | H50: ='TB Hourly load shapes by class'!S50 -> 16015.43762 | I50: ='TB Hourly load shapes by class'!P50+'KN Hourly load shapes by class'!W50 -> 1393.51786 | J50: ='TB Hourly load shapes by class'!T50 -> 23.75188942 | K50: ='TB Hourly load shapes by class'!R50+'KN Hourly load shapes by class'!Y50 -> 260.5041662 | L50: 120285.6342
A51: ='TB Hourly load shapes by class'!A51 -> 2004 | B51: ='TB Hourly load shapes by class'!B51 -> 1 | C51: ='TB Hourly load shapes by class'!C51 -> 3 | D51: ='TB Hourly load shapes by class'!D51 -> 1 | E51: ='TB Hourly load shapes by class'!N51+'KN Hourly load shapes by class'!U51 -> 42214.30468 | F51: ='TB Hourly load shapes by class'!Q51+'KN Hourly load shapes by class'!X51 -> 12085.86728 | G51: ='TB Hourly load shapes by class'!O51+'KN Hourly load shapes by class'!V51 -> 42173.07391 | H51: ='TB Hourly load shapes by class'!S51 -> 15993.97712 | I51: ='TB Hourly load shapes by class'!P51+'KN Hourly load shapes by class'!W51 -> 1393.51786 | J51: ='TB Hourly load shapes by class'!T51 -> 23.75188942 | K51: ='TB Hourly load shapes by class'!R51+'KN Hourly load shapes by class'!Y51 -> 260.5041662 | L51: 114144.9969
A52: ='TB Hourly load shapes by class'!A52 -> 2004 | B52: ='TB Hourly load shapes by class'!B52 -> 1 | C52: ='TB Hourly load shapes by class'!C52 -> 3 | D52: ='TB Hourly load shapes by class'!D52 -> 2 | E52: ='TB Hourly load shapes by class'!N52+'KN Hourly load shapes by class'!U52 -> 36252.7242 | F52: ='TB Hourly load shapes by class'!Q52+'KN Hourly load shapes by class'!X52 -> 13756.97658 | G52: ='TB Hourly load shapes by class'!O52+'KN Hourly load shapes by class'!V52 -> 40619.43611 | H52: ='TB Hourly load shapes by class'!S52 -> 15189.87457 | I52: ='TB Hourly load shapes by class'!P52+'KN Hourly load shapes by class'!W52 -> 1393.51786 | J52: ='TB Hourly load shapes by class'!T52 -> 23.75188942 | K52: ='TB Hourly load shapes by class'!R52+'KN Hourly load shapes by class'!Y52 -> 260.5041662 | L52: 107496.7854
A53: ='TB Hourly load shapes by class'!A53 -> 2004 | B53: ='TB Hourly load shapes by class'!B53 -> 1 | C53: ='TB Hourly load shapes by class'!C53 -> 3 | D53: ='TB Hourly load shapes by class'!D53 -> 3 | E53: ='TB Hourly load shapes by class'!N53+'KN Hourly load shapes by class'!U53 -> 33923.39238 | F53: ='TB Hourly load shapes by class'!Q53+'KN Hourly load shapes by class'!X53 -> 13310.77301 | G53: ='TB Hourly load shapes by class'!O53+'KN Hourly load shapes by class'!V53 -> 40473.64089 | H53: ='TB Hourly load shapes by class'!S53 -> 13289.58882 | I53: ='TB Hourly load shapes by class'!P53+'KN Hourly load shapes by class'!W53 -> 1393.51786 | J53: ='TB Hourly load shapes by class'!T53 -> 23.75188942 | K53: ='TB Hourly load shapes by class'!R53+'KN Hourly load shapes by class'!Y53 -> 260.5041662 | L53: 102675.169
A54: ='TB Hourly load shapes by class'!A54 -> 2004 | B54: ='TB Hourly load shapes by class'!B54 -> 1 | C54: ='TB Hourly load shapes by class'!C54 -> 3 | D54: ='TB Hourly load shapes by class'!D54 -> 4 | E54: ='TB Hourly load shapes by class'!N54+'KN Hourly load shapes by class'!U54 -> 33425.76436 | F54: ='TB Hourly load shapes by class'!Q54+'KN Hourly load shapes by class'!X54 -> 13847.21675 | G54: ='TB Hourly load shapes by class'!O54+'KN Hourly load shapes by class'!V54 -> 39227.62431 | H54: ='TB Hourly load shapes by class'!S54 -> 13099.53498 | I54: ='TB Hourly load shapes by class'!P54+'KN Hourly load shapes by class'!W54 -> 1393.51786 | J54: ='TB Hourly load shapes by class'!T54 -> 23.75188942 | K54: ='TB Hourly load shapes by class'!R54+'KN Hourly load shapes by class'!Y54 -> 260.5041662 | L54: 101277.9143
A55: ='TB Hourly load shapes by class'!A55 -> 2004 | B55: ='TB Hourly load shapes by class'!B55 -> 1 | C55: ='TB Hourly load shapes by class'!C55 -> 3 | D55: ='TB Hourly load shapes by class'!D55 -> 5 | E55: ='TB Hourly load shapes by class'!N55+'KN Hourly load shapes by class'!U55 -> 33633.98752 | F55: ='TB Hourly load shapes by class'!Q55+'KN Hourly load shapes by class'!X55 -> 12482.47106 | G55: ='TB Hourly load shapes by class'!O55+'KN Hourly load shapes by class'!V55 -> 39017.30121 | H55: ='TB Hourly load shapes by class'!S55 -> 12700.85031 | I55: ='TB Hourly load shapes by class'!P55+'KN Hourly load shapes by class'!W55 -> 1393.51786 | J55: ='TB Hourly load shapes by class'!T55 -> 23.75188942 | K55: ='TB Hourly load shapes by class'!R55+'KN Hourly load shapes by class'!Y55 -> 260.5041662 | L55: 99512.38401
A56: ='TB Hourly load shapes by class'!A56 -> 2004 | B56: ='TB Hourly load shapes by class'!B56 -> 1 | C56: ='TB Hourly load shapes by class'!C56 -> 3 | D56: ='TB Hourly load shapes by class'!D56 -> 6 | E56: ='TB Hourly load shapes by class'!N56+'KN Hourly load shapes by class'!U56 -> 34385.35704 | F56: ='TB Hourly load shapes by class'!Q56+'KN Hourly load shapes by class'!X56 -> 12136.7258 | G56: ='TB Hourly load shapes by class'!O56+'KN Hourly load shapes by class'!V56 -> 39434.96779 | H56: ='TB Hourly load shapes by class'!S56 -> 12493.71466 | I56: ='TB Hourly load shapes by class'!P56+'KN Hourly load shapes by class'!W56 -> 1393.51786 | J56: ='TB Hourly load shapes by class'!T56 -> 23.75188942 | K56: ='TB Hourly load shapes by class'!R56+'KN Hourly load shapes by class'!Y56 -> 260.5041662 | L56: 100128.5392
A57: ='TB Hourly load shapes by class'!A57 -> 2004 | B57: ='TB Hourly load shapes by class'!B57 -> 1 | C57: ='TB Hourly load shapes by class'!C57 -> 3 | D57: ='TB Hourly load shapes by class'!D57 -> 7 | E57: ='TB Hourly load shapes by class'!N57+'KN Hourly load shapes by class'!U57 -> 37272.29047 | F57: ='TB Hourly load shapes by class'!Q57+'KN Hourly load shapes by class'!X57 -> 13050.30492 | G57: ='TB Hourly load shapes by class'!O57+'KN Hourly load shapes by class'!V57 -> 40406.1438 | H57: ='TB Hourly load shapes by class'!S57 -> 12518.04226 | I57: ='TB Hourly load shapes by class'!P57+'KN Hourly load shapes by class'!W57 -> 1393.51786 | J57: ='TB Hourly load shapes by class'!T57 -> 23.75188942 | K57: ='TB Hourly load shapes by class'!R57+'KN Hourly load shapes by class'!Y57 -> 260.5041662 | L57: 104924.5554
A58: ='TB Hourly load shapes by class'!A58 -> 2004 | B58: ='TB Hourly load shapes by class'!B58 -> 1 | C58: ='TB Hourly load shapes by class'!C58 -> 3 | D58: ='TB Hourly load shapes by class'!D58 -> 8 | E58: ='TB Hourly load shapes by class'!N58+'KN Hourly load shapes by class'!U58 -> 40107.09918 | F58: ='TB Hourly load shapes by class'!Q58+'KN Hourly load shapes by class'!X58 -> 15013.07999 | G58: ='TB Hourly load shapes by class'!O58+'KN Hourly load shapes by class'!V58 -> 42510.98165 | H58: ='TB Hourly load shapes by class'!S58 -> 13256.84157 | I58: ='TB Hourly load shapes by class'!P58+'KN Hourly load shapes by class'!W58 -> 1071.164045 | J58: ='TB Hourly load shapes by class'!T58 -> 17.81392177 | K58: ='TB Hourly load shapes by class'!R58+'KN Hourly load shapes by class'!Y58 -> 251.4573326 | L58: 112228.4377
A59: ='TB Hourly load shapes by class'!A59 -> 2004 | B59: ='TB Hourly load shapes by class'!B59 -> 1 | C59: ='TB Hourly load shapes by class'!C59 -> 3 | D59: ='TB Hourly load shapes by class'!D59 -> 9 | E59: ='TB Hourly load shapes by class'!N59+'KN Hourly load shapes by class'!U59 -> 48480.50616 | F59: ='TB Hourly load shapes by class'!Q59+'KN Hourly load shapes by class'!X59 -> 22855.35575 | G59: ='TB Hourly load shapes by class'!O59+'KN Hourly load shapes by class'!V59 -> 39800.53384 | H59: ='TB Hourly load shapes by class'!S59 -> 13771.78114 | I59: ='TB Hourly load shapes by class'!P59+'KN Hourly load shapes by class'!W59 -> 104.1015795 | J59: ='TB Hourly load shapes by class'!T59 -> 0 | K59: ='TB Hourly load shapes by class'!R59+'KN Hourly load shapes by class'!Y59 -> 224.3168031 | L59: 125236.5953
A60: ='TB Hourly load shapes by class'!A60 -> 2004 | B60: ='TB Hourly load shapes by class'!B60 -> 1 | C60: ='TB Hourly load shapes by class'!C60 -> 3 | D60: ='TB Hourly load shapes by class'!D60 -> 10 | E60: ='TB Hourly load shapes by class'!N60+'KN Hourly load shapes by class'!U60 -> 56263.15387 | F60: ='TB Hourly load shapes by class'!Q60+'KN Hourly load shapes by class'!X60 -> 25576.74357 | G60: ='TB Hourly load shapes by class'!O60+'KN Hourly load shapes by class'!V60 -> 34290.78294 | H60: ='TB Hourly load shapes by class'!S60 -> 13581.18137 | I60: ='TB Hourly load shapes by class'!P60+'KN Hourly load shapes by class'!W60 -> 0 | J60: ='TB Hourly load shapes by class'!T60 -> 0 | K60: ='TB Hourly load shapes by class'!R60+'KN Hourly load shapes by class'!Y60 -> 224.3168031 | L60: 129936.1785
A61: ='TB Hourly load shapes by class'!A61 -> 2004 | B61: ='TB Hourly load shapes by class'!B61 -> 1 | C61: ='TB Hourly load shapes by class'!C61 -> 3 | D61: ='TB Hourly load shapes by class'!D61 -> 11 | E61: ='TB Hourly load shapes by class'!N61+'KN Hourly load shapes by class'!U61 -> 60753.84021 | F61: ='TB Hourly load shapes by class'!Q61+'KN Hourly load shapes by class'!X61 -> 26546.69807 | G61: ='TB Hourly load shapes by class'!O61+'KN Hourly load shapes by class'!V61 -> 34300.56006 | H61: ='TB Hourly load shapes by class'!S61 -> 13704.29911 | I61: ='TB Hourly load shapes by class'!P61+'KN Hourly load shapes by class'!W61 -> 0 | J61: ='TB Hourly load shapes by class'!T61 -> 0 | K61: ='TB Hourly load shapes by class'!R61+'KN Hourly load shapes by class'!Y61 -> 224.3168031 | L61: 135529.7142
A62: ='TB Hourly load shapes by class'!A62 -> 2004 | B62: ='TB Hourly load shapes by class'!B62 -> 1 | C62: ='TB Hourly load shapes by class'!C62 -> 3 | D62: ='TB Hourly load shapes by class'!D62 -> 12 | E62: ='TB Hourly load shapes by class'!N62+'KN Hourly load shapes by class'!U62 -> 60543.76369 | F62: ='TB Hourly load shapes by class'!Q62+'KN Hourly load shapes by class'!X62 -> 30249.69969 | G62: ='TB Hourly load shapes by class'!O62+'KN Hourly load shapes by class'!V62 -> 34947.21692 | H62: ='TB Hourly load shapes by class'!S62 -> 14183.37578 | I62: ='TB Hourly load shapes by class'!P62+'KN Hourly load shapes by class'!W62 -> 0 | J62: ='TB Hourly load shapes by class'!T62 -> 0 | K62: ='TB Hourly load shapes by class'!R62+'KN Hourly load shapes by class'!Y62 -> 224.3168031 | L62: 140148.3729
A63: ='TB Hourly load shapes by class'!A63 -> 2004 | B63: ='TB Hourly load shapes by class'!B63 -> 1 | C63: ='TB Hourly load shapes by class'!C63 -> 3 | D63: ='TB Hourly load shapes by class'!D63 -> 13 | E63: ='TB Hourly load shapes by class'!N63+'KN Hourly load shapes by class'!U63 -> 57704.85864 | F63: ='TB Hourly load shapes by class'!Q63+'KN Hourly load shapes by class'!X63 -> 29180.38358 | G63: ='TB Hourly load shapes by class'!O63+'KN Hourly load shapes by class'!V63 -> 35692.85483 | H63: ='TB Hourly load shapes by class'!S63 -> 14291.52028 | I63: ='TB Hourly load shapes by class'!P63+'KN Hourly load shapes by class'!W63 -> 0 | J63: ='TB Hourly load shapes by class'!T63 -> 0 | K63: ='TB Hourly load shapes by class'!R63+'KN Hourly load shapes by class'!Y63 -> 224.3168031 | L63: 137093.9341
A64: ='TB Hourly load shapes by class'!A64 -> 2004 | B64: ='TB Hourly load shapes by class'!B64 -> 1 | C64: ='TB Hourly load shapes by class'!C64 -> 3 | D64: ='TB Hourly load shapes by class'!D64 -> 14 | E64: ='TB Hourly load shapes by class'!N64+'KN Hourly load shapes by class'!U64 -> 58575.71039 | F64: ='TB Hourly load shapes by class'!Q64+'KN Hourly load shapes by class'!X64 -> 28073.63876 | G64: ='TB Hourly load shapes by class'!O64+'KN Hourly load shapes by class'!V64 -> 35395.12132 | H64: ='TB Hourly load shapes by class'!S64 -> 14054.49556 | I64: ='TB Hourly load shapes by class'!P64+'KN Hourly load shapes by class'!W64 -> 0 | J64: ='TB Hourly load shapes by class'!T64 -> 0 | K64: ='TB Hourly load shapes by class'!R64+'KN Hourly load shapes by class'!Y64 -> 224.3168031 | L64: 136323.2828
A65: ='TB Hourly load shapes by class'!A65 -> 2004 | B65: ='TB Hourly load shapes by class'!B65 -> 1 | C65: ='TB Hourly load shapes by class'!C65 -> 3 | D65: ='TB Hourly load shapes by class'!D65 -> 15 | E65: ='TB Hourly load shapes by class'!N65+'KN Hourly load shapes by class'!U65 -> 58867.23954 | F65: ='TB Hourly load shapes by class'!Q65+'KN Hourly load shapes by class'!X65 -> 27841.7779 | G65: ='TB Hourly load shapes by class'!O65+'KN Hourly load shapes by class'!V65 -> 33783.26918 | H65: ='TB Hourly load shapes by class'!S65 -> 13770.81563 | I65: ='TB Hourly load shapes by class'!P65+'KN Hourly load shapes by class'!W65 -> 0 | J65: ='TB Hourly load shapes by class'!T65 -> 0 | K65: ='TB Hourly load shapes by class'!R65+'KN Hourly load shapes by class'!Y65 -> 224.3168031 | L65: 134487.4191
A66: ='TB Hourly load shapes by class'!A66 -> 2004 | B66: ='TB Hourly load shapes by class'!B66 -> 1 | C66: ='TB Hourly load shapes by class'!C66 -> 3 | D66: ='TB Hourly load shapes by class'!D66 -> 16 | E66: ='TB Hourly load shapes by class'!N66+'KN Hourly load shapes by class'!U66 -> 57034.88316 | F66: ='TB Hourly load shapes by class'!Q66+'KN Hourly load shapes by class'!X66 -> 29491.19713 | G66: ='TB Hourly load shapes by class'!O66+'KN Hourly load shapes by class'!V66 -> 33970.06147 | H66: ='TB Hourly load shapes by class'!S66 -> 13197.47261 | I66: ='TB Hourly load shapes by class'!P66+'KN Hourly load shapes by class'!W66 -> 0 | J66: ='TB Hourly load shapes by class'!T66 -> 0 | K66: ='TB Hourly load shapes by class'!R66+'KN Hourly load shapes by class'!Y66 -> 224.3168031 | L66: 133917.9312
A67: ='TB Hourly load shapes by class'!A67 -> 2004 | B67: ='TB Hourly load shapes by class'!B67 -> 1 | C67: ='TB Hourly load shapes by class'!C67 -> 3 | D67: ='TB Hourly load shapes by class'!D67 -> 17 | E67: ='TB Hourly load shapes by class'!N67+'KN Hourly load shapes by class'!U67 -> 63249.79511 | F67: ='TB Hourly load shapes by class'!Q67+'KN Hourly load shapes by class'!X67 -> 28608.78665 | G67: ='TB Hourly load shapes by class'!O67+'KN Hourly load shapes by class'!V67 -> 32975.38989 | H67: ='TB Hourly load shapes by class'!S67 -> 13037.45859 | I67: ='TB Hourly load shapes by class'!P67+'KN Hourly load shapes by class'!W67 -> 322.3540701 | J67: ='TB Hourly load shapes by class'!T67 -> 5.937972356 | K67: ='TB Hourly load shapes by class'!R67+'KN Hourly load shapes by class'!Y67 -> 233.3636439 | L67: 138433.0859
A68: ='TB Hourly load shapes by class'!A68 -> 2004 | B68: ='TB Hourly load shapes by class'!B68 -> 1 | C68: ='TB Hourly load shapes by class'!C68 -> 3 | D68: ='TB Hourly load shapes by class'!D68 -> 18 | E68: ='TB Hourly load shapes by class'!N68+'KN Hourly load shapes by class'!U68 -> 70085.4152 | F68: ='TB Hourly load shapes by class'!Q68+'KN Hourly load shapes by class'!X68 -> 24594.99052 | G68: ='TB Hourly load shapes by class'!O68+'KN Hourly load shapes by class'!V68 -> 36575.88533 | H68: ='TB Hourly load shapes by class'!S68 -> 13182.20491 | I68: ='TB Hourly load shapes by class'!P68+'KN Hourly load shapes by class'!W68 -> 1289.41628 | J68: ='TB Hourly load shapes by class'!T68 -> 23.75188942 | K68: ='TB Hourly load shapes by class'!R68+'KN Hourly load shapes by class'!Y68 -> 260.5041662 | L68: =SUM(E68:K68) -> 146012.1683
A69: ='TB Hourly load shapes by class'!A69 -> 2004 | B69: ='TB Hourly load shapes by class'!B69 -> 1 | C69: ='TB Hourly load shapes by class'!C69 -> 3 | D69: ='TB Hourly load shapes by class'!D69 -> 19 | E69: ='TB Hourly load shapes by class'!N69+'KN Hourly load shapes by class'!U69 -> 68760.7207 | F69: ='TB Hourly load shapes by class'!Q69+'KN Hourly load shapes by class'!X69 -> 22931.67866 | G69: ='TB Hourly load shapes by class'!O69+'KN Hourly load shapes by class'!V69 -> 43252.74114 | H69: ='TB Hourly load shapes by class'!S69 -> 13286.66612 | I69: ='TB Hourly load shapes by class'!P69+'KN Hourly load shapes by class'!W69 -> 1393.51786 | J69: ='TB Hourly load shapes by class'!T69 -> 23.75188942 | K69: ='TB Hourly load shapes by class'!R69+'KN Hourly load shapes by class'!Y69 -> 260.5041662 | L69: 149909.5805
A70: ='TB Hourly load shapes by class'!A70 -> 2004 | B70: ='TB Hourly load shapes by class'!B70 -> 1 | C70: ='TB Hourly load shapes by class'!C70 -> 3 | D70: ='TB Hourly load shapes by class'!D70 -> 20 | E70: ='TB Hourly load shapes by class'!N70+'KN Hourly load shapes by class'!U70 -> 66631.34129 | F70: ='TB Hourly load shapes by class'!Q70+'KN Hourly load shapes by class'!X70 -> 21457.86276 | G70: ='TB Hourly load shapes by class'!O70+'KN Hourly load shapes by class'!V70 -> 44488.12108 | H70: ='TB Hourly load shapes by class'!S70 -> 13160.88273 | I70: ='TB Hourly load shapes by class'!P70+'KN Hourly load shapes by class'!W70 -> 1393.51786 | J70: ='TB Hourly load shapes by class'!T70 -> 23.75188942 | K70: ='TB Hourly load shapes by class'!R70+'KN Hourly load shapes by class'!Y70 -> 260.5041662 | L70: 147415.9818
A71: ='TB Hourly load shapes by class'!A71 -> 2004 | B71: ='TB Hourly load shapes by class'!B71 -> 1 | C71: ='TB Hourly load shapes by class'!C71 -> 3 | D71: ='TB Hourly load shapes by class'!D71 -> 21 | E71: ='TB Hourly load shapes by class'!N71+'KN Hourly load shapes by class'!U71 -> 64019.24142 | F71: ='TB Hourly load shapes by class'!Q71+'KN Hourly load shapes by class'!X71 -> 20384.42426 | G71: ='TB Hourly load shapes by class'!O71+'KN Hourly load shapes by class'!V71 -> 43267.30564 | H71: ='TB Hourly load shapes by class'!S71 -> 13141.19095 | I71: ='TB Hourly load shapes by class'!P71+'KN Hourly load shapes by class'!W71 -> 1393.51786 | J71: ='TB Hourly load shapes by class'!T71 -> 23.75188942 | K71: ='TB Hourly load shapes by class'!R71+'KN Hourly load shapes by class'!Y71 -> 260.5041662 | L71: 142489.9362
A72: ='TB Hourly load shapes by class'!A72 -> 2004 | B72: ='TB Hourly load shapes by class'!B72 -> 1 | C72: ='TB Hourly load shapes by class'!C72 -> 3 | D72: ='TB Hourly load shapes by class'!D72 -> 22 | E72: ='TB Hourly load shapes by class'!N72+'KN Hourly load shapes by class'!U72 -> 61370.37659 | F72: ='TB Hourly load shapes by class'!Q72+'KN Hourly load shapes by class'!X72 -> 20812.9598 | G72: ='TB Hourly load shapes by class'!O72+'KN Hourly load shapes by class'!V72 -> 42933.7929 | H72: ='TB Hourly load shapes by class'!S72 -> 13016.41384 | I72: ='TB Hourly load shapes by class'!P72+'KN Hourly load shapes by class'!W72 -> 1393.51786 | J72: ='TB Hourly load shapes by class'!T72 -> 23.75188942 | K72: ='TB Hourly load shapes by class'!R72+'KN Hourly load shapes by class'!Y72 -> 260.5041662 | L72: 139811.3171
A73: ='TB Hourly load shapes by class'!A73 -> 2004 | B73: ='TB Hourly load shapes by class'!B73 -> 1 | C73: ='TB Hourly load shapes by class'!C73 -> 3 | D73: ='TB Hourly load shapes by class'!D73 -> 23 | E73: ='TB Hourly load shapes by class'!N73+'KN Hourly load shapes by class'!U73 -> 60796.3887 | F73: ='TB Hourly load shapes by class'!Q73+'KN Hourly load shapes by class'!X73 -> 16617.65872 | G73: ='TB Hourly load shapes by class'!O73+'KN Hourly load shapes by class'!V73 -> 39631.85709 | H73: ='TB Hourly load shapes by class'!S73 -> 12757.64977 | I73: ='TB Hourly load shapes by class'!P73+'KN Hourly load shapes by class'!W73 -> 1393.51786 | J73: ='TB Hourly load shapes by class'!T73 -> 23.75188942 | K73: ='TB Hourly load shapes by class'!R73+'KN Hourly load shapes by class'!Y73 -> 260.5041662 | L73: 131481.3282
A74: ='TB Hourly load shapes by class'!A74 -> 2004 | B74: ='TB Hourly load shapes by class'!B74 -> 1 | C74: ='TB Hourly load shapes by class'!C74 -> 3 | D74: ='TB Hourly load shapes by class'!D74 -> 24 | E74: ='TB Hourly load shapes by class'!N74+'KN Hourly load shapes by class'!U74 -> 54145.71846 | F74: ='TB Hourly load shapes by class'!Q74+'KN Hourly load shapes by class'!X74 -> 13697.30222 | G74: ='TB Hourly load shapes by class'!O74+'KN Hourly load shapes by class'!V74 -> 38459.00869 | H74: ='TB Hourly load shapes by class'!S74 -> 12753.62577 | I74: ='TB Hourly load shapes by class'!P74+'KN Hourly load shapes by class'!W74 -> 1393.51786 | J74: ='TB Hourly load shapes by class'!T74 -> 23.75188942 | K74: ='TB Hourly load shapes by class'!R74+'KN Hourly load shapes by class'!Y74 -> 260.5041662 | L74: 120733.4291
A75: ='TB Hourly load shapes by class'!A75 -> 2004 | B75: ='TB Hourly load shapes by class'!B75 -> 1 | C75: ='TB Hourly load shapes by class'!C75 -> 4 | D75: ='TB Hourly load shapes by class'!D75 -> 1 | E75: ='TB Hourly load shapes by class'!N75+'KN Hourly load shapes by class'!U75 -> 37814.97175 | F75: ='TB Hourly load shapes by class'!Q75+'KN Hourly load shapes by class'!X75 -> 10709.05329 | G75: ='TB Hourly load shapes by class'!O75+'KN Hourly load shapes by class'!V75 -> 38536.19964 | H75: ='TB Hourly load shapes by class'!S75 -> 12606.72827 | I75: ='TB Hourly load shapes by class'!P75+'KN Hourly load shapes by class'!W75 -> 1393.51786 | J75: ='TB Hourly load shapes by class'!T75 -> 23.75188942 | K75: ='TB Hourly load shapes by class'!R75+'KN Hourly load shapes by class'!Y75 -> 260.5041662 | L75: 101344.7269
A76: ='TB Hourly load shapes by class'!A76 -> 2004 | B76: ='TB Hourly load shapes by class'!B76 -> 1 | C76: ='TB Hourly load shapes by class'!C76 -> 4 | D76: ='TB Hourly load shapes by class'!D76 -> 2 | E76: ='TB Hourly load shapes by class'!N76+'KN Hourly load shapes by class'!U76 -> 34376.59769 | F76: ='TB Hourly load shapes by class'!Q76+'KN Hourly load shapes by class'!X76 -> 8792.05677 | G76: ='TB Hourly load shapes by class'!O76+'KN Hourly load shapes by class'!V76 -> 37345.36043 | H76: ='TB Hourly load shapes by class'!S76 -> 12677.50206 | I76: ='TB Hourly load shapes by class'!P76+'KN Hourly load shapes by class'!W76 -> 1393.51786 | J76: ='TB Hourly load shapes by class'!T76 -> 23.75188942 | K76: ='TB Hourly load shapes by class'!R76+'KN Hourly load shapes by class'!Y76 -> 260.5041662 | L76: 94869.29086
A77: ='TB Hourly load shapes by class'!A77 -> 2004 | B77: ='TB Hourly load shapes by class'!B77 -> 1 | C77: ='TB Hourly load shapes by class'!C77 -> 4 | D77: ='TB Hourly load shapes by class'!D77 -> 3 | E77: ='TB Hourly load shapes by class'!N77+'KN Hourly load shapes by class'!U77 -> 28930.65335 | F77: ='TB Hourly load shapes by class'!Q77+'KN Hourly load shapes by class'!X77 -> 7430.503771 | G77: ='TB Hourly load shapes by class'!O77+'KN Hourly load shapes by class'!V77 -> 39592.09413 | H77: ='TB Hourly load shapes by class'!S77 -> 12746.75109 | I77: ='TB Hourly load shapes by class'!P77+'KN Hourly load shapes by class'!W77 -> 1393.51786 | J77: ='TB Hourly load shapes by class'!T77 -> 23.75188942 | K77: ='TB Hourly load shapes by class'!R77+'KN Hourly load shapes by class'!Y77 -> 260.5041662 | L77: 90377.77625
A78: ='TB Hourly load shapes by class'!A78 -> 2004 | B78: ='TB Hourly load shapes by class'!B78 -> 1 | C78: ='TB Hourly load shapes by class'!C78 -> 4 | D78: ='TB Hourly load shapes by class'!D78 -> 4 | E78: ='TB Hourly load shapes by class'!N78+'KN Hourly load shapes by class'!U78 -> 28643.0903 | F78: ='TB Hourly load shapes by class'!Q78+'KN Hourly load shapes by class'!X78 -> 7116.558277 | G78: ='TB Hourly load shapes by class'!O78+'KN Hourly load shapes by class'!V78 -> 38954.73378 | H78: ='TB Hourly load shapes by class'!S78 -> 12668.91573 | I78: ='TB Hourly load shapes by class'!P78+'KN Hourly load shapes by class'!W78 -> 1393.51786 | J78: ='TB Hourly load shapes by class'!T78 -> 23.75188942 | K78: ='TB Hourly load shapes by class'!R78+'KN Hourly load shapes by class'!Y78 -> 260.5041662 | L78: 89061.07201
A79: ='TB Hourly load shapes by class'!A79 -> 2004 | B79: ='TB Hourly load shapes by class'!B79 -> 1 | C79: ='TB Hourly load shapes by class'!C79 -> 4 | D79: ='TB Hourly load shapes by class'!D79 -> 5 | E79: ='TB Hourly load shapes by class'!N79+'KN Hourly load shapes by class'!U79 -> 28061.88353 | F79: ='TB Hourly load shapes by class'!Q79+'KN Hourly load shapes by class'!X79 -> 8560.202052 | G79: ='TB Hourly load shapes by class'!O79+'KN Hourly load shapes by class'!V79 -> 37669.49783 | H79: ='TB Hourly load shapes by class'!S79 -> 12200.34843 | I79: ='TB Hourly load shapes by class'!P79+'KN Hourly load shapes by class'!W79 -> 1393.51786 | J79: ='TB Hourly load shapes by class'!T79 -> 23.75188942 | K79: ='TB Hourly load shapes by class'!R79+'KN Hourly load shapes by class'!Y79 -> 260.5041662 | L79: 88169.70576
A80: ='TB Hourly load shapes by class'!A80 -> 2004 | B80: ='TB Hourly load shapes by class'!B80 -> 1 | C80: ='TB Hourly load shapes by class'!C80 -> 4 | D80: ='TB Hourly load shapes by class'!D80 -> 6 | E80: ='TB Hourly load shapes by class'!N80+'KN Hourly load shapes by class'!U80 -> 29626.46001 | F80: ='TB Hourly load shapes by class'!Q80+'KN Hourly load shapes by class'!X80 -> 7471.86389 | G80: ='TB Hourly load shapes by class'!O80+'KN Hourly load shapes by class'!V80 -> 37876.82227 | H80: ='TB Hourly load shapes by class'!S80 -> 12044.36664 | I80: ='TB Hourly load shapes by class'!P80+'KN Hourly load shapes by class'!W80 -> 1393.51786 | J80: ='TB Hourly load shapes by class'!T80 -> 23.75188942 | K80: ='TB Hourly load shapes by class'!R80+'KN Hourly load shapes by class'!Y80 -> 260.5041662 | L80: 88697.28672
A81: ='TB Hourly load shapes by class'!A81 -> 2004 | B81: ='TB Hourly load shapes by class'!B81 -> 1 | C81: ='TB Hourly load shapes by class'!C81 -> 4 | D81: ='TB Hourly load shapes by class'!D81 -> 7 | E81: ='TB Hourly load shapes by class'!N81+'KN Hourly load shapes by class'!U81 -> 31438.58508 | F81: ='TB Hourly load shapes by class'!Q81+'KN Hourly load shapes by class'!X81 -> 9178.69058 | G81: ='TB Hourly load shapes by class'!O81+'KN Hourly load shapes by class'!V81 -> 37476.36695 | H81: ='TB Hourly load shapes by class'!S81 -> 12198.32006 | I81: ='TB Hourly load shapes by class'!P81+'KN Hourly load shapes by class'!W81 -> 1393.51786 | J81: ='TB Hourly load shapes by class'!T81 -> 23.75188942 | K81: ='TB Hourly load shapes by class'!R81+'KN Hourly load shapes by class'!Y81 -> 260.5041662 | L81: 91969.73659
A82: ='TB Hourly load shapes by class'!A82 -> 2004 | B82: ='TB Hourly load shapes by class'!B82 -> 1 | C82: ='TB Hourly load shapes by class'!C82 -> 4 | D82: ='TB Hourly load shapes by class'!D82 -> 8 | E82: ='TB Hourly load shapes by class'!N82+'KN Hourly load shapes by class'!U82 -> 35562.8986 | F82: ='TB Hourly load shapes by class'!Q82+'KN Hourly load shapes by class'!X82 -> 9519.422512 | G82: ='TB Hourly load shapes by class'!O82+'KN Hourly load shapes by class'!V82 -> 38368.80053 | H82: ='TB Hourly load shapes by class'!S82 -> 12418.46049 | I82: ='TB Hourly load shapes by class'!P82+'KN Hourly load shapes by class'!W82 -> 1071.164045 | J82: ='TB Hourly load shapes by class'!T82 -> 17.81392177 | K82: ='TB Hourly load shapes by class'!R82+'KN Hourly load shapes by class'!Y82 -> 251.4573326 | L82: 97210.01742
A83: ='TB Hourly load shapes by class'!A83 -> 2004 | B83: ='TB Hourly load shapes by class'!B83 -> 1 | C83: ='TB Hourly load shapes by class'!C83 -> 4 | D83: ='TB Hourly load shapes by class'!D83 -> 9 | E83: ='TB Hourly load shapes by class'!N83+'KN Hourly load shapes by class'!U83 -> 41718.60361 | F83: ='TB Hourly load shapes by class'!Q83+'KN Hourly load shapes by class'!X83 -> 15479.16204 | G83: ='TB Hourly load shapes by class'!O83+'KN Hourly load shapes by class'!V83 -> 35473.55692 | H83: ='TB Hourly load shapes by class'!S83 -> 12739.27146 | I83: ='TB Hourly load shapes by class'!P83+'KN Hourly load shapes by class'!W83 -> 104.1015795 | J83: ='TB Hourly load shapes by class'!T83 -> 0 | K83: ='TB Hourly load shapes by class'!R83+'KN Hourly load shapes by class'!Y83 -> 224.3168031 | L83: 105739.0124
A84: ='TB Hourly load shapes by class'!A84 -> 2004 | B84: ='TB Hourly load shapes by class'!B84 -> 1 | C84: ='TB Hourly load shapes by class'!C84 -> 4 | D84: ='TB Hourly load shapes by class'!D84 -> 10 | E84: ='TB Hourly load shapes by class'!N84+'KN Hourly load shapes by class'!U84 -> 49351.35881 | F84: ='TB Hourly load shapes by class'!Q84+'KN Hourly load shapes by class'!X84 -> 20261.98215 | G84: ='TB Hourly load shapes by class'!O84+'KN Hourly load shapes by class'!V84 -> 28953.84092 | H84: ='TB Hourly load shapes by class'!S84 -> 12641.24857 | I84: ='TB Hourly load shapes by class'!P84+'KN Hourly load shapes by class'!W84 -> 0 | J84: ='TB Hourly load shapes by class'!T84 -> 0 | K84: ='TB Hourly load shapes by class'!R84+'KN Hourly load shapes by class'!Y84 -> 224.3168031 | L84: 111432.7473
A85: ='TB Hourly load shapes by class'!A85 -> 2004 | B85: ='TB Hourly load shapes by class'!B85 -> 1 | C85: ='TB Hourly load shapes by class'!C85 -> 4 | D85: ='TB Hourly load shapes by class'!D85 -> 11 | E85: ='TB Hourly load shapes by class'!N85+'KN Hourly load shapes by class'!U85 -> 50605.91339 | F85: ='TB Hourly load shapes by class'!Q85+'KN Hourly load shapes by class'!X85 -> 22901.92931 | G85: ='TB Hourly load shapes by class'!O85+'KN Hourly load shapes by class'!V85 -> 30839.87977 | H85: ='TB Hourly load shapes by class'!S85 -> 12443.25158 | I85: ='TB Hourly load shapes by class'!P85+'KN Hourly load shapes by class'!W85 -> 0 | J85: ='TB Hourly load shapes by class'!T85 -> 0 | K85: ='TB Hourly load shapes by class'!R85+'KN Hourly load shapes by class'!Y85 -> 224.3168031 | L85: 117015.2909
A86: ='TB Hourly load shapes by class'!A86 -> 2004 | B86: ='TB Hourly load shapes by class'!B86 -> 1 | C86: ='TB Hourly load shapes by class'!C86 -> 4 | D86: ='TB Hourly load shapes by class'!D86 -> 12 | E86: ='TB Hourly load shapes by class'!N86+'KN Hourly load shapes by class'!U86 -> 51161.6468 | F86: ='TB Hourly load shapes by class'!Q86+'KN Hourly load shapes by class'!X86 -> 23703.35261 | G86: ='TB Hourly load shapes by class'!O86+'KN Hourly load shapes by class'!V86 -> 31806.34281 | H86: ='TB Hourly load shapes by class'!S86 -> 12572.55026 | I86: ='TB Hourly load shapes by class'!P86+'KN Hourly load shapes by class'!W86 -> 0 | J86: ='TB Hourly load shapes by class'!T86 -> 0 | K86: ='TB Hourly load shapes by class'!R86+'KN Hourly load shapes by class'!Y86 -> 224.3168031 | L86: 119468.2093
A87: ='TB Hourly load shapes by class'!A87 -> 2004 | B87: ='TB Hourly load shapes by class'!B87 -> 1 | C87: ='TB Hourly load shapes by class'!C87 -> 4 | D87: ='TB Hourly load shapes by class'!D87 -> 13 | E87: ='TB Hourly load shapes by class'!N87+'KN Hourly load shapes by class'!U87 -> 52136.87514 | F87: ='TB Hourly load shapes by class'!Q87+'KN Hourly load shapes by class'!X87 -> 24048.77506 | G87: ='TB Hourly load shapes by class'!O87+'KN Hourly load shapes by class'!V87 -> 32427.54347 | H87: ='TB Hourly load shapes by class'!S87 -> 12864.87444 | I87: ='TB Hourly load shapes by class'!P87+'KN Hourly load shapes by class'!W87 -> 0 | J87: ='TB Hourly load shapes by class'!T87 -> 0 | K87: ='TB Hourly load shapes by class'!R87+'KN Hourly load shapes by class'!Y87 -> 224.3168031 | L87: 121702.3849
A88: ='TB Hourly load shapes by class'!A88 -> 2004 | B88: ='TB Hourly load shapes by class'!B88 -> 1 | C88: ='TB Hourly load shapes by class'!C88 -> 4 | D88: ='TB Hourly load shapes by class'!D88 -> 14 | E88: ='TB Hourly load shapes by class'!N88+'KN Hourly load shapes by class'!U88 -> 47102.79373 | F88: ='TB Hourly load shapes by class'!Q88+'KN Hourly load shapes by class'!X88 -> 25675.40997 | G88: ='TB Hourly load shapes by class'!O88+'KN Hourly load shapes by class'!V88 -> 34945.40502 | H88: ='TB Hourly load shapes by class'!S88 -> 12936.43709 | I88: ='TB Hourly load shapes by class'!P88+'KN Hourly load shapes by class'!W88 -> 0 | J88: ='TB Hourly load shapes by class'!T88 -> 0 | K88: ='TB Hourly load shapes by class'!R88+'KN Hourly load shapes by class'!Y88 -> 224.3168031 | L88: 120884.3626
A89: ='TB Hourly load shapes by class'!A89 -> 2004 | B89: ='TB Hourly load shapes by class'!B89 -> 1 | C89: ='TB Hourly load shapes by class'!C89 -> 4 | D89: ='TB Hourly load shapes by class'!D89 -> 15 | E89: ='TB Hourly load shapes by class'!N89+'KN Hourly load shapes by class'!U89 -> 46961.65092 | F89: ='TB Hourly load shapes by class'!Q89+'KN Hourly load shapes by class'!X89 -> 25947.76241 | G89: ='TB Hourly load shapes by class'!O89+'KN Hourly load shapes by class'!V89 -> 34240.06639 | H89: ='TB Hourly load shapes by class'!S89 -> 12851.83564 | I89: ='TB Hourly load shapes by class'!P89+'KN Hourly load shapes by class'!W89 -> 0 | J89: ='TB Hourly load shapes by class'!T89 -> 0 | K89: ='TB Hourly load shapes by class'!R89+'KN Hourly load shapes by class'!Y89 -> 224.3168031 | L89: 120225.6322
A90: ='TB Hourly load shapes by class'!A90 -> 2004 | B90: ='TB Hourly load shapes by class'!B90 -> 1 | C90: ='TB Hourly load shapes by class'!C90 -> 4 | D90: ='TB Hourly load shapes by class'!D90 -> 16 | E90: ='TB Hourly load shapes by class'!N90+'KN Hourly load shapes by class'!U90 -> 51306.61613 | F90: ='TB Hourly load shapes by class'!Q90+'KN Hourly load shapes by class'!X90 -> 25378.64207 | G90: ='TB Hourly load shapes by class'!O90+'KN Hourly load shapes by class'!V90 -> 32953.62723 | H90: ='TB Hourly load shapes by class'!S90 -> 12670.24362 | I90: ='TB Hourly load shapes by class'!P90+'KN Hourly load shapes by class'!W90 -> 0 | J90: ='TB Hourly load shapes by class'!T90 -> 0 | K90: ='TB Hourly load shapes by class'!R90+'KN Hourly load shapes by class'!Y90 -> 224.3168031 | L90: 122533.4458
A91: ='TB Hourly load shapes by class'!A91 -> 2004 | B91: ='TB Hourly load shapes by class'!B91 -> 1 | C91: ='TB Hourly load shapes by class'!C91 -> 4 | D91: ='TB Hourly load shapes by class'!D91 -> 17 | E91: ='TB Hourly load shapes by class'!N91+'KN Hourly load shapes by class'!U91 -> 60096.85299 | F91: ='TB Hourly load shapes by class'!Q91+'KN Hourly load shapes by class'!X91 -> 23526.58419 | G91: ='TB Hourly load shapes by class'!O91+'KN Hourly load shapes by class'!V91 -> 30684.2582 | H91: ='TB Hourly load shapes by class'!S91 -> 13258.8179 | I91: ='TB Hourly load shapes by class'!P91+'KN Hourly load shapes by class'!W91 -> 322.3540701 | J91: ='TB Hourly load shapes by class'!T91 -> 5.937972356 | K91: ='TB Hourly load shapes by class'!R91+'KN Hourly load shapes by class'!Y91 -> 233.3636439 | L91: 128128.169
A92: ='TB Hourly load shapes by class'!A92 -> 2004 | B92: ='TB Hourly load shapes by class'!B92 -> 1 | C92: ='TB Hourly load shapes by class'!C92 -> 4 | D92: ='TB Hourly load shapes by class'!D92 -> 18 | E92: ='TB Hourly load shapes by class'!N92+'KN Hourly load shapes by class'!U92 -> 62748.27552 | F92: ='TB Hourly load shapes by class'!Q92+'KN Hourly load shapes by class'!X92 -> 21908.50548 | G92: ='TB Hourly load shapes by class'!O92+'KN Hourly load shapes by class'!V92 -> 35775.40654 | H92: ='TB Hourly load shapes by class'!S92 -> 13291.38639 | I92: ='TB Hourly load shapes by class'!P92+'KN Hourly load shapes by class'!W92 -> 1289.41628 | J92: ='TB Hourly load shapes by class'!T92 -> 23.75188942 | K92: ='TB Hourly load shapes by class'!R92+'KN Hourly load shapes by class'!Y92 -> 260.5041662 | L92: 135297.2463
A93: ='TB Hourly load shapes by class'!A93 -> 2004 | B93: ='TB Hourly load shapes by class'!B93 -> 1 | C93: ='TB Hourly load shapes by class'!C93 -> 4 | D93: ='TB Hourly load shapes by class'!D93 -> 19 | E93: ='TB Hourly load shapes by class'!N93+'KN Hourly load shapes by class'!U93 -> 65090.9893 | F93: ='TB Hourly load shapes by class'!Q93+'KN Hourly load shapes by class'!X93 -> 16745.33912 | G93: ='TB Hourly load shapes by class'!O93+'KN Hourly load shapes by class'!V93 -> 40296.2276 | H93: ='TB Hourly load shapes by class'!S93 -> 13976.72358 | I93: ='TB Hourly load shapes by class'!P93+'KN Hourly load shapes by class'!W93 -> 1393.51786 | J93: ='TB Hourly load shapes by class'!T93 -> 23.75188942 | K93: ='TB Hourly load shapes by class'!R93+'KN Hourly load shapes by class'!Y93 -> 260.5041662 | L93: 137787.0535
A94: ='TB Hourly load shapes by class'!A94 -> 2004 | B94: ='TB Hourly load shapes by class'!B94 -> 1 | C94: ='TB Hourly load shapes by class'!C94 -> 4 | D94: ='TB Hourly load shapes by class'!D94 -> 20 | E94: ='TB Hourly load shapes by class'!N94+'KN Hourly load shapes by class'!U94 -> 61096.17206 | F94: ='TB Hourly load shapes by class'!Q94+'KN Hourly load shapes by class'!X94 -> 14928.6404 | G94: ='TB Hourly load shapes by class'!O94+'KN Hourly load shapes by class'!V94 -> 43901.32802 | H94: ='TB Hourly load shapes by class'!S94 -> 13946.74438 | I94: ='TB Hourly load shapes by class'!P94+'KN Hourly load shapes by class'!W94 -> 1393.51786 | J94: ='TB Hourly load shapes by class'!T94 -> 23.75188942 | K94: ='TB Hourly load shapes by class'!R94+'KN Hourly load shapes by class'!Y94 -> 260.5041662 | L94: 135550.6588
A95: ='TB Hourly load shapes by class'!A95 -> 2004 | B95: ='TB Hourly load shapes by class'!B95 -> 1 | C95: ='TB Hourly load shapes by class'!C95 -> 4 | D95: ='TB Hourly load shapes by class'!D95 -> 21 | E95: ='TB Hourly load shapes by class'!N95+'KN Hourly load shapes by class'!U95 -> 59812.38882 | F95: ='TB Hourly load shapes by class'!Q95+'KN Hourly load shapes by class'!X95 -> 15588.43515 | G95: ='TB Hourly load shapes by class'!O95+'KN Hourly load shapes by class'!V95 -> 41265.13767 | H95: ='TB Hourly load shapes by class'!S95 -> 13678.49502 | I95: ='TB Hourly load shapes by class'!P95+'KN Hourly load shapes by class'!W95 -> 1393.51786 | J95: ='TB Hourly load shapes by class'!T95 -> 23.75188942 | K95: ='TB Hourly load shapes by class'!R95+'KN Hourly load shapes by class'!Y95 -> 260.5041662 | L95: 132022.2306
A96: ='TB Hourly load shapes by class'!A96 -> 2004 | B96: ='TB Hourly load shapes by class'!B96 -> 1 | C96: ='TB Hourly load shapes by class'!C96 -> 4 | D96: ='TB Hourly load shapes by class'!D96 -> 22 | E96: ='TB Hourly load shapes by class'!N96+'KN Hourly load shapes by class'!U96 -> 59876.91828 | F96: ='TB Hourly load shapes by class'!Q96+'KN Hourly load shapes by class'!X96 -> 13250.46989 | G96: ='TB Hourly load shapes by class'!O96+'KN Hourly load shapes by class'!V96 -> 40007.80053 | H96: ='TB Hourly load shapes by class'!S96 -> 13842.50649 | I96: ='TB Hourly load shapes by class'!P96+'KN Hourly load shapes by class'!W96 -> 1393.51786 | J96: ='TB Hourly load shapes by class'!T96 -> 23.75188942 | K96: ='TB Hourly load shapes by class'!R96+'KN Hourly load shapes by class'!Y96 -> 260.5041662 | L96: 128655.4691
A97: ='TB Hourly load shapes by class'!A97 -> 2004 | B97: ='TB Hourly load shapes by class'!B97 -> 1 | C97: ='TB Hourly load shapes by class'!C97 -> 4 | D97: ='TB Hourly load shapes by class'!D97 -> 23 | E97: ='TB Hourly load shapes by class'!N97+'KN Hourly load shapes by class'!U97 -> 54974.68786 | F97: ='TB Hourly load shapes by class'!Q97+'KN Hourly load shapes by class'!X97 -> 12217.36868 | G97: ='TB Hourly load shapes by class'!O97+'KN Hourly load shapes by class'!V97 -> 39012.939 | H97: ='TB Hourly load shapes by class'!S97 -> 14185.699 | I97: ='TB Hourly load shapes by class'!P97+'KN Hourly load shapes by class'!W97 -> 1393.51786 | J97: ='TB Hourly load shapes by class'!T97 -> 23.75188942 | K97: ='TB Hourly load shapes by class'!R97+'KN Hourly load shapes by class'!Y97 -> 260.5041662 | L97: 122068.4685
A98: ='TB Hourly load shapes by class'!A98 -> 2004 | B98: ='TB Hourly load shapes by class'!B98 -> 1 | C98: ='TB Hourly load shapes by class'!C98 -> 4 | D98: ='TB Hourly load shapes by class'!D98 -> 24 | E98: ='TB Hourly load shapes by class'!N98+'KN Hourly load shapes by class'!U98 -> 44471.00918 | F98: ='TB Hourly load shapes by class'!Q98+'KN Hourly load shapes by class'!X98 -> 11742.23715 | G98: ='TB Hourly load shapes by class'!O98+'KN Hourly load shapes by class'!V98 -> 38394.46576 | H98: ='TB Hourly load shapes by class'!S98 -> 14436.61767 | I98: ='TB Hourly load shapes by class'!P98+'KN Hourly load shapes by class'!W98 -> 1393.51786 | J98: ='TB Hourly load shapes by class'!T98 -> 23.75188942 | K98: ='TB Hourly load shapes by class'!R98+'KN Hourly load shapes by class'!Y98 -> 260.5041662 | L98: 110722.1037
A99: ='TB Hourly load shapes by class'!A99 -> 2004 | B99: ='TB Hourly load shapes by class'!B99 -> 1 | C99: ='TB Hourly load shapes by class'!C99 -> 5 | D99: ='TB Hourly load shapes by class'!D99 -> 1 | E99: ='TB Hourly load shapes by class'!N99+'KN Hourly load shapes by class'!U99 -> 43468.66056 | F99: ='TB Hourly load shapes by class'!Q99+'KN Hourly load shapes by class'!X99 -> 16794.83017 | G99: ='TB Hourly load shapes by class'!O99+'KN Hourly load shapes by class'!V99 -> 39072.10602 | H99: ='TB Hourly load shapes by class'!S99 -> 14820.31039 | I99: ='TB Hourly load shapes by class'!P99+'KN Hourly load shapes by class'!W99 -> 1393.51786 | J99: ='TB Hourly load shapes by class'!T99 -> 23.75188942 | K99: ='TB Hourly load shapes by class'!R99+'KN Hourly load shapes by class'!Y99 -> 260.5041662 | L99: 115833.6811
A100: ='TB Hourly load shapes by class'!A100 -> 2004 | B100: ='TB Hourly load shapes by class'!B100 -> 1 | C100: ='TB Hourly load shapes by class'!C100 -> 5 | D100: ='TB Hourly load shapes by class'!D100 -> 2 | E100: ='TB Hourly load shapes by class'!N100+'KN Hourly load shapes by class'!U100 -> 40075.12466 | F100: ='TB Hourly load shapes by class'!Q100+'KN Hourly load shapes by class'!X100 -> 15053.60778 | G100: ='TB Hourly load shapes by class'!O100+'KN Hourly load shapes by class'!V100 -> 39000.87348 | H100: ='TB Hourly load shapes by class'!S100 -> 14516.96099 | I100: ='TB Hourly load shapes by class'!P100+'KN Hourly load shapes by class'!W100 -> 1393.51786 | J100: ='TB Hourly load shapes by class'!T100 -> 23.75188942 | K100: ='TB Hourly load shapes by class'!R100+'KN Hourly load shapes by class'!Y100 -> 260.5041662 | L100: 110324.3408
A101: ='TB Hourly load shapes by class'!A101 -> 2004 | B101: ='TB Hourly load shapes by class'!B101 -> 1 | C101: ='TB Hourly load shapes by class'!C101 -> 5 | D101: ='TB Hourly load shapes by class'!D101 -> 3 | E101: ='TB Hourly load shapes by class'!N101+'KN Hourly load shapes by class'!U101 -> 36650.87759 | F101: ='TB Hourly load shapes by class'!Q101+'KN Hourly load shapes by class'!X101 -> 16453.22719 | G101: ='TB Hourly load shapes by class'!O101+'KN Hourly load shapes by class'!V101 -> 39939.13042 | H101: ='TB Hourly load shapes by class'!S101 -> 14338.67752 | I101: ='TB Hourly load shapes by class'!P101+'KN Hourly load shapes by class'!W101 -> 1393.51786 | J101: ='TB Hourly load shapes by class'!T101 -> 23.75188942 | K101: ='TB Hourly load shapes by class'!R101+'KN Hourly load shapes by class'!Y101 -> 260.5041662 | L101: 109059.6866
A102: ='TB Hourly load shapes by class'!A102 -> 2004 | B102: ='TB Hourly load shapes by class'!B102 -> 1 | C102: ='TB Hourly load shapes by class'!C102 -> 5 | D102: ='TB Hourly load shapes by class'!D102 -> 4 | E102: ='TB Hourly load shapes by class'!N102+'KN Hourly load shapes by class'!U102 -> 36494.48288 | F102: ='TB Hourly load shapes by class'!Q102+'KN Hourly load shapes by class'!X102 -> 15886.90431 | G102: ='TB Hourly load shapes by class'!O102+'KN Hourly load shapes by class'!V102 -> 38617.11276 | H102: ='TB Hourly load shapes by class'!S102 -> 14775.16046 | I102: ='TB Hourly load shapes by class'!P102+'KN Hourly load shapes by class'!W102 -> 1393.51786 | J102: ='TB Hourly load shapes by class'!T102 -> 23.75188942 | K102: ='TB Hourly load shapes by class'!R102+'KN Hourly load shapes by class'!Y102 -> 260.5041662 | L102: 107451.4343
A103: ='TB Hourly load shapes by class'!A103 -> 2004 | B103: ='TB Hourly load shapes by class'!B103 -> 1 | C103: ='TB Hourly load shapes by class'!C103 -> 5 | D103: ='TB Hourly load shapes by class'!D103 -> 5 | E103: ='TB Hourly load shapes by class'!N103+'KN Hourly load shapes by class'!U103 -> 36632.51212 | F103: ='TB Hourly load shapes by class'!Q103+'KN Hourly load shapes by class'!X103 -> 15314.53177 | G103: ='TB Hourly load shapes by class'!O103+'KN Hourly load shapes by class'!V103 -> 39094.0371 | H103: ='TB Hourly load shapes by class'!S103 -> 15135.70498 | I103: ='TB Hourly load shapes by class'!P103+'KN Hourly load shapes by class'!W103 -> 1393.51786 | J103: ='TB Hourly load shapes by class'!T103 -> 23.75188942 | K103: ='TB Hourly load shapes by class'!R103+'KN Hourly load shapes by class'!Y103 -> 260.5041662 | L103: 107854.5599
A104: ='TB Hourly load shapes by class'!A104 -> 2004 | B104: ='TB Hourly load shapes by class'!B104 -> 1 | C104: ='TB Hourly load shapes by class'!C104 -> 5 | D104: ='TB Hourly load shapes by class'!D104 -> 6 | E104: ='TB Hourly load shapes by class'!N104+'KN Hourly load shapes by class'!U104 -> 39026.3708 | F104: ='TB Hourly load shapes by class'!Q104+'KN Hourly load shapes by class'!X104 -> 15670.82791 | G104: ='TB Hourly load shapes by class'!O104+'KN Hourly load shapes by class'!V104 -> 39450.93576 | H104: ='TB Hourly load shapes by class'!S104 -> 15469.53466 | I104: ='TB Hourly load shapes by class'!P104+'KN Hourly load shapes by class'!W104 -> 1393.51786 | J104: ='TB Hourly load shapes by class'!T104 -> 23.75188942 | K104: ='TB Hourly load shapes by class'!R104+'KN Hourly load shapes by class'!Y104 -> 260.5041662 | L104: 111295.443
A105: ='TB Hourly load shapes by class'!A105 -> 2004 | B105: ='TB Hourly load shapes by class'!B105 -> 1 | C105: ='TB Hourly load shapes by class'!C105 -> 5 | D105: ='TB Hourly load shapes by class'!D105 -> 7 | E105: ='TB Hourly load shapes by class'!N105+'KN Hourly load shapes by class'!U105 -> 43643.13915 | F105: ='TB Hourly load shapes by class'!Q105+'KN Hourly load shapes by class'!X105 -> 16228.78558 | G105: ='TB Hourly load shapes by class'!O105+'KN Hourly load shapes by class'!V105 -> 41231.42767 | H105: ='TB Hourly load shapes by class'!S105 -> 16552.71407 | I105: ='TB Hourly load shapes by class'!P105+'KN Hourly load shapes by class'!W105 -> 1393.51786 | J105: ='TB Hourly load shapes by class'!T105 -> 23.75188942 | K105: ='TB Hourly load shapes by class'!R105+'KN Hourly load shapes by class'!Y105 -> 260.5041662 | L105: 119333.8404
A106: ='TB Hourly load shapes by class'!A106 -> 2004 | B106: ='TB Hourly load shapes by class'!B106 -> 1 | C106: ='TB Hourly load shapes by class'!C106 -> 5 | D106: ='TB Hourly load shapes by class'!D106 -> 8 | E106: ='TB Hourly load shapes by class'!N106+'KN Hourly load shapes by class'!U106 -> 48697.47592 | F106: ='TB Hourly load shapes by class'!Q106+'KN Hourly load shapes by class'!X106 -> 20771.77025 | G106: ='TB Hourly load shapes by class'!O106+'KN Hourly load shapes by class'!V106 -> 46638.06443 | H106: ='TB Hourly load shapes by class'!S106 -> 18716.1792 | I106: ='TB Hourly load shapes by class'!P106+'KN Hourly load shapes by class'!W106 -> 1071.164045 | J106: ='TB Hourly load shapes by class'!T106 -> 17.81392177 | K106: ='TB Hourly load shapes by class'!R106+'KN Hourly load shapes by class'!Y106 -> 251.4573326 | L106: 136163.9251
A107: ='TB Hourly load shapes by class'!A107 -> 2004 | B107: ='TB Hourly load shapes by class'!B107 -> 1 | C107: ='TB Hourly load shapes by class'!C107 -> 5 | D107: ='TB Hourly load shapes by class'!D107 -> 9 | E107: ='TB Hourly load shapes by class'!N107+'KN Hourly load shapes by class'!U107 -> 57166.40261 | F107: ='TB Hourly load shapes by class'!Q107+'KN Hourly load shapes by class'!X107 -> 25291.42826 | G107: ='TB Hourly load shapes by class'!O107+'KN Hourly load shapes by class'!V107 -> 45512.76186 | H107: ='TB Hourly load shapes by class'!S107 -> 21577.368 | I107: ='TB Hourly load shapes by class'!P107+'KN Hourly load shapes by class'!W107 -> 104.1015795 | J107: ='TB Hourly load shapes by class'!T107 -> 0 | K107: ='TB Hourly load shapes by class'!R107+'KN Hourly load shapes by class'!Y107 -> 224.3168031 | L107: 149876.3791
A108: ='TB Hourly load shapes by class'!A108 -> 2004 | B108: ='TB Hourly load shapes by class'!B108 -> 1 | C108: ='TB Hourly load shapes by class'!C108 -> 5 | D108: ='TB Hourly load shapes by class'!D108 -> 10 | E108: ='TB Hourly load shapes by class'!N108+'KN Hourly load shapes by class'!U108 -> 60464.6687 | F108: ='TB Hourly load shapes by class'!Q108+'KN Hourly load shapes by class'!X108 -> 29854.69407 | G108: ='TB Hourly load shapes by class'!O108+'KN Hourly load shapes by class'!V108 -> 40226.16539 | H108: ='TB Hourly load shapes by class'!S108 -> 21477.50867 | I108: ='TB Hourly load shapes by class'!P108+'KN Hourly load shapes by class'!W108 -> 0 | J108: ='TB Hourly load shapes by class'!T108 -> 0 | K108: ='TB Hourly load shapes by class'!R108+'KN Hourly load shapes by class'!Y108 -> 224.3168031 | L108: 152247.3536
A109: ='TB Hourly load shapes by class'!A109 -> 2004 | B109: ='TB Hourly load shapes by class'!B109 -> 1 | C109: ='TB Hourly load shapes by class'!C109 -> 5 | D109: ='TB Hourly load shapes by class'!D109 -> 11 | E109: ='TB Hourly load shapes by class'!N109+'KN Hourly load shapes by class'!U109 -> 61111.97582 | F109: ='TB Hourly load shapes by class'!Q109+'KN Hourly load shapes by class'!X109 -> 30633.43561 | G109: ='TB Hourly load shapes by class'!O109+'KN Hourly load shapes by class'!V109 -> 40472.53168 | H109: ='TB Hourly load shapes by class'!S109 -> 21618.3213 | I109: ='TB Hourly load shapes by class'!P109+'KN Hourly load shapes by class'!W109 -> 0 | J109: ='TB Hourly load shapes by class'!T109 -> 0 | K109: ='TB Hourly load shapes by class'!R109+'KN Hourly load shapes by class'!Y109 -> 224.3168031 | L109: 154060.5812
A110: ='TB Hourly load shapes by class'!A110 -> 2004 | B110: ='TB Hourly load shapes by class'!B110 -> 1 | C110: ='TB Hourly load shapes by class'!C110 -> 5 | D110: ='TB Hourly load shapes by class'!D110 -> 12 | E110: ='TB Hourly load shapes by class'!N110+'KN Hourly load shapes by class'!U110 -> 59372.52922 | F110: ='TB Hourly load shapes by class'!Q110+'KN Hourly load shapes by class'!X110 -> 29427.64329 | G110: ='TB Hourly load shapes by class'!O110+'KN Hourly load shapes by class'!V110 -> 42044.44704 | H110: ='TB Hourly load shapes by class'!S110 -> 21708.60354 | I110: ='TB Hourly load shapes by class'!P110+'KN Hourly load shapes by class'!W110 -> 0 | J110: ='TB Hourly load shapes by class'!T110 -> 0 | K110: ='TB Hourly load shapes by class'!R110+'KN Hourly load shapes by class'!Y110 -> 224.3168031 | L110: 152777.5399
A111: ='TB Hourly load shapes by class'!A111 -> 2004 | B111: ='TB Hourly load shapes by class'!B111 -> 1 | C111: ='TB Hourly load shapes by class'!C111 -> 5 | D111: ='TB Hourly load shapes by class'!D111 -> 13 | E111: ='TB Hourly load shapes by class'!N111+'KN Hourly load shapes by class'!U111 -> 53150.62738 | F111: ='TB Hourly load shapes by class'!Q111+'KN Hourly load shapes by class'!X111 -> 30544.79991 | G111: ='TB Hourly load shapes by class'!O111+'KN Hourly load shapes by class'!V111 -> 43159.80438 | H111: ='TB Hourly load shapes by class'!S111 -> 22899.79017 | I111: ='TB Hourly load shapes by class'!P111+'KN Hourly load shapes by class'!W111 -> 0 | J111: ='TB Hourly load shapes by class'!T111 -> 0 | K111: ='TB Hourly load shapes by class'!R111+'KN Hourly load shapes by class'!Y111 -> 224.3168031 | L111: 149979.3386
A112: ='TB Hourly load shapes by class'!A112 -> 2004 | B112: ='TB Hourly load shapes by class'!B112 -> 1 | C112: ='TB Hourly load shapes by class'!C112 -> 5 | D112: ='TB Hourly load shapes by class'!D112 -> 14 | E112: ='TB Hourly load shapes by class'!N112+'KN Hourly load shapes by class'!U112 -> 52754.45494 | F112: ='TB Hourly load shapes by class'!Q112+'KN Hourly load shapes by class'!X112 -> 29927.78374 | G112: ='TB Hourly load shapes by class'!O112+'KN Hourly load shapes by class'!V112 -> 43107.78115 | H112: ='TB Hourly load shapes by class'!S112 -> 22368.57356 | I112: ='TB Hourly load shapes by class'!P112+'KN Hourly load shapes by class'!W112 -> 0 | J112: ='TB Hourly load shapes by class'!T112 -> 0 | K112: ='TB Hourly load shapes by class'!R112+'KN Hourly load shapes by class'!Y112 -> 224.3168031 | L112: 148382.9102
A113: ='TB Hourly load shapes by class'!A113 -> 2004 | B113: ='TB Hourly load shapes by class'!B113 -> 1 | C113: ='TB Hourly load shapes by class'!C113 -> 5 | D113: ='TB Hourly load shapes by class'!D113 -> 15 | E113: ='TB Hourly load shapes by class'!N113+'KN Hourly load shapes by class'!U113 -> 54523.03239 | F113: ='TB Hourly load shapes by class'!Q113+'KN Hourly load shapes by class'!X113 -> 29807.74169 | G113: ='TB Hourly load shapes by class'!O113+'KN Hourly load shapes by class'!V113 -> 40629.3294 | H113: ='TB Hourly load shapes by class'!S113 -> 21801.84395 | I113: ='TB Hourly load shapes by class'!P113+'KN Hourly load shapes by class'!W113 -> 0 | J113: ='TB Hourly load shapes by class'!T113 -> 0 | K113: ='TB Hourly load shapes by class'!R113+'KN Hourly load shapes by class'!Y113 -> 224.3168031 | L113: 146986.2642
A114: ='TB Hourly load shapes by class'!A114 -> 2004 | B114: ='TB Hourly load shapes by class'!B114 -> 1 | C114: ='TB Hourly load shapes by class'!C114 -> 5 | D114: ='TB Hourly load shapes by class'!D114 -> 16 | E114: ='TB Hourly load shapes by class'!N114+'KN Hourly load shapes by class'!U114 -> 59177.32183 | F114: ='TB Hourly load shapes by class'!Q114+'KN Hourly load shapes by class'!X114 -> 28488.25693 | G114: ='TB Hourly load shapes by class'!O114+'KN Hourly load shapes by class'!V114 -> 37541.48065 | H114: ='TB Hourly load shapes by class'!S114 -> 20890.03406 | I114: ='TB Hourly load shapes by class'!P114+'KN Hourly load shapes by class'!W114 -> 0 | J114: ='TB Hourly load shapes by class'!T114 -> 0 | K114: ='TB Hourly load shapes by class'!R114+'KN Hourly load shapes by class'!Y114 -> 224.3168031 | L114: 146321.4103
A115: ='TB Hourly load shapes by class'!A115 -> 2004 | B115: ='TB Hourly load shapes by class'!B115 -> 1 | C115: ='TB Hourly load shapes by class'!C115 -> 5 | D115: ='TB Hourly load shapes by class'!D115 -> 17 | E115: ='TB Hourly load shapes by class'!N115+'KN Hourly load shapes by class'!U115 -> 64432.8246 | F115: ='TB Hourly load shapes by class'!Q115+'KN Hourly load shapes by class'!X115 -> 28820.68903 | G115: ='TB Hourly load shapes by class'!O115+'KN Hourly load shapes by class'!V115 -> 36709.8118 | H115: ='TB Hourly load shapes by class'!S115 -> 19025.79898 | I115: ='TB Hourly load shapes by class'!P115+'KN Hourly load shapes by class'!W115 -> 322.3540701 | J115: ='TB Hourly load shapes by class'!T115 -> 5.937972356 | K115: ='TB Hourly load shapes by class'!R115+'KN Hourly load shapes by class'!Y115 -> 233.3636439 | L115: 149550.7801
A116: ='TB Hourly load shapes by class'!A116 -> 2004 | B116: ='TB Hourly load shapes by class'!B116 -> 1 | C116: ='TB Hourly load shapes by class'!C116 -> 5 | D116: ='TB Hourly load shapes by class'!D116 -> 18 | E116: ='TB Hourly load shapes by class'!N116+'KN Hourly load shapes by class'!U116 -> 66859.90976 | F116: ='TB Hourly load shapes by class'!Q116+'KN Hourly load shapes by class'!X116 -> 28355.27036 | G116: ='TB Hourly load shapes by class'!O116+'KN Hourly load shapes by class'!V116 -> 41877.06181 | H116: ='TB Hourly load shapes by class'!S116 -> 17422.76323 | I116: ='TB Hourly load shapes by class'!P116+'KN Hourly load shapes by class'!W116 -> 1289.41628 | J116: ='TB Hourly load shapes by class'!T116 -> 23.75188942 | K116: ='TB Hourly load shapes by class'!R116+'KN Hourly load shapes by class'!Y116 -> 260.5041662 | L116: 156088.6775
A117: ='TB Hourly load shapes by class'!A117 -> 2004 | B117: ='TB Hourly load shapes by class'!B117 -> 1 | C117: ='TB Hourly load shapes by class'!C117 -> 5 | D117: ='TB Hourly load shapes by class'!D117 -> 19 | E117: ='TB Hourly load shapes by class'!N117+'KN Hourly load shapes by class'!U117 -> 70483.55086 | F117: ='TB Hourly load shapes by class'!Q117+'KN Hourly load shapes by class'!X117 -> 23443.56243 | G117: ='TB Hourly load shapes by class'!O117+'KN Hourly load shapes by class'!V117 -> 45624.22306 | H117: ='TB Hourly load shapes by class'!S117 -> 17624.41634 | I117: ='TB Hourly load shapes by class'!P117+'KN Hourly load shapes by class'!W117 -> 1393.51786 | J117: ='TB Hourly load shapes by class'!T117 -> 23.75188942 | K117: ='TB Hourly load shapes by class'!R117+'KN Hourly load shapes by class'!Y117 -> 260.5041662 | L117: 158853.5266
A118: ='TB Hourly load shapes by class'!A118 -> 2004 | B118: ='TB Hourly load shapes by class'!B118 -> 1 | C118: ='TB Hourly load shapes by class'!C118 -> 5 | D118: ='TB Hourly load shapes by class'!D118 -> 20 | E118: ='TB Hourly load shapes by class'!N118+'KN Hourly load shapes by class'!U118 -> 67810.22961 | F118: ='TB Hourly load shapes by class'!Q118+'KN Hourly load shapes by class'!X118 -> 24359.75773 | G118: ='TB Hourly load shapes by class'!O118+'KN Hourly load shapes by class'!V118 -> 46753.56322 | H118: ='TB Hourly load shapes by class'!S118 -> 18507.68081 | I118: ='TB Hourly load shapes by class'!P118+'KN Hourly load shapes by class'!W118 -> 1393.51786 | J118: ='TB Hourly load shapes by class'!T118 -> 23.75188942 | K118: ='TB Hourly load shapes by class'!R118+'KN Hourly load shapes by class'!Y118 -> 260.5041662 | L118: 159109.0053
A119: ='TB Hourly load shapes by class'!A119 -> 2004 | B119: ='TB Hourly load shapes by class'!B119 -> 1 | C119: ='TB Hourly load shapes by class'!C119 -> 5 | D119: ='TB Hourly load shapes by class'!D119 -> 21 | E119: ='TB Hourly load shapes by class'!N119+'KN Hourly load shapes by class'!U119 -> 68721.70079 | F119: ='TB Hourly load shapes by class'!Q119+'KN Hourly load shapes by class'!X119 -> 20179.74309 | G119: ='TB Hourly load shapes by class'!O119+'KN Hourly load shapes by class'!V119 -> 46280.86314 | H119: ='TB Hourly load shapes by class'!S119 -> 18963.34318 | I119: ='TB Hourly load shapes by class'!P119+'KN Hourly load shapes by class'!W119 -> 1393.51786 | J119: ='TB Hourly load shapes by class'!T119 -> 23.75188942 | K119: ='TB Hourly load shapes by class'!R119+'KN Hourly load shapes by class'!Y119 -> 260.5041662 | L119: 155823.4241
A120: ='TB Hourly load shapes by class'!A120 -> 2004 | B120: ='TB Hourly load shapes by class'!B120 -> 1 | C120: ='TB Hourly load shapes by class'!C120 -> 5 | D120: ='TB Hourly load shapes by class'!D120 -> 22 | E120: ='TB Hourly load shapes by class'!N120+'KN Hourly load shapes by class'!U120 -> 63895.27316 | F120: ='TB Hourly load shapes by class'!Q120+'KN Hourly load shapes by class'!X120 -> 20465.99387 | G120: ='TB Hourly load shapes by class'!O120+'KN Hourly load shapes by class'!V120 -> 44618.80244 | H120: ='TB Hourly load shapes by class'!S120 -> 18801.70541 | I120: ='TB Hourly load shapes by class'!P120+'KN Hourly load shapes by class'!W120 -> 1393.51786 | J120: ='TB Hourly load shapes by class'!T120 -> 23.75188942 | K120: ='TB Hourly load shapes by class'!R120+'KN Hourly load shapes by class'!Y120 -> 260.5041662 | L120: 149459.5488
A121: ='TB Hourly load shapes by class'!A121 -> 2004 | B121: ='TB Hourly load shapes by class'!B121 -> 1 | C121: ='TB Hourly load shapes by class'!C121 -> 5 | D121: ='TB Hourly load shapes by class'!D121 -> 23 | E121: ='TB Hourly load shapes by class'!N121+'KN Hourly load shapes by class'!U121 -> 58806.97836 | F121: ='TB Hourly load shapes by class'!Q121+'KN Hourly load shapes by class'!X121 -> 18888.25676 | G121: ='TB Hourly load shapes by class'!O121+'KN Hourly load shapes by class'!V121 -> 43679.49418 | H121: ='TB Hourly load shapes by class'!S121 -> 18482.1419 | I121: ='TB Hourly load shapes by class'!P121+'KN Hourly load shapes by class'!W121 -> 1393.51786 | J121: ='TB Hourly load shapes by class'!T121 -> 23.75188942 | K121: ='TB Hourly load shapes by class'!R121+'KN Hourly load shapes by class'!Y121 -> 260.5041662 | L121: 141534.6451
A122: ='TB Hourly load shapes by class'!A122 -> 2004 | B122: ='TB Hourly load shapes by class'!B122 -> 1 | C122: ='TB Hourly load shapes by class'!C122 -> 5 | D122: ='TB Hourly load shapes by class'!D122 -> 24 | E122: ='TB Hourly load shapes by class'!N122+'KN Hourly load shapes by class'!U122 -> 50352.46485 | F122: ='TB Hourly load shapes by class'!Q122+'KN Hourly load shapes by class'!X122 -> 16764.45576 | G122: ='TB Hourly load shapes by class'!O122+'KN Hourly load shapes by class'!V122 -> 41586.61973 | H122: ='TB Hourly load shapes by class'!S122 -> 17874.32026 | I122: ='TB Hourly load shapes by class'!P122+'KN Hourly load shapes by class'!W122 -> 1393.51786 | J122: ='TB Hourly load shapes by class'!T122 -> 23.75188942 | K122: ='TB Hourly load shapes by class'!R122+'KN Hourly load shapes by class'!Y122 -> 260.5041662 | L122: 128255.6345
A123: ='TB Hourly load shapes by class'!A123 -> 2004 | B123: ='TB Hourly load shapes by class'!B123 -> 1 | C123: ='TB Hourly load shapes by class'!C123 -> 6 | D123: ='TB Hourly load shapes by class'!D123 -> 1 | E123: ='TB Hourly load shapes by class'!N123+'KN Hourly load shapes by class'!U123 -> 46661.60171 | F123: ='TB Hourly load shapes by class'!Q123+'KN Hourly load shapes by class'!X123 -> 18032.08853 | G123: ='TB Hourly load shapes by class'!O123+'KN Hourly load shapes by class'!V123 -> 41104.63142 | H123: ='TB Hourly load shapes by class'!S123 -> 18619.87346 | I123: ='TB Hourly load shapes by class'!P123+'KN Hourly load shapes by class'!W123 -> 1393.51786 | J123: ='TB Hourly load shapes by class'!T123 -> 23.75188942 | K123: ='TB Hourly load shapes by class'!R123+'KN Hourly load shapes by class'!Y123 -> 260.5041662 | L123: 126095.969
A124: ='TB Hourly load shapes by class'!A124 -> 2004 | B124: ='TB Hourly load shapes by class'!B124 -> 1 | C124: ='TB Hourly load shapes by class'!C124 -> 6 | D124: ='TB Hourly load shapes by class'!D124 -> 2 | E124: ='TB Hourly load shapes by class'!N124+'KN Hourly load shapes by class'!U124 -> 42956.60529 | F124: ='TB Hourly load shapes by class'!Q124+'KN Hourly load shapes by class'!X124 -> 18386.39911 | G124: ='TB Hourly load shapes by class'!O124+'KN Hourly load shapes by class'!V124 -> 40774.40056 | H124: ='TB Hourly load shapes by class'!S124 -> 17815.4081 | I124: ='TB Hourly load shapes by class'!P124+'KN Hourly load shapes by class'!W124 -> 1393.51786 | J124: ='TB Hourly load shapes by class'!T124 -> 23.75188942 | K124: ='TB Hourly load shapes by class'!R124+'KN Hourly load shapes by class'!Y124 -> 260.5041662 | L124: 121610.587
A125: ='TB Hourly load shapes by class'!A125 -> 2004 | B125: ='TB Hourly load shapes by class'!B125 -> 1 | C125: ='TB Hourly load shapes by class'!C125 -> 6 | D125: ='TB Hourly load shapes by class'!D125 -> 3 | E125: ='TB Hourly load shapes by class'!N125+'KN Hourly load shapes by class'!U125 -> 40364.80451 | F125: ='TB Hourly load shapes by class'!Q125+'KN Hourly load shapes by class'!X125 -> 17876.90294 | G125: ='TB Hourly load shapes by class'!O125+'KN Hourly load shapes by class'!V125 -> 41371.73274 | H125: ='TB Hourly load shapes by class'!S125 -> 17331.39106 | I125: ='TB Hourly load shapes by class'!P125+'KN Hourly load shapes by class'!W125 -> 1393.51786 | J125: ='TB Hourly load shapes by class'!T125 -> 23.75188942 | K125: ='TB Hourly load shapes by class'!R125+'KN Hourly load shapes by class'!Y125 -> 260.5041662 | L125: 118622.6052
A126: ='TB Hourly load shapes by class'!A126 -> 2004 | B126: ='TB Hourly load shapes by class'!B126 -> 1 | C126: ='TB Hourly load shapes by class'!C126 -> 6 | D126: ='TB Hourly load shapes by class'!D126 -> 4 | E126: ='TB Hourly load shapes by class'!N126+'KN Hourly load shapes by class'!U126 -> 40657.20735 | F126: ='TB Hourly load shapes by class'!Q126+'KN Hourly load shapes by class'!X126 -> 17038.08094 | G126: ='TB Hourly load shapes by class'!O126+'KN Hourly load shapes by class'!V126 -> 40595.07784 | H126: ='TB Hourly load shapes by class'!S126 -> 16903.00773 | I126: ='TB Hourly load shapes by class'!P126+'KN Hourly load shapes by class'!W126 -> 1393.51786 | J126: ='TB Hourly load shapes by class'!T126 -> 23.75188942 | K126: ='TB Hourly load shapes by class'!R126+'KN Hourly load shapes by class'!Y126 -> 260.5041662 | L126: 116871.1478
A127: ='TB Hourly load shapes by class'!A127 -> 2004 | B127: ='TB Hourly load shapes by class'!B127 -> 1 | C127: ='TB Hourly load shapes by class'!C127 -> 6 | D127: ='TB Hourly load shapes by class'!D127 -> 5 | E127: ='TB Hourly load shapes by class'!N127+'KN Hourly load shapes by class'!U127 -> 41796.50768 | F127: ='TB Hourly load shapes by class'!Q127+'KN Hourly load shapes by class'!X127 -> 17377.45237 | G127: ='TB Hourly load shapes by class'!O127+'KN Hourly load shapes by class'!V127 -> 39849.26262 | H127: ='TB Hourly load shapes by class'!S127 -> 17081.23467 | I127: ='TB Hourly load shapes by class'!P127+'KN Hourly load shapes by class'!W127 -> 1393.51786 | J127: ='TB Hourly load shapes by class'!T127 -> 23.75188942 | K127: ='TB Hourly load shapes by class'!R127+'KN Hourly load shapes by class'!Y127 -> 260.5041662 | L127: 117782.2313
A128: ='TB Hourly load shapes by class'!A128 -> 2004 | B128: ='TB Hourly load shapes by class'!B128 -> 1 | C128: ='TB Hourly load shapes by class'!C128 -> 6 | D128: ='TB Hourly load shapes by class'!D128 -> 6 | E128: ='TB Hourly load shapes by class'!N128+'KN Hourly load shapes by class'!U128 -> 44179.40509 | F128: ='TB Hourly load shapes by class'!Q128+'KN Hourly load shapes by class'!X128 -> 17177.70474 | G128: ='TB Hourly load shapes by class'!O128+'KN Hourly load shapes by class'!V128 -> 40395.15253 | H128: ='TB Hourly load shapes by class'!S128 -> 16552.53436 | I128: ='TB Hourly load shapes by class'!P128+'KN Hourly load shapes by class'!W128 -> 1393.51786 | J128: ='TB Hourly load shapes by class'!T128 -> 23.75188942 | K128: ='TB Hourly load shapes by class'!R128+'KN Hourly load shapes by class'!Y128 -> 260.5041662 | L128: 119982.5706
A129: ='TB Hourly load shapes by class'!A129 -> 2004 | B129: ='TB Hourly load shapes by class'!B129 -> 1 | C129: ='TB Hourly load shapes by class'!C129 -> 6 | D129: ='TB Hourly load shapes by class'!D129 -> 7 | E129: ='TB Hourly load shapes by class'!N129+'KN Hourly load shapes by class'!U129 -> 49180.57497 | F129: ='TB Hourly load shapes by class'!Q129+'KN Hourly load shapes by class'!X129 -> 17460.93702 | G129: ='TB Hourly load shapes by class'!O129+'KN Hourly load shapes by class'!V129 -> 42325.17689 | H129: ='TB Hourly load shapes by class'!S129 -> 18013.30371 | I129: ='TB Hourly load shapes by class'!P129+'KN Hourly load shapes by class'!W129 -> 1393.51786 | J129: ='TB Hourly load shapes by class'!T129 -> 23.75188942 | K129: ='TB Hourly load shapes by class'!R129+'KN Hourly load shapes by class'!Y129 -> 260.5041662 | L129: 128657.7665
A130: ='TB Hourly load shapes by class'!A130 -> 2004 | B130: ='TB Hourly load shapes by class'!B130 -> 1 | C130: ='TB Hourly load shapes by class'!C130 -> 6 | D130: ='TB Hourly load shapes by class'!D130 -> 8 | E130: ='TB Hourly load shapes by class'!N130+'KN Hourly load shapes by class'!U130 -> 52735.62935 | F130: ='TB Hourly load shapes by class'!Q130+'KN Hourly load shapes by class'!X130 -> 22933.39288 | G130: ='TB Hourly load shapes by class'!O130+'KN Hourly load shapes by class'!V130 -> 47642.59911 | H130: ='TB Hourly load shapes by class'!S130 -> 20820.99798 | I130: ='TB Hourly load shapes by class'!P130+'KN Hourly load shapes by class'!W130 -> 1071.164045 | J130: ='TB Hourly load shapes by class'!T130 -> 17.81392177 | K130: ='TB Hourly load shapes by class'!R130+'KN Hourly load shapes by class'!Y130 -> 251.4573326 | L130: 145473.0546
A131: ='TB Hourly load shapes by class'!A131 -> 2004 | B131: ='TB Hourly load shapes by class'!B131 -> 1 | C131: ='TB Hourly load shapes by class'!C131 -> 6 | D131: ='TB Hourly load shapes by class'!D131 -> 9 | E131: ='TB Hourly load shapes by class'!N131+'KN Hourly load shapes by class'!U131 -> 60820.68399 | F131: ='TB Hourly load shapes by class'!Q131+'KN Hourly load shapes by class'!X131 -> 28998.41984 | G131: ='TB Hourly load shapes by class'!O131+'KN Hourly load shapes by class'!V131 -> 46391.25877 | H131: ='TB Hourly load shapes by class'!S131 -> 23036.63647 | I131: ='TB Hourly load shapes by class'!P131+'KN Hourly load shapes by class'!W131 -> 104.1015795 | J131: ='TB Hourly load shapes by class'!T131 -> 0 | K131: ='TB Hourly load shapes by class'!R131+'KN Hourly load shapes by class'!Y131 -> 224.3168031 | L131: 159575.4174
A132: ='TB Hourly load shapes by class'!A132 -> 2004 | B132: ='TB Hourly load shapes by class'!B132 -> 1 | C132: ='TB Hourly load shapes by class'!C132 -> 6 | D132: ='TB Hourly load shapes by class'!D132 -> 10 | E132: ='TB Hourly load shapes by class'!N132+'KN Hourly load shapes by class'!U132 -> 62276.2695 | F132: ='TB Hourly load shapes by class'!Q132+'KN Hourly load shapes by class'!X132 -> 30608.78015 | G132: ='TB Hourly load shapes by class'!O132+'KN Hourly load shapes by class'!V132 -> 42079.07444 | H132: ='TB Hourly load shapes by class'!S132 -> 24069.38802 | I132: ='TB Hourly load shapes by class'!P132+'KN Hourly load shapes by class'!W132 -> 0 | J132: ='TB Hourly load shapes by class'!T132 -> 0 | K132: ='TB Hourly load shapes by class'!R132+'KN Hourly load shapes by class'!Y132 -> 224.3168031 | L132: =SUM(E132:K132) -> 159257.8289
A133: ='TB Hourly load shapes by class'!A133 -> 2004 | B133: ='TB Hourly load shapes by class'!B133 -> 1 | C133: ='TB Hourly load shapes by class'!C133 -> 6 | D133: ='TB Hourly load shapes by class'!D133 -> 11 | E133: ='TB Hourly load shapes by class'!N133+'KN Hourly load shapes by class'!U133 -> 59001.2671 | F133: ='TB Hourly load shapes by class'!Q133+'KN Hourly load shapes by class'!X133 -> 32230.9227 | G133: ='TB Hourly load shapes by class'!O133+'KN Hourly load shapes by class'!V133 -> 42674.11055 | H133: ='TB Hourly load shapes by class'!S133 -> 24335.62452 | I133: ='TB Hourly load shapes by class'!P133+'KN Hourly load shapes by class'!W133 -> 0 | J133: ='TB Hourly load shapes by class'!T133 -> 0 | K133: ='TB Hourly load shapes by class'!R133+'KN Hourly load shapes by class'!Y133 -> 224.3168031 | L133: 158466.2417
A134: ='TB Hourly load shapes by class'!A134 -> 2004 | B134: ='TB Hourly load shapes by class'!B134 -> 1 | C134: ='TB Hourly load shapes by class'!C134 -> 6 | D134: ='TB Hourly load shapes by class'!D134 -> 12 | E134: ='TB Hourly load shapes by class'!N134+'KN Hourly load shapes by class'!U134 -> 57605.89049 | F134: ='TB Hourly load shapes by class'!Q134+'KN Hourly load shapes by class'!X134 -> 33665.84083 | G134: ='TB Hourly load shapes by class'!O134+'KN Hourly load shapes by class'!V134 -> 42969.59515 | H134: ='TB Hourly load shapes by class'!S134 -> 23090.48528 | I134: ='TB Hourly load shapes by class'!P134+'KN Hourly load shapes by class'!W134 -> 0 | J134: ='TB Hourly load shapes by class'!T134 -> 0 | K134: ='TB Hourly load shapes by class'!R134+'KN Hourly load shapes by class'!Y134 -> 224.3168031 | L134: 157556.1286
A135: ='TB Hourly load shapes by class'!A135 -> 2004 | B135: ='TB Hourly load shapes by class'!B135 -> 1 | C135: ='TB Hourly load shapes by class'!C135 -> 6 | D135: ='TB Hourly load shapes by class'!D135 -> 13 | E135: ='TB Hourly load shapes by class'!N135+'KN Hourly load shapes by class'!U135 -> 56224.79946 | F135: ='TB Hourly load shapes by class'!Q135+'KN Hourly load shapes by class'!X135 -> 32797.22284 | G135: ='TB Hourly load shapes by class'!O135+'KN Hourly load shapes by class'!V135 -> 41381.02513 | H135: ='TB Hourly load shapes by class'!S135 -> 23264.34868 | I135: ='TB Hourly load shapes by class'!P135+'KN Hourly load shapes by class'!W135 -> 0 | J135: ='TB Hourly load shapes by class'!T135 -> 0 | K135: ='TB Hourly load shapes by class'!R135+'KN Hourly load shapes by class'!Y135 -> 224.3168031 | L135: 153891.7129
A136: ='TB Hourly load shapes by class'!A136 -> 2004 | B136: ='TB Hourly load shapes by class'!B136 -> 1 | C136: ='TB Hourly load shapes by class'!C136 -> 6 | D136: ='TB Hourly load shapes by class'!D136 -> 14 | E136: ='TB Hourly load shapes by class'!N136+'KN Hourly load shapes by class'!U136 -> 55920.34969 | F136: ='TB Hourly load shapes by class'!Q136+'KN Hourly load shapes by class'!X136 -> 31106.36274 | G136: ='TB Hourly load shapes by class'!O136+'KN Hourly load shapes by class'!V136 -> 41175.86068 | H136: ='TB Hourly load shapes by class'!S136 -> 23936.19762 | I136: ='TB Hourly load shapes by class'!P136+'KN Hourly load shapes by class'!W136 -> 0 | J136: ='TB Hourly load shapes by class'!T136 -> 0 | K136: ='TB Hourly load shapes by class'!R136+'KN Hourly load shapes by class'!Y136 -> 224.3168031 | L136: 152363.0875
A137: ='TB Hourly load shapes by class'!A137 -> 2004 | B137: ='TB Hourly load shapes by class'!B137 -> 1 | C137: ='TB Hourly load shapes by class'!C137 -> 6 | D137: ='TB Hourly load shapes by class'!D137 -> 15 | E137: ='TB Hourly load shapes by class'!N137+'KN Hourly load shapes by class'!U137 -> 54004.97863 | F137: ='TB Hourly load shapes by class'!Q137+'KN Hourly load shapes by class'!X137 -> 31151.66203 | G137: ='TB Hourly load shapes by class'!O137+'KN Hourly load shapes by class'!V137 -> 40454.7297 | H137: ='TB Hourly load shapes by class'!S137 -> 24281.33645 | I137: ='TB Hourly load shapes by class'!P137+'KN Hourly load shapes by class'!W137 -> 0 | J137: ='TB Hourly load shapes by class'!T137 -> 0 | K137: ='TB Hourly load shapes by class'!R137+'KN Hourly load shapes by class'!Y137 -> 224.3168031 | L137: 150117.0236
A138: ='TB Hourly load shapes by class'!A138 -> 2004 | B138: ='TB Hourly load shapes by class'!B138 -> 1 | C138: ='TB Hourly load shapes by class'!C138 -> 6 | D138: ='TB Hourly load shapes by class'!D138 -> 16 | E138: ='TB Hourly load shapes by class'!N138+'KN Hourly load shapes by class'!U138 -> 56754.70844 | F138: ='TB Hourly load shapes by class'!Q138+'KN Hourly load shapes by class'!X138 -> 31164.73978 | G138: ='TB Hourly load shapes by class'!O138+'KN Hourly load shapes by class'!V138 -> 39358.54934 | H138: ='TB Hourly load shapes by class'!S138 -> 22475.20872 | I138: ='TB Hourly load shapes by class'!P138+'KN Hourly load shapes by class'!W138 -> 0 | J138: ='TB Hourly load shapes by class'!T138 -> 0 | K138: ='TB Hourly load shapes by class'!R138+'KN Hourly load shapes by class'!Y138 -> 224.3168031 | L138: 149977.5231
A139: ='TB Hourly load shapes by class'!A139 -> 2004 | B139: ='TB Hourly load shapes by class'!B139 -> 1 | C139: ='TB Hourly load shapes by class'!C139 -> 6 | D139: ='TB Hourly load shapes by class'!D139 -> 17 | E139: ='TB Hourly load shapes by class'!N139+'KN Hourly load shapes by class'!U139 -> 65122.76911 | F139: ='TB Hourly load shapes by class'!Q139+'KN Hourly load shapes by class'!X139 -> 31339.69899 | G139: ='TB Hourly load shapes by class'!O139+'KN Hourly load shapes by class'!V139 -> 37982.98416 | H139: ='TB Hourly load shapes by class'!S139 -> 18568.86309 | I139: ='TB Hourly load shapes by class'!P139+'KN Hourly load shapes by class'!W139 -> 322.3540701 | J139: ='TB Hourly load shapes by class'!T139 -> 5.937972356 | K139: ='TB Hourly load shapes by class'!R139+'KN Hourly load shapes by class'!Y139 -> 233.3636439 | L139: 153575.971
A140: ='TB Hourly load shapes by class'!A140 -> 2004 | B140: ='TB Hourly load shapes by class'!B140 -> 1 | C140: ='TB Hourly load shapes by class'!C140 -> 6 | D140: ='TB Hourly load shapes by class'!D140 -> 18 | E140: ='TB Hourly load shapes by class'!N140+'KN Hourly load shapes by class'!U140 -> 69985.23168 | F140: ='TB Hourly load shapes by class'!Q140+'KN Hourly load shapes by class'!X140 -> 28529.55762 | G140: ='TB Hourly load shapes by class'!O140+'KN Hourly load shapes by class'!V140 -> 39922.70891 | H140: ='TB Hourly load shapes by class'!S140 -> 17897.64176 | I140: ='TB Hourly load shapes by class'!P140+'KN Hourly load shapes by class'!W140 -> 1289.41628 | J140: ='TB Hourly load shapes by class'!T140 -> 23.75188942 | K140: ='TB Hourly load shapes by class'!R140+'KN Hourly load shapes by class'!Y140 -> 260.5041662 | L140: 157908.8123
A141: ='TB Hourly load shapes by class'!A141 -> 2004 | B141: ='TB Hourly load shapes by class'!B141 -> 1 | C141: ='TB Hourly load shapes by class'!C141 -> 6 | D141: ='TB Hourly load shapes by class'!D141 -> 19 | E141: ='TB Hourly load shapes by class'!N141+'KN Hourly load shapes by class'!U141 -> 67684.14848 | F141: ='TB Hourly load shapes by class'!Q141+'KN Hourly load shapes by class'!X141 -> 27565.34848 | G141: ='TB Hourly load shapes by class'!O141+'KN Hourly load shapes by class'!V141 -> 47341.40727 | H141: ='TB Hourly load shapes by class'!S141 -> 19294.69916 | I141: ='TB Hourly load shapes by class'!P141+'KN Hourly load shapes by class'!W141 -> 1393.51786 | J141: ='TB Hourly load shapes by class'!T141 -> 23.75188942 | K141: ='TB Hourly load shapes by class'!R141+'KN Hourly load shapes by class'!Y141 -> 260.5041662 | L141: 163563.3773
A142: ='TB Hourly load shapes by class'!A142 -> 2004 | B142: ='TB Hourly load shapes by class'!B142 -> 1 | C142: ='TB Hourly load shapes by class'!C142 -> 6 | D142: ='TB Hourly load shapes by class'!D142 -> 20 | E142: ='TB Hourly load shapes by class'!N142+'KN Hourly load shapes by class'!U142 -> 73820.38745 | F142: ='TB Hourly load shapes by class'!Q142+'KN Hourly load shapes by class'!X142 -> 22449.89568 | G142: ='TB Hourly load shapes by class'!O142+'KN Hourly load shapes by class'!V142 -> 47029.15988 | H142: ='TB Hourly load shapes by class'!S142 -> 19298.84231 | I142: ='TB Hourly load shapes by class'!P142+'KN Hourly load shapes by class'!W142 -> 1393.51786 | J142: ='TB Hourly load shapes by class'!T142 -> 23.75188942 | K142: ='TB Hourly load shapes by class'!R142+'KN Hourly load shapes by class'!Y142 -> 260.5041662 | L142: 164276.0592
A143: ='TB Hourly load shapes by class'!A143 -> 2004 | B143: ='TB Hourly load shapes by class'!B143 -> 1 | C143: ='TB Hourly load shapes by class'!C143 -> 6 | D143: ='TB Hourly load shapes by class'!D143 -> 21 | E143: ='TB Hourly load shapes by class'!N143+'KN Hourly load shapes by class'!U143 -> 67337.8693 | F143: ='TB Hourly load shapes by class'!Q143+'KN Hourly load shapes by class'!X143 -> 24506.00814 | G143: ='TB Hourly load shapes by class'!O143+'KN Hourly load shapes by class'!V143 -> 48049.97878 | H143: ='TB Hourly load shapes by class'!S143 -> 19871.95863 | I143: ='TB Hourly load shapes by class'!P143+'KN Hourly load shapes by class'!W143 -> 1393.51786 | J143: ='TB Hourly load shapes by class'!T143 -> 23.75188942 | K143: ='TB Hourly load shapes by class'!R143+'KN Hourly load shapes by class'!Y143 -> 260.5041662 | L143: 161443.5888
A144: ='TB Hourly load shapes by class'!A144 -> 2004 | B144: ='TB Hourly load shapes by class'!B144 -> 1 | C144: ='TB Hourly load shapes by class'!C144 -> 6 | D144: ='TB Hourly load shapes by class'!D144 -> 22 | E144: ='TB Hourly load shapes by class'!N144+'KN Hourly load shapes by class'!U144 -> 66841.10865 | F144: ='TB Hourly load shapes by class'!Q144+'KN Hourly load shapes by class'!X144 -> 19892.84132 | G144: ='TB Hourly load shapes by class'!O144+'KN Hourly load shapes by class'!V144 -> 47236.48757 | H144: ='TB Hourly load shapes by class'!S144 -> 19289.84789 | I144: ='TB Hourly load shapes by class'!P144+'KN Hourly load shapes by class'!W144 -> 1393.51786 | J144: ='TB Hourly load shapes by class'!T144 -> 23.75188942 | K144: ='TB Hourly load shapes by class'!R144+'KN Hourly load shapes by class'!Y144 -> 260.5041662 | L144: 154938.0593
A145: ='TB Hourly load shapes by class'!A145 -> 2004 | B145: ='TB Hourly load shapes by class'!B145 -> 1 | C145: ='TB Hourly load shapes by class'!C145 -> 6 | D145: ='TB Hourly load shapes by class'!D145 -> 23 | E145: ='TB Hourly load shapes by class'!N145+'KN Hourly load shapes by class'!U145 -> 63607.78274 | F145: ='TB Hourly load shapes by class'!Q145+'KN Hourly load shapes by class'!X145 -> 18544.28903 | G145: ='TB Hourly load shapes by class'!O145+'KN Hourly load shapes by class'!V145 -> 43211.04412 | H145: ='TB Hourly load shapes by class'!S145 -> 19100.7479 | I145: ='TB Hourly load shapes by class'!P145+'KN Hourly load shapes by class'!W145 -> 1393.51786 | J145: ='TB Hourly load shapes by class'!T145 -> 23.75188942 | K145: ='TB Hourly load shapes by class'!R145+'KN Hourly load shapes by class'!Y145 -> 260.5041662 | L145: 146141.6377
A146: ='TB Hourly load shapes by class'!A146 -> 2004 | B146: ='TB Hourly load shapes by class'!B146 -> 1 | C146: ='TB Hourly load shapes by class'!C146 -> 6 | D146: ='TB Hourly load shapes by class'!D146 -> 24 | E146: ='TB Hourly load shapes by class'!N146+'KN Hourly load shapes by class'!U146 -> 56027.19332 | F146: ='TB Hourly load shapes by class'!Q146+'KN Hourly load shapes by class'!X146 -> 17506.1383 | G146: ='TB Hourly load shapes by class'!O146+'KN Hourly load shapes by class'!V146 -> 42127.03234 | H146: ='TB Hourly load shapes by class'!S146 -> 18717.08063 | I146: ='TB Hourly load shapes by class'!P146+'KN Hourly load shapes by class'!W146 -> 1393.51786 | J146: ='TB Hourly load shapes by class'!T146 -> 23.75188942 | K146: ='TB Hourly load shapes by class'!R146+'KN Hourly load shapes by class'!Y146 -> 260.5041662 | L146: 136055.2185
A147: ='TB Hourly load shapes by class'!A147 -> 2004 | B147: ='TB Hourly load shapes by class'!B147 -> 1 | C147: ='TB Hourly load shapes by class'!C147 -> 7 | D147: ='TB Hourly load shapes by class'!D147 -> 1 | E147: ='TB Hourly load shapes by class'!N147+'KN Hourly load shapes by class'!U147 -> 47125.01175 | F147: ='TB Hourly load shapes by class'!Q147+'KN Hourly load shapes by class'!X147 -> 18280.15414 | G147: ='TB Hourly load shapes by class'!O147+'KN Hourly load shapes by class'!V147 -> 41275.49212 | H147: ='TB Hourly load shapes by class'!S147 -> 18470.78002 | I147: ='TB Hourly load shapes by class'!P147+'KN Hourly load shapes by class'!W147 -> 1393.51786 | J147: ='TB Hourly load shapes by class'!T147 -> 23.75188942 | K147: ='TB Hourly load shapes by class'!R147+'KN Hourly load shapes by class'!Y147 -> 260.5041662 | L147: 126829.2119
